Invoice Date,Supplier Name,Proclass Category,Service Area,Cost Centre Name,Invoiced
,,,,,"12,469,606.67"
11/03/2013,REDACTED PERSONAL DATA,Unclassifiable,BEQUESTS,ROCHDALE ANCIENT PARISH I & E,750.00
27/02/2013,REDACTED PERSONAL DATA,Unclassifiable,BEQUESTS,ROCHDALE ANCIENT PARISH I & E,500.00
27/02/2013,REDACTED PERSONAL DATA,Unclassifiable,BEQUESTS,ROCHDALE ANCIENT PARISH I & E,500.00
07/03/2013,PREMIERBESWICK,Stationery,CUSTOMERS AND COMMUNITIES,PRODUCTION,767.14
07/03/2013,BROWNS CTP LIMITED,Facilities & Management Services,CUSTOMERS AND COMMUNITIES,PRODUCTION,"1,770.00"
15/03/2013,BROWNS CTP LIMITED,Facilities & Management Services,CUSTOMERS AND COMMUNITIES,PRODUCTION,"8,090.00"
26/02/2013,BURRBAXTER PRINT LTD,Facilities & Management Services,CUSTOMERS AND COMMUNITIES,PRODUCTION,"1,170.80"
27/03/2013,ALLSTAR BUSINESS SOLUTIONS LTD,Transport,OPERATIONS SERVICE,EDUCATION HOME TO SCHOOL,750.90
27/03/2013,ALLSTAR BUSINESS SOLUTIONS LTD,Vehicles,OPERATIONS SERVICE,SS AMBULANCE TRANSPORT,"1,231.73"
27/03/2013,ALLSTAR BUSINESS SOLUTIONS LTD,Vehicles,OPERATIONS SERVICE,STREETS HEYWOOD GENERAL,520.95
27/03/2013,ALLSTAR BUSINESS SOLUTIONS LTD,Vehicles,OPERATIONS SERVICE,STREETS MIDDLETON GENERAL,"1,430.93"
27/03/2013,ALLSTAR BUSINESS SOLUTIONS LTD,Vehicles,OPERATIONS SERVICE,STREETS ROCHDALE GENERAL,"2,082.69"
04/03/2013,MERITEC LIMITED,"Works - Construction, Repair & Maintenance",CUSTOMERS AND COMMUNITIES,BENEFITS PROCESSING,"2,454.50"
13/03/2013,MERITEC LIMITED,"Works - Construction, Repair & Maintenance",CUSTOMERS AND COMMUNITIES,CUSTOMERS AND COMMUNITIES,532.80
05/03/2013,CO-OPERATIVE BANK PLC,Financial Services,OPERATIONS SERVICE,ENV MANAGEMENT,642.00
05/03/2013,CO-OPERATIVE BANK PLC,Financial Services,CORPORATE SERVICES,LEGAL SERVICES,"1,085.00"
05/03/2013,CO-OPERATIVE BANK PLC,Financial Services,CUSTOMERS AND COMMUNITIES,RECOVERY,554.00
12/03/2013,MERITEC LIMITED,"Works - Construction, Repair & Maintenance",CUSTOMERS AND COMMUNITIES,RECOVERY,805.00
21/03/2013,CO-OPERATIVE BANK PLC,Financial Services,CORPORATE SERVICES,LEGAL SERVICES,606.00
22/03/2013,DWF LLP LEEDS,Legal Services,CUSTOMERS AND COMMUNITIES,RECOVERY,"2,771.20"
25/02/2013,MERITEC LIMITED,"Works - Construction, Repair & Maintenance",CUSTOMERS AND COMMUNITIES,RECOVERY,"6,925.00"
06/03/2013,MERITEC LIMITED,"Works - Construction, Repair & Maintenance",CUSTOMERS AND COMMUNITIES,TECHNICAL SUPPORT,"22,431.25"
11/03/2013,ROYAL MAIL GROUP PLC,Mail Services�,CUSTOMERS AND COMMUNITIES,TECHNICAL SUPPORT,"2,345.53"
14/03/2013,ROYAL MAIL GROUP PLC,Mail Services�,CUSTOMERS AND COMMUNITIES,TECHNICAL SUPPORT,"1,707.71"
14/03/2013,NORTHGATE INFORMATION SOLUTIONS UK LTD,Information Communication Technology,CUSTOMERS AND COMMUNITIES,TECHNICAL SUPPORT,"4,312.50"
20/03/2013,ROYAL MAIL GROUP PLC,Mail Services�,CUSTOMERS AND COMMUNITIES,TECHNICAL SUPPORT,"1,691.61"
20/03/2013,BREEZE LIMITED,Information Communication Technology,CUSTOMERS AND COMMUNITIES,TECHNICAL SUPPORT,"6,000.00"
22/03/2013,TEAM NETSOL LTD,Information Communication Technology,CUSTOMERS AND COMMUNITIES,TECHNICAL SUPPORT,"3,148.00"
27/02/2013,INSTITUTE OF PUBLIC FINANCE LIMITED,Financial Services,CUSTOMERS AND COMMUNITIES,TECHNICAL SUPPORT,"2,525.00"
27/02/2013,ROYAL MAIL GROUP PLC,Mail Services�,CUSTOMERS AND COMMUNITIES,TECHNICAL SUPPORT,"1,858.48"
27/03/2013,ROYAL MAIL GROUP PLC,Mail Services�,CUSTOMERS AND COMMUNITIES,TECHNICAL SUPPORT,"1,816.52"
11/03/2013,NORTHGATE INFORMATION SOLUTIONS UK LTD,Information Communication Technology,CUSTOMERS AND COMMUNITIES,BLUE BADGES,"1,117.80"
12/03/2013,TOTAL PHYSIOTHERAPY LIMITED,Medical,CUSTOMERS AND COMMUNITIES,BLUE BADGES,990.00
27/02/2013,TOTAL PHYSIOTHERAPY LIMITED,Medical,CUSTOMERS AND COMMUNITIES,BLUE BADGES,"1,020.00"
25/03/2013,A A ARNOLD LIMITED,Building Construction Materials,CUSTOMERS AND COMMUNITIES,BALDERSTONE LIBRARY,665.95
06/03/2013,BERTRAM TRADING LIMITED,Education,CUSTOMERS AND COMMUNITIES,BIBS UNIT,674.10
06/03/2013,BERTRAM TRADING LIMITED,Education,CUSTOMERS AND COMMUNITIES,BIBS UNIT,759.60
21/03/2013,EN-V INTERIORS,"Works - Construction, Repair & Maintenance",CUSTOMERS AND COMMUNITIES,BIBS UNIT,"3,264.00"
22/03/2013,BERTRAM TRADING LIMITED,Education,CUSTOMERS AND COMMUNITIES,BIBS UNIT,682.65
22/03/2013,BERTRAM TRADING LIMITED,Education,CUSTOMERS AND COMMUNITIES,BIBS UNIT,604.25
22/03/2013,BRIDGEALL LIBRARIES LTD,Education,CUSTOMERS AND COMMUNITIES,BIBS UNIT,"7,268.00"
25/02/2013,FG LIBRARY,Education,CUSTOMERS AND COMMUNITIES,BIBS UNIT,"3,396.00"
26/02/2013,ALLSTAR BUSINESS SOLUTIONS LTD,Transport,OPERATIONS SERVICE,EDUCATION HOME TO SCHOOL,849.88
26/02/2013,ALLSTAR BUSINESS SOLUTIONS LTD,Vehicles,OPERATIONS SERVICE,SS AMBULANCE TRANSPORT,"1,282.13"
26/02/2013,ALLSTAR BUSINESS SOLUTIONS LTD,Vehicles,OPERATIONS SERVICE,STREETS HEYWOOD GENERAL,"1,039.39"
26/02/2013,ALLSTAR BUSINESS SOLUTIONS LTD,Vehicles,OPERATIONS SERVICE,STREETS MIDDLETON GENERAL,"1,303.36"
26/02/2013,ALLSTAR BUSINESS SOLUTIONS LTD,Vehicles,OPERATIONS SERVICE,STREETS ROCHDALE GENERAL,"2,177.78"
27/03/2013,UNITED UTILITIES WATER LIMITED,Utilities,ADULT CARE OPERATIONS,TUDOR COURT REHAB UNIT,"1,593.43"
27/03/2013,UNITED UTILITIES WATER LIMITED,Utilities,MENTAL HEALTH LD AND VUL ADULT,LD PROVIDER MANAGEMENT & ADMIN,"1,515.26"
27/03/2013,UNITED UTILITIES WATER LIMITED,Utilities,OPERATIONS SERVICE,DEPOT GREEN LANE GENERAL,739.30
27/03/2013,UNITED UTILITIES WATER LIMITED,Utilities,OPERATIONS SERVICE,MUNICIPAL OFFICES,"1,102.50"
27/03/2013,UNITED UTILITIES WATER LIMITED,Utilities,OPERATIONS SERVICE,PARKS HEYWOOD,825.05
27/03/2013,UNITED UTILITIES WATER LIMITED,Utilities,CUSTOMERS AND COMMUNITIES,LEOPOLD COURT,749.53
27/03/2013,UNITED UTILITIES WATER LIMITED,Utilities,CUSTOMERS AND COMMUNITIES,SMALLBRIDGE LIBRARY,839.89
27/03/2013,UNITED UTILITIES WATER LIMITED,Utilities,PROPERTY AND HIGHWAYS,ASSET RATIONALISATION,804.73
27/02/2013,BIBLIOTHECA,Education,CUSTOMERS AND COMMUNITIES,HEYWOOD LIBRARY,"1,427.00"
27/02/2013,BIBLIOTHECA,Education,CUSTOMERS AND COMMUNITIES,MIDDLETON LIBRARY,"2,126.00"
28/02/2013,CHUBB ELECTRONIC SECURITY SYSTEMS LTD,Facilities & Management Services,CUSTOMERS AND COMMUNITIES,SMITHYBRIDGE LIBRARY,756.20
25/03/2013,S KERSHAW & SONS,"Works - Construction, Repair & Maintenance",CUSTOMERS AND COMMUNITIES,WARDLE LIBRARY,"3,187.50"
04/03/2013,BRITISH TELECOMMUNICATIONS PLC,Information Communication Technology,CUSTOMERS AND COMMUNITIES,PEOPLES NETWORK,539.00
22/03/2013,REDACTED PERSONAL DATA,Education,CUSTOMERS AND COMMUNITIES,MASKEW BEQUEST SPECIFIED,575.85
04/03/2013,JULIAN ROCHE ASSOCIATES LIMITED,Education,CUSTOMERS AND COMMUNITIES,UK ONLINE - REVENUE,"1,069.00"
07/03/2013,JGM AGENCY,Facilities & Management Services,CUSTOMERS AND COMMUNITIES,MARKETING,540.00
28/02/2013,MANCHESTER CREDIT UNION,Financial Services,CUSTOMERS AND COMMUNITIES,KINGSWAY REC TEAM ECONOMI,"10,000.00"
04/03/2013,SKILLS SOLUTION LTD,Human Resources,CUSTOMERS AND COMMUNITIES,POLICY PARTNERSHIP REGENE,"1,060.00"
18/03/2013,ROCHDALE CONNECTIONS TRUST (TRADING) LTD,Financial Services,CUSTOMERS AND COMMUNITIES,PIF SKILLS OUTREACH & FAM LEARNING 150K,"4,075.00"
22/03/2013,BROWNS BOOK FOR STUDENTS,Education,CUSTOMERS AND COMMUNITIES,PIF SKILLS OUTREACH & FAM LEARNING 150K,"1,593.75"
06/03/2013,ROCHDALE TOWN CENTRE MANAGEMENT CO,Financial Services,CUSTOMERS AND COMMUNITIES,PIF EVENTS (25K 10/11),650.00
13/03/2013,TOWNGUIDEAPPS,Financial Services,CUSTOMERS AND COMMUNITIES,ECONOMIC AFFAIRS EXT GRANTS,"2,300.00"
28/02/2013,MANCHESTER CREDIT UNION,Financial Services,CUSTOMERS AND COMMUNITIES,ECONOMIC & COMMUNITY AFFAIRS,"16,875.00"
26/02/2013,NEW MIND INTERNET CONSULTANCY LTD,Information Communication Technology,CUSTOMERS AND COMMUNITIES,INWARD INVESTMENT,"1,200.00"
18/03/2013,SAFEGARD SECURITY SOLUTIONS,Facilities & Management Services,CUSTOMERS AND COMMUNITIES,C & D COMMISSIONED,"12,500.00"
28/02/2013,SAFEGARD SECURITY SOLUTIONS,Facilities & Management Services,CUSTOMERS AND COMMUNITIES,C & D COMMISSIONED,"15,000.00"
28/03/2013,SAFEGARD SECURITY SOLUTIONS,Facilities & Management Services,CUSTOMERS AND COMMUNITIES,C & D COMMISSIONED,"15,000.00"
07/03/2013,MEDILOGIC UK LTD,Medical,CUSTOMERS AND COMMUNITIES,D & A JOINT COMM BUCKLY HALL,"6,252.87"
28/02/2013,LIFELINE PROJECT LIMITED,Social Community Care Supplies & Services,CUSTOMERS AND COMMUNITIES,D & A JOINT COMM BUCKLY HALL,"32,287.00"
28/03/2013,LIFELINE PROJECT LIMITED,Social Community Care Supplies & Services,CUSTOMERS AND COMMUNITIES,D & A JOINT COMM BUCKLY HALL,"32,287.00"
02/03/2013,PENNINE CARE NHS TRUST,Social Community Care Supplies & Services,CUSTOMERS AND COMMUNITIES,D&A DIP COMMISSIONED,"19,864.58"
02/03/2013,PENNINE CARE NHS TRUST,Social Community Care Supplies & Services,CUSTOMERS AND COMMUNITIES,D&A JOINT COMM GRP,"87,479.33"
28/02/2013,THE PENNINE ACUTE HOSPITALS NHS TRUST,Medical,CUSTOMERS AND COMMUNITIES,D&A JOINT COMM GRP,"3,160.18"
28/02/2013,TURNING POINT SERVICES LIMITED,Social Community Care Supplies & Services,CUSTOMERS AND COMMUNITIES,D&A JOINT COMM GRP,"6,750.00"
27/02/2013,GROUNDWORK LANDSCAPES LIMITED,Horticultural,CUSTOMERS AND COMMUNITIES,MIDDLETON & MUGA,"1,775.00"
20/03/2013,SOLON SECURITY LIMITED,Facilities & Management Services,CUSTOMERS AND COMMUNITIES,PBG - OPERATIONAL BUDGET,608.00
21/03/2013,EMQC LIMITED,Human Resources,CUSTOMERS AND COMMUNITIES,EMPLOYMENTS LINKS,630.00
25/02/2013,LANCASHIRE LOCK & SAFE COMPANY LIMITED,Facilities & Management Services,CUSTOMERS AND COMMUNITIES,LEOPOLD COURT,504.00
25/03/2013,PHS GROUP PLC,Cleaning & Janitorial,CUSTOMERS AND COMMUNITIES,LEOPOLD COURT,"2,508.54"
26/02/2013,SAFEGARD SECURITY SOLUTIONS,Facilities & Management Services,CUSTOMERS AND COMMUNITIES,LEOPOLD COURT,"1,237.00"
19/03/2013,ROCHDALE BOROUGHWIDE HOUSING,Housing Management,CUSTOMERS AND COMMUNITIES,GREAT HOWARTH HOSTEL,"80,177.40"
21/03/2013,ROCHDALE BOROUGHWIDE HOUSING,Housing Management,CUSTOMERS AND COMMUNITIES,GREAT HOWARTH HOSTEL,"22,530.69"
01/03/2013,ROCHDALE HOUSING INITIATIVE,Housing Management,CUSTOMERS AND COMMUNITIES,HOUSING STRATEGY,"50,000.00"
14/03/2013,HQN LIMITED,Housing Management,CUSTOMERS AND COMMUNITIES,HOUSING STRATEGY,"7,652.50"
28/02/2013,HQN LIMITED,Housing Management,CUSTOMERS AND COMMUNITIES,HOUSING STRATEGY,"5,396.18"
25/03/2013,J GREENWOOD (BUILDERS) LIMITED       (S),"Works - Construction, Repair & Maintenance",CUSTOMERS AND COMMUNITIES,TRAFALGAR STREET,671.00
20/03/2013,HEYWOOD HANDYMAN,"Works - Construction, Repair & Maintenance",CUSTOMERS AND COMMUNITIES,EMPTY PROPERTY GRANT,510.00
21/03/2013,A J COCKER ASSOCIATES LIMITED,"Works - Construction, Repair & Maintenance",CUSTOMERS AND COMMUNITIES,EMPTY PROPERTY GRANT,750.00
01/03/2013,OLDHAM & ROCHDALE GROUNDWORK TRUST LTD,"Works - Construction, Repair & Maintenance",CUSTOMERS AND COMMUNITIES,BANFF GROVE,"24,556.00"
20/03/2013,JACKSON JACKSON & SONS LTD,Building Construction Materials,CUSTOMERS AND COMMUNITIES,BANFF GROVE,"4,340.00"
05/03/2013,SECTOR TREASURY SERVICES LTD,Financial Services,CUSTOMERS AND COMMUNITIES,CONTINGENCY,"3,809.50"
01/03/2013,ROCHDALE HOUSING INITIATIVE,Housing Management,CUSTOMERS AND COMMUNITIES,LANDLORD ASSISTANCE,"3,444.53"
22/03/2013,ROCHDALE HOUSING INITIATIVE,Housing Management,CUSTOMERS AND COMMUNITIES,LANDLORD ASSISTANCE,"3,444.53"
26/03/2013,HAROLD ADDY & PARTNERS,"Works - Construction, Repair & Maintenance",CUSTOMERS AND COMMUNITIES,SPARTHBOTTOMS ROAD WALL,"1,000.00"
26/03/2013,HAROLD ADDY & PARTNERS,"Works - Construction, Repair & Maintenance",CUSTOMERS AND COMMUNITIES,SPARTHBOTTOMS ROAD WALL,"21,000.00"
01/03/2013,D & M DEMOLITIONS LTD,"Works - Construction, Repair & Maintenance",CUSTOMERS AND COMMUNITIES,GENERAL CLEARANCE,"7,875.00"
01/03/2013,D & M DEMOLITIONS LTD,"Works - Construction, Repair & Maintenance",CUSTOMERS AND COMMUNITIES,GENERAL CLEARANCE,"13,092.00"
07/03/2013,D & M DEMOLITIONS LTD,"Works - Construction, Repair & Maintenance",CUSTOMERS AND COMMUNITIES,GENERAL CLEARANCE,"8,000.00"
07/03/2013,REDACTED PERSONAL DATA,Unclassifiable,CUSTOMERS AND COMMUNITIES,GENERAL CLEARANCE,"2,275.00"
07/03/2013,REDACTED PERSONAL DATA,Unclassifiable,CUSTOMERS AND COMMUNITIES,GENERAL CLEARANCE,585.00
20/03/2013,REDACTED PERSONAL DATA,Unclassifiable,CUSTOMERS AND COMMUNITIES,GENERAL CLEARANCE,"3,200.00"
20/03/2013,A J COCKER ASSOCIATES LIMITED,"Works - Construction, Repair & Maintenance",CUSTOMERS AND COMMUNITIES,GENERAL CLEARANCE,"1,300.00"
22/03/2013,D & M DEMOLITIONS LTD,"Works - Construction, Repair & Maintenance",CUSTOMERS AND COMMUNITIES,GENERAL CLEARANCE,"95,127.90"
25/03/2013,J GREENWOOD (BUILDERS) LIMITED       (S),"Works - Construction, Repair & Maintenance",CUSTOMERS AND COMMUNITIES,REPAIRS,671.24
25/03/2013,J GREENWOOD (BUILDERS) LIMITED       (S),"Works - Construction, Repair & Maintenance",CUSTOMERS AND COMMUNITIES,REPAIRS,"1,509.62"
25/03/2013,J GREENWOOD (BUILDERS) LIMITED       (S),"Works - Construction, Repair & Maintenance",CUSTOMERS AND COMMUNITIES,REPAIRS,645.74
25/03/2013,J GREENWOOD (BUILDERS) LIMITED       (S),"Works - Construction, Repair & Maintenance",CUSTOMERS AND COMMUNITIES,REPAIRS,581.90
12/03/2013,NATIONAL GRID PLC,Utilities,CUSTOMERS AND COMMUNITIES,UTILITY,"1,515.60"
14/03/2013,SOLON SECURITY LIMITED,Facilities & Management Services,CUSTOMERS AND COMMUNITIES,ALLEYGATING (259K 08.09 COUNCIL BUD),617.48
14/03/2013,GROUNDWORK LANDSCAPES LIMITED,Horticultural,CUSTOMERS AND COMMUNITIES,ALLEYGATING (259K 08.09 COUNCIL BUD),"45,068.76"
21/03/2013,PRODRIVE SHOPFITTING,"Works - Construction, Repair & Maintenance",CUSTOMERS AND COMMUNITIES,CO-LOCATION OF LIBRARIES,"3,462.00"
07/03/2013,D & M DEMOLITIONS LTD,"Works - Construction, Repair & Maintenance",CUSTOMERS AND COMMUNITIES,HMRF ECR REMEDIATION WORKS,"7,500.00"
20/03/2013,KEEPMOAT HOMES LTD,Facilities & Management Services,CUSTOMERS AND COMMUNITIES,HMRF ECR REMEDIATION WORKS,"19,000.00"
01/03/2013,VALE PARK DEMOLITION,"Works - Construction, Repair & Maintenance",CUSTOMERS AND COMMUNITIES,HILLTOP DEMOLITION,"19,891.10"
25/02/2013,VALE PARK DEMOLITION,"Works - Construction, Repair & Maintenance",CUSTOMERS AND COMMUNITIES,HILLTOP DEMOLITION,"19,891.10"
01/03/2013,CORONA ENERGY RETAIL 4 LIMITED,Utilities,OPERATIONS SERVICE,HARE HILL,"1,294.20"
01/03/2013,CORONA ENERGY RETAIL 4 LIMITED,Utilities,OPERATIONS SERVICE,WHITWORTH ROAD,"1,586.35"
01/03/2013,CORONA ENERGY RETAIL 4 LIMITED,Utilities,OPERATIONS SERVICE,FOUNTAIN STREET,"1,169.22"
18/03/2013,ALLSTAR BUSINESS SOLUTIONS LTD,Vehicles,OPERATIONS SERVICE,STREETS HEYWOOD GENERAL,572.27
18/03/2013,ALLSTAR BUSINESS SOLUTIONS LTD,Vehicles,OPERATIONS SERVICE,STREETS MIDDLETON GENERAL,"1,587.40"
18/03/2013,ALLSTAR BUSINESS SOLUTIONS LTD,Vehicles,OPERATIONS SERVICE,STREETS ROCHDALE GENERAL,"1,854.11"
19/03/2013,J L A LTD,Cleaning & Janitorial,OPERATIONS SERVICE,FM PRIMARY CATERING OVERH,"15,674.10"
19/03/2013,DICK LEIGH,Horticultural,OPERATIONS SERVICE,COUNTRYSIDE OPERATIONS,717.77
21/03/2013,FRIENDS OF SPRINGFIELD PARK LTD,Financial Services,OPERATIONS SERVICE,COUNTRYSIDE OPERATIONS,"5,405.00"
21/03/2013,B DEARDEN & SON                      (S),Vehicles,OPERATIONS SERVICE,COUNTRYSIDE OPERATIONS,"2,758.00"
22/03/2013,NORDEN AGRICULTURAL CONTRACTORS,Horticultural,OPERATIONS SERVICE,COUNTRYSIDE OPERATIONS,600.00
19/03/2013,WLG (WHOLESALERS),Catering,OPERATIONS SERVICE,TOWN HALL BAR,637.52
27/02/2013,WLG (WHOLESALERS),Catering,OPERATIONS SERVICE,TOWN HALL BAR,"1,488.65"
01/03/2013,CORONA ENERGY RETAIL 4 LIMITED,Utilities,OPERATIONS SERVICE,TOWN HALL,"7,443.72"
12/03/2013,EDF ENERGY 1 LIMITED,Utilities,OPERATIONS SERVICE,TOWN HALL,"2,454.26"
21/03/2013,CORONA ENERGY RETAIL 4 LIMITED,Utilities,OPERATIONS SERVICE,MUNICIPAL OFFICES,"3,306.22"
21/03/2013,KONE PLC                             (S),Facilities & Management Services,OPERATIONS SERVICE,MUNICIPAL OFFICES,"13,881.65"
19/03/2013,REDACTED PERSONAL DATA,Unclassifiable,OPERATIONS SERVICE,ENVIRONMENTAL MANAGEMENT - IDC ACCOUNT,779.00
07/03/2013,JJ SIGMA GRAPHICS LTD,Facilities & Management Services,OPERATIONS SERVICE,1 RIVERSIDE,560.00
07/03/2013,EDF ENERGY 1 LIMITED,Utilities,OPERATIONS SERVICE,1 RIVERSIDE,"22,816.06"
07/03/2013,EDF ENERGY 1 LIMITED,Utilities,OPERATIONS SERVICE,1 RIVERSIDE,789.73
07/03/2013,EDF ENERGY 1 LIMITED,Utilities,OPERATIONS SERVICE,1 RIVERSIDE,"25,330.74"
12/03/2013,EDF ENERGY 1 LIMITED,Utilities,OPERATIONS SERVICE,1 RIVERSIDE,"24,286.16"
12/03/2013,TARGET FIRE PROTECTION LTD,Health & Safety�,OPERATIONS SERVICE,1 RIVERSIDE,"1,963.36"
14/03/2013,SILVAPOWER LTD,Utilities,OPERATIONS SERVICE,1 RIVERSIDE,930.00
14/03/2013,SILVAPOWER LTD,Utilities,OPERATIONS SERVICE,1 RIVERSIDE,744.00
19/03/2013,SILVAPOWER LTD,Utilities,OPERATIONS SERVICE,1 RIVERSIDE,768.80
19/03/2013,SILVAPOWER LTD,Utilities,OPERATIONS SERVICE,1 RIVERSIDE,"1,116.00"
19/03/2013,SILVAPOWER LTD,Utilities,OPERATIONS SERVICE,1 RIVERSIDE,669.60
19/03/2013,PHS GROUP PLC,Cleaning & Janitorial,OPERATIONS SERVICE,1 RIVERSIDE,"1,418.38"
19/03/2013,PHS GROUP PLC,Cleaning & Janitorial,OPERATIONS SERVICE,1 RIVERSIDE,"2,649.38"
19/03/2013,PHS GROUP PLC,Cleaning & Janitorial,OPERATIONS SERVICE,1 RIVERSIDE,"2,412.24"
19/03/2013,PHS GROUP PLC,Cleaning & Janitorial,OPERATIONS SERVICE,1 RIVERSIDE,"2,561.26"
20/03/2013,SILVAPOWER LTD,Utilities,OPERATIONS SERVICE,1 RIVERSIDE,801.04
20/03/2013,AVK SEG UK LTD,Environmental Services,OPERATIONS SERVICE,1 RIVERSIDE,"2,468.75"
20/03/2013,NG BAILEY FACILITIES SERVICES LIMITED,Information Communication Technology,OPERATIONS SERVICE,1 RIVERSIDE,"35,423.00"
20/03/2013,PROTEC FIRE DETECTION PLC,Facilities & Management Services,OPERATIONS SERVICE,1 RIVERSIDE,"8,216.00"
20/03/2013,IMPERATIVE ENERGY,Facilities & Management Services,OPERATIONS SERVICE,1 RIVERSIDE,"2,500.00"
20/03/2013,SCHNEIDER ELECTRIC LIMITED,Facilities & Management Services,OPERATIONS SERVICE,1 RIVERSIDE,"14,808.38"
20/03/2013,OTIS LTD,Facilities & Management Services,OPERATIONS SERVICE,1 RIVERSIDE,"1,500.00"
26/03/2013,ENTERPRISE MANCHESTER,Environmental Services,OPERATIONS SERVICE,1 RIVERSIDE,635.00
25/02/2013,CORONA ENERGY RETAIL 4 LIMITED,Utilities,OPERATIONS SERVICE,TELEGRAPH HOUSE SERVICE CHARGE ACCOUNT,"3,930.48"
13/03/2013,RECCLESIA LTD,Facilities & Management Services,OPERATIONS SERVICE,NCO BEP,"12,684.00"
13/03/2013,ASTRA SIGNS LTD,Building Construction Materials,OPERATIONS SERVICE,NCO BEP,"6,945.80"
14/03/2013,CDEC LIMITED,Education,OPERATIONS SERVICE,NCO BEP,"40,265.00"
19/03/2013,RPS CONSULTANTS LIMITED,Environmental Services,OPERATIONS SERVICE,NCO BEP,"3,360.00"
20/03/2013,ASTRA SIGNS LTD,Building Construction Materials,OPERATIONS SERVICE,NCO BEP,"2,410.00"
21/03/2013,SIR ROBERT MCALPINE,"Works - Construction, Repair & Maintenance",OPERATIONS SERVICE,NCO BEP,"300,662.17"
25/02/2013,RPS CONSULTANTS LIMITED,Environmental Services,OPERATIONS SERVICE,NCO BEP,"4,443.88"
25/03/2013,RPS CONSULTANTS LIMITED,Environmental Services,OPERATIONS SERVICE,NCO BEP,840.00
26/03/2013,RPS CONSULTANTS LIMITED,Environmental Services,OPERATIONS SERVICE,NCO BEP,"4,443.88"
26/03/2013,RPS CONSULTANTS LIMITED,Environmental Services,OPERATIONS SERVICE,NCO BEP,"3,300.00"
28/02/2013,PINSENT MASONS LLP,Legal Services,OPERATIONS SERVICE,NCO BEP,559.63
28/02/2013,POWERCARE,Cleaning & Janitorial,OPERATIONS SERVICE,CLEANING EQUIPMENT,"2,394.00"
26/02/2013,ROCHDALE MEMORIAL SERVICE,Cemetery & Crematorium,OPERATIONS SERVICE,NEW CEMETERY (ROCHDALE),700.00
25/03/2013,CRAWFORD EQUIPMENT EUROPE,Cemetery & Crematorium,OPERATIONS SERVICE,MERCURY ABATEMENT,"35,245.46"
25/03/2013,CRAWFORD EQUIPMENT EUROPE,Cemetery & Crematorium,PROPERTY AND HIGHWAYS,Rochdale Crematorium - Roof Repairs 312,"3,200.00"
14/03/2013,SHOW OFF MEDIA LTD,Leisure Services,OPERATIONS SERVICE,EQUIPMENT - LEISURE CENTRES,"19,226.02"
20/03/2013,ESCAPE FITNESS LIMITED,Leisure Services,OPERATIONS SERVICE,EQUIPMENT - LEISURE CENTRES,"1,255.20"
21/03/2013,ESCAPE FITNESS LIMITED,Leisure Services,OPERATIONS SERVICE,EQUIPMENT - LEISURE CENTRES,"3,086.50"
06/03/2013,CHILDSCAPE,Social Community Care Supplies & Services,OPERATIONS SERVICE,PLAYGROUND REPLACEMENT EQUIP,"11,187.00"
12/03/2013,CHILDSCAPE,Social Community Care Supplies & Services,OPERATIONS SERVICE,PLAYGROUND REPLACEMENT EQUIP,980.00
20/03/2013,WICKSTEED LEISURE LIMITED            (S),Leisure Services,OPERATIONS SERVICE,PLAYGROUND REPLACEMENT EQUIP,"20,034.65"
25/02/2013,JAMES LAW (CHEMICALS) LIMITED,Cleaning & Janitorial,OPERATIONS SERVICE,MUN. OFFICE  ROCHDALE,745.90
14/03/2013,F NEEDHAM,Catering,OPERATIONS SERVICE,ST VINCENTS,851.91
19/03/2013,RALPH LIVESEY,Unclassifiable,OPERATIONS SERVICE,ROCHDALE TOWN HALL CROFTERS,592.86
19/03/2013,BRAKE BROS FOOD SERVICE LTD,Catering,OPERATIONS SERVICE,LITTLEBOROUGH,642.01
26/03/2013,BRAKE BROS FOOD SERVICE LTD,Catering,OPERATIONS SERVICE,HEYBROOK,505.07
01/03/2013,ACME REFRIDGERATION,Catering,OPERATIONS SERVICE,HARWOOD PARK,"1,010.00"
22/03/2013,F NEEDHAM,Catering,OPERATIONS SERVICE,ST THOMAS MORE,"2,978.00"
04/03/2013,RALPH LIVESEY,Unclassifiable,OPERATIONS SERVICE,ROCHDALE TOWN HALL CROFTERS,730.51
13/03/2013,EMO OIL LIMITED,Utilities,OPERATIONS SERVICE,BOWLEE AND GARDEN MAILSHOP,"5,160.72"
18/03/2013,EMO OIL LIMITED,Utilities,OPERATIONS SERVICE,BOWLEE AND GARDEN MAILSHOP,"5,815.80"
18/03/2013,HENRY ALTY LIMITED,Building Construction Materials,OPERATIONS SERVICE,BOWLEE AND GARDEN MAILSHOP,688.51
21/03/2013,EARLEY ORNAMENTALS LTD,Horticultural,OPERATIONS SERVICE,BOWLEE AND GARDEN MAILSHOP,"2,747.73"
25/02/2013,BODEN & DAVIES LTD,Building Construction Materials,OPERATIONS SERVICE,BOWLEE AND GARDEN MAILSHOP,750.00
27/02/2013,BODEN & DAVIES LTD,Building Construction Materials,OPERATIONS SERVICE,BOWLEE AND GARDEN MAILSHOP,715.50
27/03/2013,EARLEY ORNAMENTALS LTD,Horticultural,OPERATIONS SERVICE,BOWLEE AND GARDEN MAILSHOP,"1,403.05"
18/03/2013,LINK4LIFE (CHARITY),Leisure Services,OPERATIONS SERVICE,RUGBY WORLD CUP 2013,664.00
07/03/2013,CHUBB ELECTRONIC SECURITY SYSTEMS LTD,Facilities & Management Services,OPERATIONS SERVICE,DEPOT GREEN LANE GENERAL,589.01
08/03/2013,SECURECHECK SITE SERVICES LTD,Facilities & Management Services,OPERATIONS SERVICE,DEPOT GREEN LANE GENERAL,"1,184.00"
15/03/2013,SECURECHECK SITE SERVICES LTD,Facilities & Management Services,OPERATIONS SERVICE,DEPOT GREEN LANE GENERAL,"1,184.00"
15/03/2013,M N PROPERTY CONSULTANTS,"Works - Construction, Repair & Maintenance",OPERATIONS SERVICE,DEPOT GREEN LANE GENERAL,"33,750.00"
25/03/2013,SECURECHECK SITE SERVICES LTD,Facilities & Management Services,OPERATIONS SERVICE,DEPOT GREEN LANE GENERAL,"1,184.00"
27/03/2013,SECURECHECK SITE SERVICES LTD,Facilities & Management Services,OPERATIONS SERVICE,DEPOT GREEN LANE GENERAL,"1,184.00"
27/03/2013,SECURECHECK SITE SERVICES LTD,Facilities & Management Services,OPERATIONS SERVICE,DEPOT GREEN LANE GENERAL,"1,184.00"
12/03/2013,EDF ENERGY 1 LIMITED,Utilities,OPERATIONS SERVICE,CEMETERIES GENERAL,769.89
20/03/2013,CARTER FENCING LTD                   (S),Building Construction Materials,OPERATIONS SERVICE,CEMETERIES GENERAL,"2,265.00"
14/03/2013,ANGLIA SIGN CASTING COMPANY LIMITED,Building Construction Materials,OPERATIONS SERVICE,ALL CREMETORIA,964.59
26/02/2013,RAP SPIDERWEB LTD,Facilities & Management Services,OPERATIONS SERVICE,ALL CREMETORIA,640.00
07/03/2013,ISAAC BUTTERWORTH (IRONFOUNDERS) LIMITED,"Works - Construction, Repair & Maintenance",OPERATIONS SERVICE,LANDSCAPE SERVICES,630.00
11/03/2013,ISAAC BUTTERWORTH (IRONFOUNDERS) LIMITED,"Works - Construction, Repair & Maintenance",OPERATIONS SERVICE,LANDSCAPE SERVICES,"1,450.00"
01/03/2013,ARCO GROUP LIMITED,Clothing,OPERATIONS SERVICE,DOMESTIC WASTE,570.00
05/03/2013,ENTERPRISE MANCHESTER,Environmental Services,OPERATIONS SERVICE,DOMESTIC WASTE,940.71
18/03/2013,ENTERPRISE MANCHESTER,Environmental Services,OPERATIONS SERVICE,DOMESTIC WASTE,940.71
25/03/2013,EURO LABEL PRINTERS LIMITED,Facilities & Management Services,OPERATIONS SERVICE,DOMESTIC WASTE,811.00
27/02/2013,HEALTH AND SAFETY EXECUTIVE,Health & Safety�,OPERATIONS SERVICE,DOMESTIC WASTE,"1,376.40"
28/02/2013,CONTAINER MANAGEMENT SERVICES,Transport,OPERATIONS SERVICE,DOMESTIC WASTE,"1,571.00"
07/03/2013,UNITED UTILITIES PLC,Utilities,OPERATIONS SERVICE,STREETS ROCHDALE GENERAL,580.05
07/03/2013,UNITED UTILITIES PLC,Utilities,OPERATIONS SERVICE,STREETS ROCHDALE GENERAL,912.60
07/03/2013,UNITED UTILITIES PLC,Utilities,OPERATIONS SERVICE,STREETS ROCHDALE GENERAL,608.40
27/03/2013,E ON SUSTAINABLE ENERGY,Utilities,OPERATIONS SERVICE,STREETS ROCHDALE GENERAL,"2,156.73"
28/02/2013,REDACTED PERSONAL DATA,Unclassifiable,OPERATIONS SERVICE,STREETS ROCHDALE GENERAL,565.00
05/03/2013,MANTANK ENVIRONMENTAL SERVICES LTD,Environmental Services,OPERATIONS SERVICE,ENFORCEMENT TEAM,960.00
19/03/2013,NO GRAFFITI (MANCHESTER) LTD,Environmental Services,OPERATIONS SERVICE,GRAFFITI TEAM,510.00
28/02/2013,NO GRAFFITI (MANCHESTER) LTD,Environmental Services,OPERATIONS SERVICE,GRAFFITI TEAM,900.00
15/03/2013,BENTLEY TAYLOR TECHNICAL SERVICES,"Works - Construction, Repair & Maintenance",OPERATIONS SERVICE,REVENUE TOWNSHIP,716.40
19/03/2013,ASHWOODS AUTOMOTIVE LTD,Vehicles,OPERATIONS SERVICE,FLEET OP COSTS GROUPED,"19,559.00"
25/02/2013,POST OFFICE COUNTERS LTD,Mail Services�,OPERATIONS SERVICE,FLEET OP COSTS GROUPED,"2,435.00"
25/03/2013,POST OFFICE COUNTERS LTD,Mail Services�,OPERATIONS SERVICE,FLEET OP COSTS GROUPED,"1,720.00"
07/03/2013,A W COLEMAN,Transport,OPERATIONS SERVICE,EDUCATION HOME TO SCHOOL,"3,803.00"
21/03/2013,CASTLEROYLE PRIVATE HIRE,Transport,OPERATIONS SERVICE,EDUCATION HOME TO SCHOOL,"4,020.00"
02/03/2013,ALCO MINI TRAVEL,Transport,OPERATIONS SERVICE,EDUCATION HOME TO SCHOOL,"2,316.00"
02/03/2013,COACH OPTIONS LIMITED,Transport,OPERATIONS SERVICE,EDUCATION HOME TO SCHOOL,"1,320.00"
02/03/2013,MR GARY P DAWSON,Transport,OPERATIONS SERVICE,EDUCATION HOME TO SCHOOL,"1,496.25"
02/03/2013,CHAUFFEUR TRAVEL,Transport,OPERATIONS SERVICE,EDUCATION HOME TO SCHOOL,"1,140.00"
02/03/2013,JADE TRAVEL,Transport,OPERATIONS SERVICE,EDUCATION HOME TO SCHOOL,"1,782.75"
02/03/2013,JADE TRAVEL,Transport,OPERATIONS SERVICE,EDUCATION HOME TO SCHOOL,"1,770.00"
07/03/2013,ANDY HARROP,Transport,OPERATIONS SERVICE,EDUCATION HOME TO SCHOOL,"1,770.00"
07/03/2013,ALMIN TRAVEL,Transport,OPERATIONS SERVICE,EDUCATION HOME TO SCHOOL,"1,500.00"
07/03/2013,S P TRAVEL,Transport,OPERATIONS SERVICE,EDUCATION HOME TO SCHOOL,"1,350.00"
07/03/2013,D K TRAVEL,Transport,OPERATIONS SERVICE,EDUCATION HOME TO SCHOOL,"1,395.00"
07/03/2013,D K TRAVEL,Transport,OPERATIONS SERVICE,EDUCATION HOME TO SCHOOL,"2,430.00"
07/03/2013,DALE INDUSTRIAL SERVICES LIMITED,Transport,OPERATIONS SERVICE,EDUCATION HOME TO SCHOOL,"12,613.00"
07/03/2013,CARLTON MINIBUSES,Transport,OPERATIONS SERVICE,EDUCATION HOME TO SCHOOL,"2,970.00"
07/03/2013,CLUB CLASS TRAVEL,Transport,OPERATIONS SERVICE,EDUCATION HOME TO SCHOOL,"1,338.75"
07/03/2013,ROCHDALE COMMUNITY TRANSPORT,Transport,OPERATIONS SERVICE,EDUCATION HOME TO SCHOOL,750.00
07/03/2013,ROCHDALE COMMUNITY TRANSPORT,Transport,OPERATIONS SERVICE,EDUCATION HOME TO SCHOOL,"1,050.00"
07/03/2013,ROCHDALE COMMUNITY TRANSPORT,Transport,OPERATIONS SERVICE,EDUCATION HOME TO SCHOOL,"1,350.00"
07/03/2013,ROYTON MINIBUSES LIMITED,Transport,OPERATIONS SERVICE,EDUCATION HOME TO SCHOOL,"1,800.00"
07/03/2013,CAR 2000 (HEYWOOD) LLP,Transport,OPERATIONS SERVICE,EDUCATION HOME TO SCHOOL,930.00
07/03/2013,CAR 2000 (HEYWOOD) LLP,Transport,OPERATIONS SERVICE,EDUCATION HOME TO SCHOOL,"1,653.75"
07/03/2013,A & W DAWSON,Transport,OPERATIONS SERVICE,EDUCATION HOME TO SCHOOL,500.00
07/03/2013,CAR 2000 (HEYWOOD) LLP,Transport,OPERATIONS SERVICE,EDUCATION HOME TO SCHOOL,820.00
07/03/2013,CAR 2000 (HEYWOOD) LLP,Transport,OPERATIONS SERVICE,EDUCATION HOME TO SCHOOL,720.00
11/03/2013,COZY CARS,Transport,OPERATIONS SERVICE,EDUCATION HOME TO SCHOOL,600.00
11/03/2013,COZY CARS,Transport,OPERATIONS SERVICE,EDUCATION HOME TO SCHOOL,900.00
11/03/2013,COZY CARS,Transport,OPERATIONS SERVICE,EDUCATION HOME TO SCHOOL,600.00
11/03/2013,H A BURROW,Transport,OPERATIONS SERVICE,EDUCATION HOME TO SCHOOL,630.00
11/03/2013,H A BURROW,Transport,OPERATIONS SERVICE,EDUCATION HOME TO SCHOOL,690.00
12/03/2013,MR J P O`HARA,Transport,OPERATIONS SERVICE,EDUCATION HOME TO SCHOOL,"1,488.45"
12/03/2013,MR J P O`HARA,Transport,OPERATIONS SERVICE,EDUCATION HOME TO SCHOOL,"1,402.50"
12/03/2013,MR J P O`HARA,Transport,OPERATIONS SERVICE,EDUCATION HOME TO SCHOOL,"1,488.45"
17/03/2013,CONNECT CARS (MIDDLETON) LIMITED,Transport,OPERATIONS SERVICE,EDUCATION HOME TO SCHOOL,840.50
17/03/2013,CONNECT CARS (MIDDLETON) LIMITED,Transport,OPERATIONS SERVICE,EDUCATION HOME TO SCHOOL,845.00
17/03/2013,M24 TRAVEL,Transport,OPERATIONS SERVICE,EDUCATION HOME TO SCHOOL,"2,000.00"
18/03/2013,TARIQ CHOHAN,Transport,OPERATIONS SERVICE,EDUCATION HOME TO SCHOOL,"1,708.00"
21/03/2013,JADE TRAVEL,Transport,OPERATIONS SERVICE,EDUCATION HOME TO SCHOOL,"1,813.80"
21/03/2013,ROYAL CARS,Transport,OPERATIONS SERVICE,EDUCATION HOME TO SCHOOL,"2,010.00"
21/03/2013,JADE TRAVEL,Transport,OPERATIONS SERVICE,EDUCATION HOME TO SCHOOL,"1,761.00"
21/03/2013,JADE TRAVEL,Transport,OPERATIONS SERVICE,EDUCATION HOME TO SCHOOL,"1,797.35"
21/03/2013,A & W DAWSON,Transport,OPERATIONS SERVICE,EDUCATION HOME TO SCHOOL,500.00
22/03/2013,CONNECT CARS (MIDDLETON) LIMITED,Transport,OPERATIONS SERVICE,EDUCATION HOME TO SCHOOL,844.50
25/03/2013,TOWN TAXI CLEARING LIMITED,Transport,OPERATIONS SERVICE,EDUCATION HOME TO SCHOOL,500.00
17/03/2013,PAUL BROADBENT,Unclassifiable,OPERATIONS SERVICE,SS AMBULANCE TRANSPORT,680.00
13/03/2013,THOMAS WRIGHT/THORITE GROUP LIMITED,Building Construction Materials,OPERATIONS SERVICE,FLEET MAINTENANCE,581.11
25/02/2013,NORTH WEST TIPPERS LTD,Environmental Services,OPERATIONS SERVICE,FLEET MAINTENANCE,"5,900.00"
15/03/2013,RESTORE PLC,Environmental Services,SUPPORT FOR LEARNING,MAN & ADMIN  MISC INCOME & EXPENDITURE,641.30
18/03/2013,B & C BEAL CONSULTANCY LTD,Education,SUPPORT FOR LEARNING,GOVERNORS SERVICES,779.70
11/03/2013,TSL EDUCATION LIMITED,Education,SUPPORT FOR LEARNING,PERSONNEL,"2,352.00"
13/03/2013,HEAD SUPPORT LIMITED,Education,SUPPORT FOR LEARNING,PERSONNEL,"2,400.00"
25/03/2013,G W THEATRE COMPANY LIMITED,Leisure Services,SUPPORT FOR LEARNING,ADVISORY SERVICE  GENERAL,"5,000.00"
04/03/2013,ROCHDALE COMMUNITY TRANSPORT,Transport,SUPPORT FOR LEARNING,GENERAL BOROUGHWIDE YOUTH SERVICE,700.00
06/03/2013,ATLANTIC EXECUTIVE TRAVEL LIMITED,Transport,SUPPORT FOR LEARNING,GENERAL BOROUGHWIDE YOUTH SERVICE,680.00
13/03/2013,REDACTED PERSONAL DATA,Unclassifiable,SUPPORT FOR LEARNING,SPONSORED DAY CARE,"1,088.00"
22/03/2013,SEEROS PRIVATE DAY NURSURY,Social Community Care Supplies & Services,SUPPORT FOR LEARNING,SPONSORED DAY CARE,603.67
22/03/2013,REDACTED PERSONAL DATA,Unclassifiable,SUPPORT FOR LEARNING,SPONSORED DAY CARE,596.20
22/03/2013,REDACTED PERSONAL DATA,Unclassifiable,SUPPORT FOR LEARNING,SPONSORED DAY CARE,570.45
22/03/2013,COTS AND TOTS,Social Community Care Supplies & Services,SUPPORT FOR LEARNING,SPONSORED DAY CARE,640.00
26/02/2013,REDACTED PERSONAL DATA,Unclassifiable,SUPPORT FOR LEARNING,DISABILITIES ADMIN TEAM,"3,090.00"
08/03/2013,RESPITE NORTH WEST LIMITED,Social Community Care Supplies & Services,SUPPORT FOR LEARNING,DISABILITIES RESPITE CARE,575.32
08/03/2013,RESPITE NORTH WEST LIMITED,Social Community Care Supplies & Services,SUPPORT FOR LEARNING,DISABILITIES RESPITE CARE,575.32
08/03/2013,RESPITE NORTH WEST LIMITED,Social Community Care Supplies & Services,SUPPORT FOR LEARNING,DISABILITIES RESPITE CARE,681.30
08/03/2013,RESPITE NORTH WEST LIMITED,Social Community Care Supplies & Services,SUPPORT FOR LEARNING,DISABILITIES RESPITE CARE,"1,130.56"
08/03/2013,RESPITE NORTH WEST LIMITED,Social Community Care Supplies & Services,SUPPORT FOR LEARNING,DISABILITIES RESPITE CARE,"3,028.00"
08/03/2013,RESPITE NORTH WEST LIMITED,Social Community Care Supplies & Services,SUPPORT FOR LEARNING,DISABILITIES RESPITE CARE,"1,165.78"
08/03/2013,PULSE HEALTHCARE LTD,Human Resources,SUPPORT FOR LEARNING,DISABILITIES RESPITE CARE,"2,724.96"
08/03/2013,PULSE HEALTHCARE LTD,Human Resources,SUPPORT FOR LEARNING,DISABILITIES RESPITE CARE,"2,724.96"
08/03/2013,PULSE HEALTHCARE LTD,Human Resources,SUPPORT FOR LEARNING,DISABILITIES RESPITE CARE,"2,515.80"
08/03/2013,PULSE HEALTHCARE LTD,Human Resources,SUPPORT FOR LEARNING,DISABILITIES RESPITE CARE,"2,515.80"
08/03/2013,PULSE HEALTHCARE LTD,Human Resources,SUPPORT FOR LEARNING,DISABILITIES RESPITE CARE,"2,515.80"
08/03/2013,PULSE HEALTHCARE LTD,Human Resources,SUPPORT FOR LEARNING,DISABILITIES RESPITE CARE,"2,724.96"
08/03/2013,RESPITE NORTH WEST LIMITED,Social Community Care Supplies & Services,SUPPORT FOR LEARNING,DISABILITIES RESPITE CARE,817.56
08/03/2013,EDEN CARE (NORTH WEST) LTD,Social Community Care Supplies & Services,SUPPORT FOR LEARNING,DISABILITIES RESPITE CARE,660.00
08/03/2013,ROUTES HEALTHCARE,Social Community Care Supplies & Services,SUPPORT FOR LEARNING,DISABILITIES RESPITE CARE,"1,011.50"
08/03/2013,ROUTES HEALTHCARE,Social Community Care Supplies & Services,SUPPORT FOR LEARNING,DISABILITIES RESPITE CARE,840.00
08/03/2013,EDEN CARE (NORTH WEST) LTD,Social Community Care Supplies & Services,SUPPORT FOR LEARNING,DISABILITIES RESPITE CARE,"1,975.00"
12/03/2013,PULSE HEALTHCARE LTD,Human Resources,SUPPORT FOR LEARNING,DISABILITIES RESPITE CARE,"2,724.96"
12/03/2013,PULSE HEALTHCARE LTD,Human Resources,SUPPORT FOR LEARNING,DISABILITIES RESPITE CARE,"2,515.80"
22/03/2013,PULSE HEALTHCARE LTD,Human Resources,SUPPORT FOR LEARNING,DISABILITIES RESPITE CARE,"2,724.96"
22/03/2013,ROUTES HEALTHCARE,Social Community Care Supplies & Services,SUPPORT FOR LEARNING,DISABILITIES RESPITE CARE,884.00
26/03/2013,PULSE HEALTHCARE LTD,Human Resources,SUPPORT FOR LEARNING,DISABILITIES RESPITE CARE,"2,515.80"
28/02/2013,EDEN CARE (NORTH WEST) LTD,Social Community Care Supplies & Services,SUPPORT FOR LEARNING,DISABILITIES RESPITE CARE,660.00
28/02/2013,RESPITE NORTH WEST LIMITED,Social Community Care Supplies & Services,SUPPORT FOR LEARNING,DISABILITIES RESPITE CARE,635.88
28/02/2013,RESPITE NORTH WEST LIMITED,Social Community Care Supplies & Services,SUPPORT FOR LEARNING,DISABILITIES RESPITE CARE,"2,664.34"
28/02/2013,CATHOLIC CHILDRENS RESCUE SOCIETY,Social Community Care Supplies & Services,SUPPORT FOR LEARNING,DISABILITIES RESPITE CARE,841.63
28/02/2013,EDEN CARE (NORTH WEST) LTD,Social Community Care Supplies & Services,SUPPORT FOR LEARNING,DISABILITIES RESPITE CARE,671.00
28/02/2013,RESPITE NORTH WEST LIMITED,Social Community Care Supplies & Services,SUPPORT FOR LEARNING,DISABILITIES RESPITE CARE,"1,120.36"
28/02/2013,RESPITE NORTH WEST LIMITED,Social Community Care Supplies & Services,SUPPORT FOR LEARNING,DISABILITIES RESPITE CARE,"1,332.32"
28/02/2013,PULSE HEALTHCARE LTD,Human Resources,SUPPORT FOR LEARNING,DISABILITIES RESPITE CARE,"2,724.96"
28/02/2013,PULSE HEALTHCARE LTD,Human Resources,SUPPORT FOR LEARNING,DISABILITIES RESPITE CARE,"1,797.00"
28/02/2013,RESPITE NORTH WEST LIMITED,Social Community Care Supplies & Services,SUPPORT FOR LEARNING,DISABILITIES RESPITE CARE,817.56
28/02/2013,RESPITE NORTH WEST LIMITED,Social Community Care Supplies & Services,SUPPORT FOR LEARNING,DISABILITIES RESPITE CARE,787.28
28/02/2013,RESPITE NORTH WEST LIMITED,Social Community Care Supplies & Services,SUPPORT FOR LEARNING,DISABILITIES RESPITE CARE,605.60
28/02/2013,RESPITE NORTH WEST LIMITED,Social Community Care Supplies & Services,SUPPORT FOR LEARNING,DISABILITIES RESPITE CARE,"1,090.08"
04/03/2013,MOSAIC COMMUNITY CARE LTD,Financial Services,SUPPORT FOR LEARNING,SHORT BREAKS REVENUE,"11,023.88"
08/03/2013,EDEN CARE (NORTH WEST) LTD,Social Community Care Supplies & Services,SUPPORT FOR LEARNING,SHORT BREAKS REVENUE,660.00
08/03/2013,RESPITE NORTH WEST LIMITED,Social Community Care Supplies & Services,SUPPORT FOR LEARNING,SHORT BREAKS REVENUE,726.72
20/03/2013,THE TOGETHER TRUST,Social Community Care Supplies & Services,SUPPORT FOR LEARNING,SHORT BREAKS REVENUE,"2,705.47"
20/03/2013,SKYLIGHT CIRCUS ARTS,Leisure Services,SUPPORT FOR LEARNING,SHORT BREAKS REVENUE,816.42
20/03/2013,RADPAC,Financial Services,SUPPORT FOR LEARNING,SHORT BREAKS REVENUE,"2,055.08"
20/03/2013,LINK4LIFE (CHARITY),Leisure Services,SUPPORT FOR LEARNING,SHORT BREAKS REVENUE,"4,291.67"
20/03/2013,LINK4LIFE (CHARITY),Leisure Services,SUPPORT FOR LEARNING,SHORT BREAKS REVENUE,"4,083.33"
20/03/2013,THE NATIONAL AUTISTIC SOCIETY,Social Community Care Supplies & Services,SUPPORT FOR LEARNING,SHORT BREAKS REVENUE,"2,083.33"
20/03/2013,ROCHDALE GATEWAY LEISURE LIMITED,Social Community Care Supplies & Services,SUPPORT FOR LEARNING,SHORT BREAKS REVENUE,"1,718.33"
20/03/2013,SHINING STARS SWIMMING SCHEME,Leisure Services,SUPPORT FOR LEARNING,SHORT BREAKS REVENUE,"2,832.50"
20/03/2013,RAINBOW SCENT,Unclassifiable,SUPPORT FOR LEARNING,SHORT BREAKS REVENUE,"2,583.33"
20/03/2013,CROSSROADS CARE IN GREATER MANCHESTER,Financial Services,SUPPORT FOR LEARNING,SHORT BREAKS REVENUE,"2,700.00"
07/03/2013,PHS GROUP PLC,Cleaning & Janitorial,SUPPORT FOR LEARNING,BRIDGEFOLD LODGE,764.40
26/02/2013,CHEVRON LIMITED,Vehicles,SUPPORT FOR LEARNING,BRIDGEFOLD LODGE,"2,369.85"
26/02/2013,CHEVRON LIMITED,Vehicles,SUPPORT FOR LEARNING,BRIDGEFOLD LODGE,"1,785.13"
04/03/2013,PENNINE CARE NHS TRUST,Social Community Care Supplies & Services,SUPPORT FOR LEARNING,CASTLETON LANGUAGE UNIT,"1,566.96"
12/03/2013,REDACTED PERSONAL DATA,Unclassifiable,SUPPORT FOR LEARNING,NURSERY EDUCATION GRANT  3YR OLDS,914.10
21/03/2013,WARDLE CHILDCARE PARTNERSHIP,Social Community Care Supplies & Services,SUPPORT FOR LEARNING,NURSERY EDUCATION GRANT  3YR OLDS,676.83
21/03/2013,ROLY POLEYS PRIVATE DAY NURSERY,Social Community Care Supplies & Services,SUPPORT FOR LEARNING,NURSERY EDUCATION GRANT  3YR OLDS,602.25
21/03/2013,NATURES NURSERY (HUDDERSFIELD) LTD,Horticultural,SUPPORT FOR LEARNING,NURSERY EDUCATION GRANT  3YR OLDS,"1,184.70"
21/03/2013,KR INVEST LTD,Financial Services,SUPPORT FOR LEARNING,NURSERY EDUCATION GRANT  3YR OLDS,590.70
21/03/2013,EDU PLAY LIMITED,Social Community Care Supplies & Services,SUPPORT FOR LEARNING,NURSERY EDUCATION GRANT  3YR OLDS,"6,849.44"
21/03/2013,CRECHE N CO LIMITED,Social Community Care Supplies & Services,SUPPORT FOR LEARNING,NURSERY EDUCATION GRANT  3YR OLDS,597.30
21/03/2013,WENDYS,Social Community Care Supplies & Services,SUPPORT FOR LEARNING,NURSERY EDUCATION GRANT  3YR OLDS,"1,757.25"
26/02/2013,ROLY POLEYS PRIVATE DAY NURSERY,Social Community Care Supplies & Services,SUPPORT FOR LEARNING,NURSERY EDUCATION GRANT  3YR OLDS,"7,522.65"
26/02/2013,RIGHT START DAY NURSERIES LTD,Social Community Care Supplies & Services,SUPPORT FOR LEARNING,NURSERY EDUCATION GRANT  3YR OLDS,"3,811.50"
26/02/2013,COSY TOES CHILDCARE LIMITED,Social Community Care Supplies & Services,SUPPORT FOR LEARNING,NURSERY EDUCATION GRANT  3YR OLDS,"7,797.24"
26/02/2013,CASTLETON COMMUNITY PLAYGROUP,Social Community Care Supplies & Services,SUPPORT FOR LEARNING,NURSERY EDUCATION GRANT  3YR OLDS,"2,006.40"
26/02/2013,COTS AND TOTS,Social Community Care Supplies & Services,SUPPORT FOR LEARNING,NURSERY EDUCATION GRANT  3YR OLDS,"1,874.40"
26/02/2013,CRECHE N CO LIMITED,Social Community Care Supplies & Services,SUPPORT FOR LEARNING,NURSERY EDUCATION GRANT  3YR OLDS,"6,443.60"
26/02/2013,CRESCENT DAY NURSERY,Social Community Care Supplies & Services,SUPPORT FOR LEARNING,NURSERY EDUCATION GRANT  3YR OLDS,732.27
26/02/2013,FISHERFIELD FARM NURSERY,Social Community Care Supplies & Services,SUPPORT FOR LEARNING,NURSERY EDUCATION GRANT  3YR OLDS,"6,602.31"
26/02/2013,REDACTED PERSONAL DATA,Unclassifiable,SUPPORT FOR LEARNING,NURSERY EDUCATION GRANT  3YR OLDS,665.28
26/02/2013,KASHMIR YOUTH PROJECT,Social Community Care Supplies & Services,SUPPORT FOR LEARNING,NURSERY EDUCATION GRANT  3YR OLDS,"1,732.50"
26/02/2013,REDACTED PERSONAL DATA,Unclassifiable,SUPPORT FOR LEARNING,NURSERY EDUCATION GRANT  3YR OLDS,548.46
26/02/2013,NATURES NURSERY (HUDDERSFIELD) LTD,Horticultural,SUPPORT FOR LEARNING,NURSERY EDUCATION GRANT  3YR OLDS,"8,422.14"
26/02/2013,NEWBOLD COMMUNITY PLAYGROUP,Social Community Care Supplies & Services,SUPPORT FOR LEARNING,NURSERY EDUCATION GRANT  3YR OLDS,"6,168.00"
26/02/2013,SEEROS PRIVATE DAY NURSURY,Social Community Care Supplies & Services,SUPPORT FOR LEARNING,NURSERY EDUCATION GRANT  3YR OLDS,"7,145.49"
26/02/2013,KR INVEST LTD,Financial Services,SUPPORT FOR LEARNING,NURSERY EDUCATION GRANT  3YR OLDS,"7,281.72"
26/02/2013,REDACTED PERSONAL DATA,Unclassifiable,SUPPORT FOR LEARNING,NURSERY EDUCATION GRANT  3YR OLDS,639.87
26/02/2013,THE APPLE TREE PRIVATE DAY NURSERY,Social Community Care Supplies & Services,SUPPORT FOR LEARNING,NURSERY EDUCATION GRANT  3YR OLDS,"5,230.50"
26/02/2013,THE OLD LIBRARY PDN,Unclassifiable,SUPPORT FOR LEARNING,NURSERY EDUCATION GRANT  3YR OLDS,"5,119.40"
26/02/2013,COSY TOES CHILDCARE LIMITED,Social Community Care Supplies & Services,SUPPORT FOR LEARNING,NURSERY EDUCATION GRANT  3YR OLDS,"5,761.95"
26/02/2013,WARDLE CHILDCARE PARTNERSHIP,Social Community Care Supplies & Services,SUPPORT FOR LEARNING,NURSERY EDUCATION GRANT  3YR OLDS,"2,513.94"
26/02/2013,WENDYS,Social Community Care Supplies & Services,SUPPORT FOR LEARNING,NURSERY EDUCATION GRANT  3YR OLDS,"6,560.40"
17/03/2013,PROBRAND LIMITED,Information Communication Technology,SUPPORT FOR LEARNING,HEARING IMPAIRED SUPPORT,721.90
20/03/2013,PHONAK GROUP LIMITED,Medical,SUPPORT FOR LEARNING,HEARING IMPAIRED SUPPORT,"1,410.00"
25/03/2013,PHONAK GROUP LIMITED,Medical,SUPPORT FOR LEARNING,HEARING IMPAIRED SUPPORT,"1,020.00"
26/03/2013,PHONAK GROUP LIMITED,Medical,SUPPORT FOR LEARNING,HEARING IMPAIRED SUPPORT,"4,050.00"
06/03/2013,THE ACE CENTRE NORTH,Unclassifiable,SUPPORT FOR LEARNING,RCAT - SEN,"1,800.00"
06/03/2013,PROBRAND LIMITED,Information Communication Technology,SUPPORT FOR LEARNING,RCAT - SEN,"1,017.69"
12/03/2013,PROBRAND LIMITED,Information Communication Technology,SUPPORT FOR LEARNING,RCAT - SEN,"1,347.77"
14/03/2013,LIBERATOR LIMITED,Human Resources,SUPPORT FOR LEARNING,RCAT - SEN,"9,995.00"
17/03/2013,MOUNTS & MORE LIMITED,Facilities & Management Services,SUPPORT FOR LEARNING,RCAT - SEN,510.00
17/03/2013,INCLUSIVE TECHNOLOGY LTD,Information Communication Technology,SUPPORT FOR LEARNING,RCAT - SEN,"3,745.88"
19/03/2013,INCLUSIVE TECHNOLOGY LTD,Information Communication Technology,SUPPORT FOR LEARNING,RCAT - SEN,570.00
19/03/2013,INCLUSIVE TECHNOLOGY LTD,Information Communication Technology,SUPPORT FOR LEARNING,RCAT - SEN,"1,347.00"
08/03/2013,PENNINE CARE IN PATIENT SERVICES PRIORY,Medical,SUPPORT FOR LEARNING,HOSPITAL TUITION,"3,325.00"
21/03/2013,PENNINE CARE IN PATIENT SERVICES PRIORY,Medical,SUPPORT FOR LEARNING,HOSPITAL TUITION,"2,450.00"
21/03/2013,PENNINE CARE IN PATIENT SERVICES PRIORY,Medical,SUPPORT FOR LEARNING,HOSPITAL TUITION,"3,150.00"
21/03/2013,PENNINE CARE IN PATIENT SERVICES PRIORY,Medical,SUPPORT FOR LEARNING,HOSPITAL TUITION,"2,450.00"
21/03/2013,PENNINE CARE IN PATIENT SERVICES PRIORY,Medical,SUPPORT FOR LEARNING,HOSPITAL TUITION,"1,925.00"
05/03/2013,PENNINE CARE NHS TRUST,Social Community Care Supplies & Services,SUPPORT FOR LEARNING,SEN EARLY YEARS,"4,275.00"
19/03/2013,BETTER CHOICES LTD,Social Community Care Supplies & Services,SUPPORT FOR LEARNING,ROCHDALE CONNEXTIONS PARTNERSHIP-Base,"83,333.33"
13/03/2013,THE ACE CENTRE NORTH,Unclassifiable,SUPPORT FOR LEARNING,RANS  MANAGEMENT,600.00
27/02/2013,PROBRAND LIMITED,Information Communication Technology,SUPPORT FOR LEARNING,RANS  MANAGEMENT,721.90
11/03/2013,SPACEKRAFT LIMITED,Social Community Care Supplies & Services,SUPPORT FOR LEARNING,VISUALLY IMPAIRED SUPPORT,639.00
27/02/2013,PENNINE CARE NHS TRUST,Social Community Care Supplies & Services,SUPPORT FOR LEARNING,ICAN,"4,202.00"
25/03/2013,CHRIS PAULSON CYCLES,Vehicles,SUPPORT FOR LEARNING,MIDDLETON - EXTERNAL FUNDED PROJECTS,516.47
22/03/2013,ATLANTIC EXECUTIVE TRAVEL LIMITED,Transport,SUPPORT FOR LEARNING,HEYWOOD - EXTERNAL FUNDED PROJECTS,700.00
26/03/2013,FPA,Medical,SUPPORT FOR LEARNING,YOUTH EMPOWERMENT - EXT FUNDED PROJECTS,572.52
27/03/2013,ASCO EDUCATIONAL SUPPLIES  LIMITED,Education,SUPPORT FOR LEARNING,CASTLEMERE PLAYGROUP,800.00
20/03/2013,CLOVERLEAF CHILDCARE,Social Community Care Supplies & Services,SUPPORT FOR LEARNING,FAMILY LITERACY PROJECT,"1,300.00"
17/03/2013,PEACEMAKER,Social Community Care Supplies & Services,SUPPORT FOR LEARNING,EMA CORE TEAM,"4,166.67"
26/02/2013,COMMUNITEA CIC,Catering,SUPPORT FOR LEARNING,EMA CORE TEAM,"3,000.00"
07/03/2013,PJS MUSIC SERVICES,Education,SUPPORT FOR LEARNING,SCHOOLS BUSINESS UNIT,"2,528.00"
07/03/2013,PJS MUSIC SERVICES,Education,SUPPORT FOR LEARNING,SCHOOLS BUSINESS UNIT,"2,550.00"
11/03/2013,NORTHENDEN TRAVEL,Human Resources,SUPPORT FOR LEARNING,MUSIC PERFORMANCE TRIPS HOME & ABROAD,"2,146.67"
05/03/2013,LEGGETT PSYCHOLOGY LTD,Medical,SUPPORT FOR LEARNING,EDUCATIONAL PSYCHOLOGY SERVICE GENERAL,"2,000.00"
26/03/2013,STOCKPORT NHS FOUNDATION TRUST,Medical,SUPPORT FOR LEARNING,EDUCATIONAL PSYCHOLOGY SERVICE GENERAL,"4,260.00"
13/03/2013,CORONA ENERGY RETAIL 4 LIMITED,Utilities,SUPPORT FOR LEARNING,NEWBOLD CHILDRENS CENTRE,567.08
25/02/2013,CORONA ENERGY RETAIL 4 LIMITED,Utilities,SUPPORT FOR LEARNING,NEWBOLD CHILDRENS CENTRE,749.77
27/03/2013,CHUBB ELECTRONIC SECURITY SYSTEMS LTD,Facilities & Management Services,SUPPORT FOR LEARNING,NEWBOLD CHILDRENS CENTRE,"1,029.41"
28/02/2013,TAMARACK OUTDOORS,Leisure Services,SUPPORT FOR LEARNING,OUTDOOR EDUCATION ADVISER,"1,281.66"
12/03/2013,AXIOM EDUCATION (ROCHDALE) LIMITED,Education,SUPPORT FOR LEARNING,PFI CONTRACT GENERAL,"2,311.09"
14/03/2013,AXIOM EDUCATION (ROCHDALE) LIMITED,Education,SUPPORT FOR LEARNING,PFI CONTRACT GENERAL,"647,387.37"
18/03/2013,AXIOM EDUCATION (ROCHDALE) LIMITED,Education,SUPPORT FOR LEARNING,PFI CONTRACT GENERAL,"16,467.35"
07/03/2013,INSPIREDSPACES ROCHDALE PROJECT CO1 LTD,"Works - Construction, Repair & Maintenance",SUPPORT FOR LEARNING,HOLLINGWORTH PFI,"304,756.16"
08/03/2013,CROSSROADS CARE IN GREATER MANCHESTER,Financial Services,SUPPORT FOR LEARNING,CROSSROADS,594.00
08/03/2013,CROSSROADS CARE IN GREATER MANCHESTER,Financial Services,SUPPORT FOR LEARNING,CROSSROADS,"2,598.75"
21/03/2013,CHESHIRE EAST PUPIL REFERRAL UNIT,Education,SUPPORT FOR LEARNING,LOOKED AFTER CHILDREN PUPIL PREMIUM,623.00
19/03/2013,GCI COM,Information Communication Technology,SUPPORT FOR LEARNING,WAN CONNECTIVITY CHARGES,"1,098.52"
19/03/2013,INSPIREDSPACES ROCHDALE LTD,"Works - Construction, Repair & Maintenance",SUPPORT FOR LEARNING,WAN CONNECTIVITY CHARGES,"20,473.88"
27/03/2013,ERNST & YOUNG LLP,Financial Services,SUPPORT FOR LEARNING,ACADEMY CONVERSION COSTS,"21,656.80"
13/03/2013,LAPSILLE LTD,Education,SUPPORT FOR LEARNING,SEND PATHFINDER,"2,700.00"
19/03/2013,LAPSILLE LTD,Education,SUPPORT FOR LEARNING,SEND PATHFINDER,"4,725.00"
21/03/2013,MEADOWFIELD COMMUNITY CENTRE,Financial Services,SUPPORT FOR LEARNING,OUTREACH AND HOME VISITING,"4,500.00"
21/03/2013,ROCHDALE & DIST CITIZENS ADVICE BUREAU,Social Community Care Supplies & Services,SUPPORT FOR LEARNING,SUPPORT FOR FAMILIES,"8,001.00"
21/03/2013,HOME-START ROCHDALE BOROUGH,Social Community Care Supplies & Services,SUPPORT FOR LEARNING,SUPPORT FOR FAMILIES,"10,000.00"
20/03/2013,PENNINE CARE NHS TRUST,Social Community Care Supplies & Services,SUPPORT FOR LEARNING,PRIMARY AND COM HEALTH,"2,500.00"
21/03/2013,THE PENNINE ACUTE HOSPITALS NHS TRUST,Medical,SUPPORT FOR LEARNING,PRIMARY AND COM HEALTH,"18,375.00"
21/03/2013,THE PENNINE ACUTE HOSPITALS NHS TRUST,Medical,SUPPORT FOR LEARNING,PRIMARY AND COM HEALTH,"18,375.00"
21/03/2013,THE PENNINE ACUTE HOSPITALS NHS TRUST,Medical,SUPPORT FOR LEARNING,PRIMARY AND COM HEALTH,"18,375.00"
21/03/2013,THE PENNINE ACUTE HOSPITALS NHS TRUST,Medical,SUPPORT FOR LEARNING,PRIMARY AND COM HEALTH,"18,375.00"
12/03/2013,REDACTED PERSONAL DATA,Unclassifiable,SUPPORT FOR LEARNING,2 YR OLD PILOT,742.50
21/03/2013,THE APPLE TREE PRIVATE DAY NURSERY,Social Community Care Supplies & Services,SUPPORT FOR LEARNING,2 YR OLD PILOT,742.50
21/03/2013,KASHMIR YOUTH PROJECT,Social Community Care Supplies & Services,SUPPORT FOR LEARNING,2 YR OLD PILOT,742.50
21/03/2013,CRECHE N CO LIMITED,Social Community Care Supplies & Services,SUPPORT FOR LEARNING,2 YR OLD PILOT,742.50
26/02/2013,REDACTED PERSONAL DATA,Unclassifiable,SUPPORT FOR LEARNING,2 YR OLD PILOT,594.00
26/02/2013,KASHMIR YOUTH PROJECT,Social Community Care Supplies & Services,SUPPORT FOR LEARNING,2 YR OLD PILOT,"1,188.00"
26/02/2013,NEWBOLD COMMUNITY PLAYGROUP,Social Community Care Supplies & Services,SUPPORT FOR LEARNING,2 YR OLD PILOT,742.50
26/02/2013,ROLY POLEYS PRIVATE DAY NURSERY,Social Community Care Supplies & Services,SUPPORT FOR LEARNING,2 YR OLD PILOT,"1,930.50"
26/02/2013,SEEROS PRIVATE DAY NURSURY,Social Community Care Supplies & Services,SUPPORT FOR LEARNING,2 YR OLD PILOT,"2,376.00"
26/02/2013,COSY TOES CHILDCARE LIMITED,Social Community Care Supplies & Services,SUPPORT FOR LEARNING,2 YR OLD PILOT,"1,188.00"
26/02/2013,REDACTED PERSONAL DATA,Unclassifiable,SUPPORT FOR LEARNING,2 YR OLD PILOT,594.00
26/02/2013,CASTLETON COMMUNITY PLAYGROUP,Social Community Care Supplies & Services,SUPPORT FOR LEARNING,2 YR OLD PILOT,594.00
26/02/2013,CLOVERLEAF CHILDCARE,Social Community Care Supplies & Services,SUPPORT FOR LEARNING,2 YR OLD PILOT,"2,227.50"
26/02/2013,CRECHE N CO LIMITED,Social Community Care Supplies & Services,SUPPORT FOR LEARNING,2 YR OLD PILOT,"1,856.25"
26/02/2013,CRESCENT DAY NURSERY,Social Community Care Supplies & Services,SUPPORT FOR LEARNING,2 YR OLD PILOT,891.00
27/02/2013,RIGHT START DAY NURSERIES LTD,Social Community Care Supplies & Services,SUPPORT FOR LEARNING,2 YR OLD PILOT,742.50
05/03/2013,HEALTH & SAFETY SOLUTIONS (NW) LTD,Health & Safety�,SUPPORT FOR LEARNING,GENERAL SURE START TRAINING,759.80
12/03/2013,S C ALCHEMY TRAINING & DEVELOPMENT LTD,Human Resources,SUPPORT FOR LEARNING,GENERAL SURE START TRAINING,950.00
18/03/2013,HEALTH & SAFETY SOLUTIONS (NW) LTD,Health & Safety�,SUPPORT FOR LEARNING,GENERAL SURE START TRAINING,524.00
12/03/2013,ROCHDALE PLAYGROUP ASSOCIATION,Financial Services,SUPPORT FOR LEARNING,CHILDCARE DEVELOPMENT TEAM,"2,000.00"
25/03/2013,OPEN OBJECTS SOFTWARE LTD,Information Communication Technology,SUPPORT FOR LEARNING,MANAGEMENT,"3,500.00"
01/03/2013,FPA,Medical,SUPPORT FOR LEARNING,HEY MIDD ROCH PCT FUNDING,594.00
12/03/2013,EDF ENERGY 1 LIMITED,Utilities,SUPPORT FOR LEARNING,LITTLEBOROUGH CAMPUS,"2,770.77"
20/03/2013,PROMOTA LOGO,Facilities & Management Services,SUPPORT FOR LEARNING,ROCHDALE NORTH - EXT FUNDED PROJECTS,500.00
13/03/2013,REDACTED PERSONAL DATA,Unclassifiable,SUPPORT FOR LEARNING,MODERATION / ASSESSMENT EYFS,"3,125.00"
13/03/2013,REDACTED PERSONAL DATA,Unclassifiable,SUPPORT FOR LEARNING,MODERATION / ASSESSMENT EYFS,"1,400.00"
26/02/2013,REDACTED PERSONAL DATA,Unclassifiable,SUPPORT FOR LEARNING,MODERATION / ASSESSMENT EYFS,"3,175.00"
20/03/2013,BRADSHAWS BUS & COACH,Human Resources,SUPPORT FOR LEARNING,CLC RUNNING COSTS,610.00
22/03/2013,KELWAY (UK) LIMITED,Information Communication Technology,SUPPORT FOR LEARNING,CLC RUNNING COSTS,837.00
26/02/2013,BRADSHAWS BUS & COACH,Human Resources,SUPPORT FOR LEARNING,CLC RUNNING COSTS,"2,125.00"
18/03/2013,GOOD2GO,Education,SUPPORT FOR LEARNING,DSG FUNDING 14-19 ACTIVITIES,"5,436.00"
27/02/2013,ASPIRE CREATIVE,Facilities & Management Services,SUPPORT FOR LEARNING,DSG FUNDING 14-19 ACTIVITIES,"5,791.34"
25/02/2013,H BELL & SONS (ROCHDALE) LTD,Building Construction Materials,SUPPORT FOR LEARNING,PRIMARY SCHOOL PLACE-PLANNING (MOD10/11),"6,466.00"
27/03/2013,ERNST & YOUNG LLP,Financial Services,SUPPORT FOR LEARNING,BSF DEVELOPMENT (MOD0809),"2,364.92"
28/02/2013,MOTT MACDONALD LIMITED,Human Resources,SUPPORT FOR LEARNING,BSF DEVELOPMENT (MOD0809),"16,476.19"
05/03/2013,J C MILLS & SON LIMITED,Building Construction Materials,SUPPORT FOR LEARNING,RETENTIONS (MODERNISATION 2008-09),560.05
25/02/2013,ROY C SMITH (JOINERS) LIMITED        (S),"Works - Construction, Repair & Maintenance",SUPPORT FOR LEARNING,RETENTIONS (MODERNISATION 2008-09),"4,334.47"
14/03/2013,THOMAS KERSHAW BUILDERS LTD          (S),"Works - Construction, Repair & Maintenance",SUPPORT FOR LEARNING,ADDITIONAL PLACES PENNINE TOWNSHIP,"2,318.75"
18/03/2013,C E S LTD,Education,SUPPORT FOR LEARNING,ADDITIONAL PLACES PENNINE TOWNSHIP,"5,162.83"
25/02/2013,JACKSON JACKSON & SONS LTD,Building Construction Materials,SUPPORT FOR LEARNING,HARWOOD PARK ROOF REPAIR (OLD BUILDING),"3,300.00"
06/03/2013,TOMAX BUILDING SERVICES LTD,"Works - Construction, Repair & Maintenance",SUPPORT FOR LEARNING,Castleton Roof replacement work & rewire,573.91
14/03/2013,J C MILLS & SON LIMITED,Building Construction Materials,SUPPORT FOR LEARNING,St Luke�s Boiler replacement,"6,307.05"
18/03/2013,PLP CONSTRUCTION LIMITED,"Works - Construction, Repair & Maintenance",SUPPORT FOR LEARNING,MIDDLETON PARISH ADDITIONAL PLACES,"79,408.42"
19/03/2013,INSPIREDSPACES ROCHDALE LTD,"Works - Construction, Repair & Maintenance",SUPPORT FOR LEARNING,CARDINAL LANGLEY - DESIGN AND BUILD,"4,830.70"
01/03/2013,A E YATES LTD,"Works - Construction, Repair & Maintenance",SUPPORT FOR LEARNING,BSF VARIATIONS/ CONTINGENCY,"142,750.87"
01/03/2013,A E YATES LTD,"Works - Construction, Repair & Maintenance",SUPPORT FOR LEARNING,BSF VARIATIONS/ CONTINGENCY,"28,391.53"
04/03/2013,INSPIREDSPACES ROCHDALE LTD,"Works - Construction, Repair & Maintenance",SUPPORT FOR LEARNING,BSF VARIATIONS/ CONTINGENCY,"3,849.81"
04/03/2013,INSPIREDSPACES ROCHDALE PROJECTCO2 LTD,"Works - Construction, Repair & Maintenance",SUPPORT FOR LEARNING,BSF VARIATIONS/ CONTINGENCY,"39,422.14"
04/03/2013,INSPIREDSPACES ROCHDALE PROJECTCO2 LTD,"Works - Construction, Repair & Maintenance",SUPPORT FOR LEARNING,BSF VARIATIONS/ CONTINGENCY,"72,294.70"
26/02/2013,INSPIREDSPACES ROCHDALE LTD,"Works - Construction, Repair & Maintenance",SUPPORT FOR LEARNING,BSF VARIATIONS/ CONTINGENCY,708.67
26/02/2013,INSPIREDSPACES ROCHDALE LTD,"Works - Construction, Repair & Maintenance",SUPPORT FOR LEARNING,BSF VARIATIONS/ CONTINGENCY,"12,782.26"
19/03/2013,INSPIREDSPACES ROCHDALE LTD,"Works - Construction, Repair & Maintenance",SUPPORT FOR LEARNING,BSF OTHER CONTRIBUTIONS,"3,693.20"
26/02/2013,INSPIREDSPACES ROCHDALE LTD,"Works - Construction, Repair & Maintenance",SUPPORT FOR LEARNING,BSF OTHER CONTRIBUTIONS,"91,828.22"
13/03/2013,INSPIREDSPACES ROCHDALE LTD,"Works - Construction, Repair & Maintenance",SUPPORT FOR LEARNING,MIDDLETON TECHNOLOGY COLLEGE BSF,"368,273.00"
26/02/2013,INSPIREDSPACES ROCHDALE LTD,"Works - Construction, Repair & Maintenance",SUPPORT FOR LEARNING,HOLY FAMILY COLLEGE (BSF),"386,457.45"
13/03/2013,INSPIREDSPACES ROCHDALE LTD,"Works - Construction, Repair & Maintenance",SUPPORT FOR LEARNING,KINGSWAY PARK SECONDARY (BSF),"423,152.00"
13/03/2013,INSPIREDSPACES ROCHDALE LTD,"Works - Construction, Repair & Maintenance",SUPPORT FOR LEARNING,ST CUTHBERTS RC SECONDARY(BSF),"742,800.64"
22/03/2013,INSPIREDSPACES ROCHDALE LTD,"Works - Construction, Repair & Maintenance",SUPPORT FOR LEARNING,ST CUTHBERTS RC SECONDARY(BSF),"642,982.91"
18/03/2013,PRISM UK MEDICAL LIMITED,Medical,SUPPORT FOR LEARNING,CAPITAL EQUIPMENT DISABLED CHILDREN,"3,953.61"
01/03/2013,NORTH WEST EMPLOYERS,Transport,"FINANCE, PROC & OTH MGD BUDGET",RESIDUAL BUDGETS LEISURE,"1,621.80"
27/02/2013,INSTITUTE OF PUBLIC FINANCE LIMITED,Financial Services,"FINANCE, PROC & OTH MGD BUDGET",FINANCIAL SUPPORT CROSS SERVICE BUDGETS,"2,385.00"
18/03/2013,GRANT THORNTON UK LLP,Financial Services,"FINANCE, PROC & OTH MGD BUDGET",CENTRAL FINANCE  SYSTEMS AND ADMIN,"45,090.00"
25/03/2013,INSTITUTE OF PUBLIC FINANCE LIMITED,Financial Services,"FINANCE, PROC & OTH MGD BUDGET",CENTRAL FINANCE  SYSTEMS AND ADMIN,"5,545.00"
01/03/2013,LINK4LIFE (TRADING),Leisure Services,"FINANCE, PROC & OTH MGD BUDGET",CONTRACT FEE LEISURE TRUST,"2,833.33"
26/02/2013,LINK4LIFE (CHARITY),Leisure Services,"FINANCE, PROC & OTH MGD BUDGET",CONTRACT FEE LEISURE TRUST,"262,514.42"
01/03/2013,STOREYS EDWARD SYMMONS LTD,"Works - Construction, Repair & Maintenance","FINANCE, PROC & OTH MGD BUDGET",MUSEUM GENERAL,"4,549.81"
01/03/2013,STOREYS EDWARD SYMMONS LTD,"Works - Construction, Repair & Maintenance","FINANCE, PROC & OTH MGD BUDGET",MUSEUM GENERAL,"11,515.00"
04/03/2013,REDACTED PERSONAL DATA,Unclassifiable,PLANNING AND REGULATION,CORONERS SERVICE GENERAL,"1,083.33"
04/03/2013,REDACTED PERSONAL DATA,Unclassifiable,PLANNING AND REGULATION,CORONERS SERVICE GENERAL,707.62
11/03/2013,JOHNSTON BROS,Cemetery & Crematorium,PLANNING AND REGULATION,CORONERS SERVICE GENERAL,800.00
11/03/2013,JOHNSTON BROS,Cemetery & Crematorium,PLANNING AND REGULATION,CORONERS SERVICE GENERAL,"1,080.00"
11/03/2013,JOHNSTON BROS,Cemetery & Crematorium,PLANNING AND REGULATION,CORONERS SERVICE GENERAL,720.00
18/03/2013,REDACTED PERSONAL DATA,Medical,PLANNING AND REGULATION,CORONERS SERVICE GENERAL,706.20
18/03/2013,FORENSICS LTD,Environmental Services,PLANNING AND REGULATION,CORONERS SERVICE GENERAL,"1,550.00"
18/03/2013,FORENSICS LTD,Environmental Services,PLANNING AND REGULATION,CORONERS SERVICE GENERAL,"1,995.00"
18/03/2013,FORENSICS LTD,Environmental Services,PLANNING AND REGULATION,CORONERS SERVICE GENERAL,870.00
18/03/2013,BARKATH LIMITED,Medical,PLANNING AND REGULATION,CORONERS SERVICE GENERAL,"1,828.20"
18/03/2013,JOHNSTON BROS,Cemetery & Crematorium,PLANNING AND REGULATION,CORONERS SERVICE GENERAL,680.00
18/03/2013,JOHNSTON BROS,Cemetery & Crematorium,PLANNING AND REGULATION,CORONERS SERVICE GENERAL,"1,240.00"
18/03/2013,JOHNSTON BROS,Cemetery & Crematorium,PLANNING AND REGULATION,CORONERS SERVICE GENERAL,"1,040.00"
22/03/2013,REDACTED PERSONAL DATA,Unclassifiable,PLANNING AND REGULATION,CORONERS SERVICE GENERAL,"1,314.16"
22/03/2013,REDACTED PERSONAL DATA,Unclassifiable,PLANNING AND REGULATION,CORONERS SERVICE GENERAL,"1,740.41"
22/03/2013,REDACTED PERSONAL DATA,Unclassifiable,PLANNING AND REGULATION,CORONERS SERVICE GENERAL,741.08
22/03/2013,REDACTED PERSONAL DATA,Unclassifiable,PLANNING AND REGULATION,CORONERS SERVICE GENERAL,505.45
25/02/2013,FORENSICS LTD,Environmental Services,PLANNING AND REGULATION,CORONERS SERVICE GENERAL,"2,720.00"
25/02/2013,REDACTED PERSONAL DATA,Medical,PLANNING AND REGULATION,CORONERS SERVICE GENERAL,"2,824.80"
25/02/2013,FORENSICS LTD,Environmental Services,PLANNING AND REGULATION,CORONERS SERVICE GENERAL,"1,400.00"
25/02/2013,FORENSICS LTD,Environmental Services,PLANNING AND REGULATION,CORONERS SERVICE GENERAL,"1,070.00"
25/02/2013,REDACTED PERSONAL DATA,Medical,PLANNING AND REGULATION,CORONERS SERVICE GENERAL,"1,874.50"
25/02/2013,REDACTED PERSONAL DATA,Medical,PLANNING AND REGULATION,CORONERS SERVICE GENERAL,"2,122.60"
25/03/2013,FORENSICS LTD,Environmental Services,PLANNING AND REGULATION,CORONERS SERVICE GENERAL,"1,205.00"
25/03/2013,REDACTED PERSONAL DATA,Medical,PLANNING AND REGULATION,CORONERS SERVICE GENERAL,"2,000.00"
25/03/2013,REDACTED PERSONAL DATA,Medical,PLANNING AND REGULATION,CORONERS SERVICE GENERAL,"2,166.00"
25/03/2013,THE PENNINE ACUTE HOSPITALS NHS TRUST,Medical,PLANNING AND REGULATION,CORONERS SERVICE GENERAL,"11,379.00"
14/03/2013,BRAHM FUNDCO 2 LTD,Housing Management,PLANNING AND REGULATION,HEYWOOD JSC - PHOENIX CENTRE,"22,049.82"
17/03/2013,BRAHM FUNDCO 2 LTD,Housing Management,PLANNING AND REGULATION,HEYWOOD JSC - PHOENIX CENTRE,"1,900.77"
26/02/2013,ROCHDALE COMMUNITY TRANSPORT,Transport,PLANNING AND REGULATION,KINGSWAY BUS SERVICE,"1,972.00"
26/02/2013,ROCHDALE COMMUNITY TRANSPORT,Transport,PLANNING AND REGULATION,KINGSWAY BUS SERVICE,"3,821.06"
26/02/2013,ROCHDALE COMMUNITY TRANSPORT,Transport,PLANNING AND REGULATION,KINGSWAY BUS SERVICE,"3,821.06"
26/02/2013,ROCHDALE COMMUNITY TRANSPORT,Transport,PLANNING AND REGULATION,KINGSWAY BUS SERVICE,"3,697.80"
13/03/2013,AUDIO TRAILS LIMITED,Leisure Services,PLANNING AND REGULATION,WATERSHED LSCAPES PROG - PENNINE TSHIP F,"4,500.00"
13/03/2013,JEREMY BENN ASSOCIATES LTD,Environmental Services,PLANNING AND REGULATION,SURFACE WATER MGT PLAN,"15,640.45"
08/03/2013,ANIMAL WARDENS LIMITED,Environmental Services,PLANNING AND REGULATION,DOG WARDEN,722.00
08/03/2013,ANIMAL WARDENS LIMITED,Environmental Services,PLANNING AND REGULATION,DOG WARDEN,"1,938.00"
05/03/2013,REDACTED PERSONAL DATA,Unclassifiable,PLANNING AND REGULATION,TRADING STANDARDS GENERAL,"1,320.00"
26/02/2013,VIP-SYSTEM LIMITED,Vehicles,PLANNING AND REGULATION,REG LIC  GENERAL,"4,989.45"
05/03/2013,ROTHWELL PROMOTIONAL GIFTS LTD,Facilities & Management Services,PLANNING AND REGULATION,NICHE TOBACCO,832.50
05/03/2013,ROTHWELL PROMOTIONAL GIFTS LTD,Facilities & Management Services,PLANNING AND REGULATION,SHISHA,542.50
19/03/2013,URBAN VISION PARTNERSHIP LTD,"Works - Construction, Repair & Maintenance",PLANNING AND REGULATION,PLANNING APPLICATIONS,"2,388.00"
28/02/2013,KAP DIAGNOSTICS COM LTD,Vehicles,PLANNING AND REGULATION,PLANNING APPLICATIONS,"2,310.00"
25/03/2013,REDACTED PERSONAL DATA,Unclassifiable,PLANNING AND REGULATION,ENFORCEMENT,"2,574.00"
20/03/2013,HAMMONDS LLP,Legal Services,PLANNING AND REGULATION,TOWN CENTRE EAST FEASIBILITY 51K 07/08,"25,817.60"
21/03/2013,KEPPIE MASSIE,"Works - Construction, Repair & Maintenance",PLANNING AND REGULATION,TOWN CENTRE EAST FEASIBILITY 51K 07/08,"1,161.67"
22/03/2013,SURVEY OPERATIONS,Highway Equipment & Materials�,PLANNING AND REGULATION,TOWN CENTRE EAST FEASIBILITY 51K 07/08,"1,150.00"
26/03/2013,HAMMONDS LLP,Legal Services,PLANNING AND REGULATION,TOWN CENTRE EAST FEASIBILITY 51K 07/08,"8,296.70"
26/03/2013,HAMMONDS LLP,Legal Services,PLANNING AND REGULATION,TOWN CENTRE EAST FEASIBILITY 51K 07/08,"3,877.00"
26/03/2013,HAMMONDS LLP,Legal Services,PLANNING AND REGULATION,TOWN CENTRE EAST FEASIBILITY 51K 07/08,"5,323.23"
26/03/2013,HAMMONDS LLP,Legal Services,PLANNING AND REGULATION,TOWN CENTRE EAST FEASIBILITY 51K 07/08,"1,864.00"
26/03/2013,HAMMONDS LLP,Legal Services,PLANNING AND REGULATION,TOWN CENTRE EAST FEASIBILITY 51K 07/08,"19,686.76"
26/03/2013,HAMMONDS LLP,Legal Services,PLANNING AND REGULATION,TOWN CENTRE EAST FEASIBILITY 51K 07/08,894.00
26/03/2013,HAMMONDS LLP,Legal Services,PLANNING AND REGULATION,TOWN CENTRE EAST FEASIBILITY 51K 07/08,"13,099.50"
26/03/2013,HAMMONDS LLP,Legal Services,PLANNING AND REGULATION,TOWN CENTRE EAST FEASIBILITY 51K 07/08,"2,429.60"
26/03/2013,HAMMONDS LLP,Legal Services,PLANNING AND REGULATION,TOWN CENTRE EAST FEASIBILITY 51K 07/08,"4,420.10"
21/03/2013,KABERRY CONSTRUCTION LIMITED,"Works - Construction, Repair & Maintenance",PLANNING AND REGULATION,TOWN CENTRE DEMOLITIONS,"1,107.00"
07/03/2013,A E YATES LTD,"Works - Construction, Repair & Maintenance",PLANNING AND REGULATION,CONNECT 2,"2,589.88"
17/03/2013,SMW ARCHITECTS,"Works - Construction, Repair & Maintenance",PLANNING AND REGULATION,WHEATSHEAF ENTRANCE WORK,"8,100.00"
20/03/2013,KEPPIE MASSIE,"Works - Construction, Repair & Maintenance",PLANNING AND REGULATION,INNER RING ROAD PIF,566.67
01/03/2013,JUBB & JUBB LIMITED,"Works - Construction, Repair & Maintenance",PLANNING AND REGULATION,MIDDLETON TOWNSHIP HERITAGE INITIATIVE,681.50
27/02/2013,BROADBENT FASHIONS,Clothing,PLANNING AND REGULATION,MIDDLETON TOWNSHIP HERITAGE INITIATIVE,"2,764.54"
19/03/2013,VERTASE FLI,"Works - Construction, Repair & Maintenance",PLANNING AND REGULATION,PLEASANT VIEW EA 46853,"36,074.18"
25/03/2013,VERTASE FLI,"Works - Construction, Repair & Maintenance",PLANNING AND REGULATION,PLEASANT VIEW EA 46853,"1,246.00"
22/03/2013,BEVA INVESTMENTS LIMITED,Facilities & Management Services,CORPORATE SERVICES,WORKFORCE DEVELOPMENT,"16,375.00"
05/03/2013,OCN NORTH WEST REGION,Education,CORPORATE SERVICES,HEALTH CONNECTIONS EXTERNAL,575.00
07/03/2013,VIDERE LTD,Financial Services,CORPORATE SERVICES,SUPPORTING CHANGE & IMPACT,"1,808.00"
07/03/2013,FISCHER EDUCATION PROJECTS,Education,CORPORATE SERVICES,DATA SUPPORT PACKAGE,"6,481.00"
11/03/2013,IBM UK LTD,Information Communication Technology,CORPORATE SERVICES,DATA SUPPORT PACKAGE,"1,432.00"
15/03/2013,FISCHER EDUCATION PROJECTS,Education,CORPORATE SERVICES,DATA SUPPORT PACKAGE,"3,500.00"
22/03/2013,NATIONAL CONSORTIUM OF EXAMINATION RESULTS,Financial Services,CORPORATE SERVICES,DATA SUPPORT PACKAGE,"4,747.60"
01/03/2013,CIVICA UK LIMITED,Information Communication Technology,CORPORATE SERVICES,LEGAL SERVICES,928.80
07/03/2013,ASSOCIATION OF COUNCIL SECRETARIES & SOLICITORS,Financial Services,CORPORATE SERVICES,LEGAL SERVICES,820.00
13/03/2013,BPP PROFESSIONAL EDUCATION LIMITED,Human Resources,CORPORATE SERVICES,LEGAL SERVICES,"1,285.00"
14/03/2013,REDACTED PERSONAL DATA,Unclassifiable,CORPORATE SERVICES,LEGAL SERVICES,"1,440.00"
14/03/2013,REDACTED PERSONAL DATA,Unclassifiable,CORPORATE SERVICES,LEGAL SERVICES,"1,020.00"
25/02/2013,THOMSON REUTERS,Legal Services,CORPORATE SERVICES,LEGAL SERVICES,"11,448.00"
26/03/2013,KRONMAN WRIGHT LIMITED,Human Resources,CORPORATE SERVICES,LEGAL SERVICES,987.00
26/03/2013,KRONMAN WRIGHT LIMITED,Human Resources,CORPORATE SERVICES,LEGAL SERVICES,"1,190.00"
28/03/2013,LEXIS NEXIS UK,Education,CORPORATE SERVICES,LEGAL SERVICES,605.00
04/03/2013,REDACTED PERSONAL DATA,Unclassifiable,CORPORATE SERVICES,GENERAL COUNCIL EXPENSES,550.00
04/03/2013,REDACTED PERSONAL DATA,Unclassifiable,CORPORATE SERVICES,GENERAL COUNCIL EXPENSES,550.00
04/03/2013,REDACTED PERSONAL DATA,Unclassifiable,CORPORATE SERVICES,GENERAL COUNCIL EXPENSES,550.00
14/03/2013,NEOPOST CREDIFON LIMITED,Financial Services,CORPORATE SERVICES,LEGAL & DEMOCRATIC GENERAL,"1,000.00"
01/03/2013,ROCHDALE OCCUPATIONAL HEALTH SERVICE LTD,Medical,CORPORATE SERVICES,COURSES SCHOOL SAFETY,520.00
11/03/2013,ROCHDALE OCCUPATIONAL HEALTH SERVICE LTD,Medical,CORPORATE SERVICES,COURSES SCHOOL SAFETY,555.00
20/03/2013,ROCHDALE OCCUPATIONAL HEALTH SERVICE LTD,Medical,CORPORATE SERVICES,COURSES SCHOOL SAFETY,"1,040.00"
20/03/2013,ROCHDALE OCCUPATIONAL HEALTH SERVICE LTD,Medical,CORPORATE SERVICES,COURSES SCHOOL SAFETY,555.00
22/03/2013,CASELLA CEL LIMITED,Environmental Services,CORPORATE SERVICES,COURSES SCHOOL SAFETY,"1,233.00"
18/03/2013,REDACTED PERSONAL DATA,Unclassifiable,CORPORATE SERVICES,PAYROLL,"1,000.00"
08/03/2013,PILAT EUROPE LIMITED,Information Communication Technology,CORPORATE SERVICES,MANAGEMENT ADMIN,"1,300.00"
17/03/2013,EMPLOYEE ADVISORY RESOURCE LTD,Human Resources,CORPORATE SERVICES,MANAGEMENT ADMIN,"3,250.00"
19/03/2013,LIQUIDLOGIC LTD,Information Communication Technology,CORPORATE SERVICES,CHILDRENS SERVICES IS TEAM,"3,000.00"
25/02/2013,PITNEY BOWES LTD,Mail Services�,CORPORATE SERVICES,CHILDRENS SERVICES IS TEAM,687.84
14/03/2013,SAFE RECORDS MANAGEMENT LTD,Facilities & Management Services,CORPORATE SERVICES,EDRMS TEAM,"2,146.90"
02/03/2013,ROYAL MAIL GROUP PLC,Mail Services�,CORPORATE SERVICES,P&T MAILROOM,976.08
05/03/2013,PITNEY BOWES POSTAGE BY PHONE,Mail Services�,CORPORATE SERVICES,P&T MAILROOM,687.84
20/03/2013,SCOPED SOLUTIONS LIMITED,Information Communication Technology,CORPORATE SERVICES,CUSTOMER SERVICES SYSTEMS,"3,600.00"
13/03/2013,HEYWOOD & DISTRICT ANGLING SOCIETY,Leisure Services,CORPORATE SERVICES,HEYWOOD TOWNSHIP FUNDS - PROJECTS,644.95
27/02/2013,MIDDLETON SELECT BOXING CLUB,Leisure Services,CORPORATE SERVICES,PROJECTS COMMISSIONING,"2,500.00"
25/03/2013,SUDDEN & BRIMROD COMMUNITY CENTRE,Financial Services,CORPORATE SERVICES,MEMBERS SMALL CAPITAL GRANTS,675.00
11/03/2013,LITTLEBOROUGH PUBLIC BRASS BAND,Leisure Services,CORPORATE SERVICES,WARDS FUND,"1,472.80"
24/03/2013,SUDDEN & BRIMROD COMMUNITY CENTRE,Financial Services,CORPORATE SERVICES,TOWNSHIP ALLOCATED FUNDS,700.00
01/03/2013,LINK4LIFE (CHARITY),Leisure Services,CORPORATE SERVICES,COMMUNITIES & ENGAGEMENT PRIORITY FUND,"2,800.00"
11/03/2013,LINK4LIFE (CHARITY),Leisure Services,CORPORATE SERVICES,COMMUNITIES & ENGAGEMENT PRIORITY FUND,"8,500.00"
05/03/2013,AGILISYS LIMITED,Information Communication Technology,CORPORATE SERVICES,AGILISYS CONTRACT FEE,"164,943.00"
05/03/2013,AGILISYS LIMITED,Information Communication Technology,CORPORATE SERVICES,AGILISYS CONTRACT FEE,"152,671.00"
05/03/2013,AGILISYS LIMITED,Information Communication Technology,CORPORATE SERVICES,AGILISYS CONTRACT FEE,"24,432.00"
19/03/2013,AGILISYS LIMITED,Information Communication Technology,CORPORATE SERVICES,AGILISYS CONTRACT FEE,"139,615.00"
19/03/2013,AGILISYS LIMITED,Information Communication Technology,CORPORATE SERVICES,AGILISYS CONTRACT FEE,"13,056.00"
19/03/2013,AGILISYS LIMITED,Information Communication Technology,CORPORATE SERVICES,AGILISYS CONTRACT FEE,"164,943.00"
19/03/2013,AGILISYS LIMITED,Information Communication Technology,CORPORATE SERVICES,AGILISYS CONTRACT FEE,"139,615.00"
19/03/2013,AGILISYS LIMITED,Information Communication Technology,CORPORATE SERVICES,AGILISYS CONTRACT FEE,"164,943.00"
19/03/2013,AGILISYS LIMITED,Information Communication Technology,CORPORATE SERVICES,AGILISYS CONTRACT FEE,"13,056.00"
12/03/2013,GRAVITAS RECRUITMENT GROUP,Human Resources,CORPORATE SERVICES,ICT OPERATIONS,"1,875.00"
12/03/2013,KODIT DATABASE LIMITED,Information Communication Technology,CORPORATE SERVICES,ICT OPERATIONS,"2,017.00"
22/03/2013,GRAVITAS RECRUITMENT GROUP,Human Resources,CORPORATE SERVICES,ICT OPERATIONS,"1,875.00"
22/03/2013,GRAVITAS RECRUITMENT GROUP,Human Resources,CORPORATE SERVICES,ICT OPERATIONS,"1,875.00"
22/03/2013,GRAVITAS RECRUITMENT GROUP,Human Resources,CORPORATE SERVICES,ICT OPERATIONS,"1,875.00"
22/03/2013,GRAVITAS RECRUITMENT GROUP,Human Resources,CORPORATE SERVICES,ICT OPERATIONS,"1,875.00"
22/03/2013,GRAVITAS RECRUITMENT GROUP,Human Resources,CORPORATE SERVICES,ICT OPERATIONS,"1,875.00"
22/03/2013,GRAVITAS RECRUITMENT GROUP,Human Resources,CORPORATE SERVICES,ICT OPERATIONS,"3,750.00"
01/03/2013,COMPAREX,Information Communication Technology,CORPORATE SERVICES,THIRD PARTY CONTRACTS,731.84
01/03/2013,MOBYSOFT LTD,Unclassifiable,CORPORATE SERVICES,THIRD PARTY CONTRACTS,964.16
01/03/2013,NDL METASCYBE LTD,Information Communication Technology,CORPORATE SERVICES,THIRD PARTY CONTRACTS,"6,000.00"
01/03/2013,ZEN INTERNET LIMITED,Information Communication Technology,CORPORATE SERVICES,THIRD PARTY CONTRACTS,"3,175.00"
04/03/2013,UPDATA INFRASTRUCTURE UK LTD,Facilities & Management Services,CORPORATE SERVICES,THIRD PARTY CONTRACTS,"1,926.86"
12/03/2013,CABLE & WIRELESS,Information Communication Technology,CORPORATE SERVICES,THIRD PARTY CONTRACTS,"1,845.05"
12/03/2013,ALIGNED ASSETS LIMITED,Information Communication Technology,CORPORATE SERVICES,THIRD PARTY CONTRACTS,"3,498.00"
17/03/2013,UPDATA INFRASTRUCTURE UK LTD,Facilities & Management Services,CORPORATE SERVICES,THIRD PARTY CONTRACTS,950.00
17/03/2013,UPDATA INFRASTRUCTURE UK LTD,Facilities & Management Services,CORPORATE SERVICES,THIRD PARTY CONTRACTS,"1,370.00"
22/03/2013,CABLE & WIRELESS,Information Communication Technology,CORPORATE SERVICES,THIRD PARTY CONTRACTS,"2,498.17"
22/03/2013,CABLE & WIRELESS,Information Communication Technology,CORPORATE SERVICES,THIRD PARTY CONTRACTS,"4,393.68"
22/03/2013,CABLE & WIRELESS,Information Communication Technology,CORPORATE SERVICES,THIRD PARTY CONTRACTS,"4,393.68"
22/03/2013,CABLE & WIRELESS,Information Communication Technology,CORPORATE SERVICES,THIRD PARTY CONTRACTS,"2,498.17"
25/03/2013,EMBARCADERO EUROPE LIMITED,Information Communication Technology,CORPORATE SERVICES,THIRD PARTY CONTRACTS,"1,104.62"
25/03/2013,CIVICA UK LIMITED,Information Communication Technology,CORPORATE SERVICES,THIRD PARTY CONTRACTS,"13,500.00"
25/03/2013,CIVICA UK LIMITED,Information Communication Technology,CORPORATE SERVICES,THIRD PARTY CONTRACTS,"4,500.00"
01/03/2013,PLANET DATA SOLUTIONS,Information Communication Technology,CORPORATE SERVICES,EDIT GENERAL,610.00
22/03/2013,ZEN INTERNET LIMITED,Information Communication Technology,CORPORATE SERVICES,EDIT GENERAL,"1,890.00"
12/03/2013,SIMPLE TECHNOLOGY,Information Communication Technology,CORPORATE SERVICES,EDIT - SPECIAL PROJECTS,605.00
22/03/2013,SIMPLE TECHNOLOGY,Information Communication Technology,CORPORATE SERVICES,EDIT - SPECIAL PROJECTS,605.00
25/02/2013,PINSENT MASONS LLP,Legal Services,CORPORATE SERVICES,CROSS CUTTING REVIEWS,"2,678.17"
27/02/2013,PINSENT MASONS LLP,Legal Services,CORPORATE SERVICES,CROSS CUTTING REVIEWS,758.50
11/03/2013,CRIMBLE CROFT COMMUNITY CENTRE,Financial Services,CORPORATE SERVICES,SUDDEN & BRIMROD CC,"2,500.00"
15/03/2013,JC APPLICATIONS DEVELOPMENT,Information Communication Technology,CORPORATE SERVICES,MOBILE WORKING,"3,474.00"
01/03/2013,UPDATA INFRASTRUCTURE UK LTD,Facilities & Management Services,CORPORATE SERVICES,FOUNDATION INFRASTRUCTURE,"1,539.00"
04/03/2013,UPDATA INFRASTRUCTURE UK LTD,Facilities & Management Services,CORPORATE SERVICES,FOUNDATION INFRASTRUCTURE,"2,385.00"
12/03/2013,GO2TELECOM,Information Communication Technology,CORPORATE SERVICES,FOUNDATION INFRASTRUCTURE,845.45
13/03/2013,FREEDOM COMMUNICATIONS,Information Communication Technology,CORPORATE SERVICES,FOUNDATION INFRASTRUCTURE,"31,587.00"
13/03/2013,IDDK LIMITED,Information Communication Technology,CORPORATE SERVICES,FOUNDATION INFRASTRUCTURE,"17,855.00"
13/03/2013,FREEDOM COMMUNICATIONS,Information Communication Technology,CORPORATE SERVICES,FOUNDATION INFRASTRUCTURE,"21,995.00"
13/03/2013,FREEDOM COMMUNICATIONS,Information Communication Technology,CORPORATE SERVICES,FOUNDATION INFRASTRUCTURE,"4,750.00"
14/03/2013,UPDATA INFRASTRUCTURE UK LTD,Facilities & Management Services,CORPORATE SERVICES,FOUNDATION INFRASTRUCTURE,"1,045.96"
14/03/2013,UPDATA INFRASTRUCTURE UK LTD,Facilities & Management Services,CORPORATE SERVICES,FOUNDATION INFRASTRUCTURE,"1,045.96"
14/03/2013,UPDATA INFRASTRUCTURE UK LTD,Facilities & Management Services,CORPORATE SERVICES,FOUNDATION INFRASTRUCTURE,"18,337.41"
14/03/2013,UPDATA INFRASTRUCTURE UK LTD,Facilities & Management Services,CORPORATE SERVICES,FOUNDATION INFRASTRUCTURE,"2,621.40"
14/03/2013,UPDATA INFRASTRUCTURE UK LTD,Facilities & Management Services,CORPORATE SERVICES,FOUNDATION INFRASTRUCTURE,"62,143.35"
14/03/2013,UPDATA INFRASTRUCTURE UK LTD,Facilities & Management Services,CORPORATE SERVICES,FOUNDATION INFRASTRUCTURE,"48,025.21"
14/03/2013,UPDATA INFRASTRUCTURE UK LTD,Facilities & Management Services,CORPORATE SERVICES,FOUNDATION INFRASTRUCTURE,"85,741.41"
17/03/2013,UPDATA INFRASTRUCTURE UK LTD,Facilities & Management Services,CORPORATE SERVICES,FOUNDATION INFRASTRUCTURE,"12,576.40"
20/03/2013,SCAN INTERNATIONAL,Information Communication Technology,CORPORATE SERVICES,FOUNDATION INFRASTRUCTURE,"1,845.00"
24/02/2013,FREEDOM COMMUNICATIONS,Information Communication Technology,CORPORATE SERVICES,FOUNDATION INFRASTRUCTURE,"10,220.00"
25/02/2013,SPECIALIST COMPUTER CENTRES PLC,Information Communication Technology,CORPORATE SERVICES,FOUNDATION INFRASTRUCTURE,783.50
28/02/2013,FREEDOM COMMUNICATIONS,Information Communication Technology,CORPORATE SERVICES,FOUNDATION INFRASTRUCTURE,649.75
01/03/2013,SPECIALIST COMPUTER CENTRES PLC,Information Communication Technology,CORPORATE SERVICES,DESKTOP INFRASTRUCTURE,"10,022.40"
12/03/2013,MISCO,Information Communication Technology,CORPORATE SERVICES,DESKTOP INFRASTRUCTURE,"3,620.04"
12/03/2013,MISCO,Information Communication Technology,CORPORATE SERVICES,DESKTOP INFRASTRUCTURE,"1,323.26"
13/03/2013,SPECIALIST COMPUTER CENTRES PLC,Information Communication Technology,CORPORATE SERVICES,DESKTOP INFRASTRUCTURE,"2,041.20"
22/03/2013,VIGLEN LIMITED,Information Communication Technology,CORPORATE SERVICES,DESKTOP INFRASTRUCTURE,"29,203.00"
26/02/2013,SPECIALIST COMPUTER CENTRES PLC,Information Communication Technology,CORPORATE SERVICES,DESKTOP INFRASTRUCTURE,"2,624.40"
26/02/2013,SPECIALIST COMPUTER CENTRES PLC,Information Communication Technology,CORPORATE SERVICES,DESKTOP INFRASTRUCTURE,777.60
01/03/2013,OSCAR ASSOCIATES UK LTD,Human Resources,CORPORATE SERVICES,BUSINESS INTELLIGENCE SYSTEMS,"1,417.50"
12/03/2013,BRITISH TELECOMMUNICATIONS PLC,Information Communication Technology,CORPORATE SERVICES,DISTRIBUTED NETWORK,"1,212.87"
01/03/2013,ORANGE PCS LIMITED,Information Communication Technology,CORPORATE SERVICES,MOBILE TELEPHONES,699.61
22/03/2013,ORANGE PCS LIMITED,Information Communication Technology,CORPORATE SERVICES,MOBILE TELEPHONES,943.70
22/03/2013,ORANGE PCS LIMITED,Information Communication Technology,CORPORATE SERVICES,MOBILE TELEPHONES,"10,558.79"
17/03/2013,SOCIAL WORK CHOICES LTD,Human Resources,ADULT CARE OPERATIONS,NHS DELAYED TRANSFER,627.24
17/03/2013,SOCIAL WORK CHOICES LTD,Human Resources,ADULT CARE OPERATIONS,NHS DELAYED TRANSFER,558.86
17/03/2013,SOCIAL WORK CHOICES LTD,Human Resources,ADULT CARE OPERATIONS,NHS DELAYED TRANSFER,527.86
18/03/2013,SOCIAL WORK CHOICES LTD,Human Resources,ADULT CARE OPERATIONS,NHS DELAYED TRANSFER,620.29
18/03/2013,SOCIAL WORK CHOICES LTD,Human Resources,ADULT CARE OPERATIONS,NHS DELAYED TRANSFER,726.33
22/03/2013,ALLIED HEALTHCARE GROUP LIMITED,Medical,ADULT CARE OPERATIONS,NHS DELAYED TRANSFER,"2,110.50"
25/03/2013,SOCIAL WORK CHOICES LTD,Human Resources,ADULT CARE OPERATIONS,NHS DELAYED TRANSFER,"1,291.82"
25/03/2013,PRESTIGE NURSING & CARE,Social Community Care Supplies & Services,ADULT CARE OPERATIONS,NHS DELAYED TRANSFER,"3,083.43"
25/03/2013,PRESTIGE NURSING & CARE,Social Community Care Supplies & Services,ADULT CARE OPERATIONS,NHS DELAYED TRANSFER,"2,860.17"
25/03/2013,PRESTIGE NURSING & CARE,Social Community Care Supplies & Services,ADULT CARE OPERATIONS,NHS DELAYED TRANSFER,"1,686.64"
25/03/2013,PRESTIGE NURSING & CARE,Social Community Care Supplies & Services,ADULT CARE OPERATIONS,NHS DELAYED TRANSFER,964.90
25/03/2013,PRESTIGE NURSING & CARE,Social Community Care Supplies & Services,ADULT CARE OPERATIONS,NHS DELAYED TRANSFER,"1,028.65"
25/03/2013,PRESTIGE NURSING & CARE,Social Community Care Supplies & Services,ADULT CARE OPERATIONS,NHS DELAYED TRANSFER,"1,140.65"
25/03/2013,PRESTIGE NURSING & CARE,Social Community Care Supplies & Services,ADULT CARE OPERATIONS,NHS DELAYED TRANSFER,"3,339.23"
25/03/2013,PRESTIGE NURSING & CARE,Social Community Care Supplies & Services,ADULT CARE OPERATIONS,NHS DELAYED TRANSFER,"3,098.44"
25/03/2013,PRESTIGE NURSING & CARE,Social Community Care Supplies & Services,ADULT CARE OPERATIONS,NHS DELAYED TRANSFER,"1,359.26"
25/03/2013,SOCIAL WORK CHOICES LTD,Human Resources,ADULT CARE OPERATIONS,NHS DELAYED TRANSFER,500.69
25/03/2013,SOCIAL WORK CHOICES LTD,Human Resources,ADULT CARE OPERATIONS,NHS DELAYED TRANSFER,554.42
25/03/2013,SOCIAL WORK CHOICES LTD,Human Resources,ADULT CARE OPERATIONS,NHS DELAYED TRANSFER,"1,637.69"
25/03/2013,SOCIAL WORK CHOICES LTD,Human Resources,ADULT CARE OPERATIONS,NHS DELAYED TRANSFER,747.71
25/03/2013,SOCIAL WORK CHOICES LTD,Human Resources,ADULT CARE OPERATIONS,NHS DELAYED TRANSFER,512.84
28/02/2013,ALLIED HEALTHCARE GROUP LIMITED,Medical,ADULT CARE OPERATIONS,NHS DELAYED TRANSFER,"2,110.50"
13/03/2013,CARE QUALITY COMMISSION,Financial Services,ADULT CARE OPERATIONS,MANAGEMENT & ADMINISTRATION,666.66
13/03/2013,CARE QUALITY COMMISSION,Financial Services,ADULT CARE OPERATIONS,SPRINGHILL EMI UNIT,"3,000.00"
13/03/2013,CARE QUALITY COMMISSION,Financial Services,ADULT CARE OPERATIONS,TUDOR COURT REHAB UNIT,"1,600.00"
13/03/2013,CARE QUALITY COMMISSION,Financial Services,MENTAL HEALTH LD AND VUL ADULT,ADULT PLACEMENT SCHEME,666.67
13/03/2013,CARE QUALITY COMMISSION,Financial Services,MENTAL HEALTH LD AND VUL ADULT,HARELANDS RESPITE,650.00
13/03/2013,CARE QUALITY COMMISSION,Financial Services,MENTAL HEALTH LD AND VUL ADULT,SUPPORTED LIVING MANAGEMENT & ADMIN,666.67
18/03/2013,CALEDONIAN LIFT SERVICES LTD,Facilities & Management Services,ADULT CARE OPERATIONS,TUDOR COURT REHAB UNIT,"1,075.00"
12/03/2013,TUNSTALL HEALTHCARE (UK) LTD,Social Community Care Supplies & Services,ADULT CARE OPERATIONS,CARELINE,"5,120.00"
19/03/2013,TYNETEC LTD,Social Community Care Supplies & Services,ADULT CARE OPERATIONS,CARELINE,649.90
25/03/2013,TYNETEC LTD,Social Community Care Supplies & Services,ADULT CARE OPERATIONS,CARELINE,"1,226.22"
05/03/2013,NEIL SIMPSON & SON                   (S),"Works - Construction, Repair & Maintenance",ADULT CARE OPERATIONS,HIA,672.67
15/03/2013,T CUBED LTD,Information Communication Technology,ADULT CARE OPERATIONS,HIA,849.00
18/03/2013,NEIL SIMPSON & SON                   (S),"Works - Construction, Repair & Maintenance",ADULT CARE OPERATIONS,HIA,543.70
28/02/2013,ROCHDALE HOUSING INITIATIVE,Housing Management,ADULT CARE OPERATIONS,HIA,511.63
05/03/2013,POSSUM LIMITED,Social Community Care Supplies & Services,ADULT CARE OPERATIONS,HOUSING IMPROVEMENT GRANTS,"1,559.00"
07/03/2013,TUNSTALL HEALTHCARE (UK) LTD,Social Community Care Supplies & Services,ADULT CARE OPERATIONS,HOUSING IMPROVEMENT GRANTS,552.50
25/03/2013,TYNETEC LTD,Social Community Care Supplies & Services,ADULT CARE OPERATIONS,HOUSING IMPROVEMENT GRANTS,586.00
01/03/2013,ALZHEIMERS SOCIETY,Financial Services,ADULT CARE OPERATIONS,COMMISSIONING MANAGEMENT,"9,383.00"
01/03/2013,ALZHEIMERS SOCIETY,Financial Services,ADULT CARE OPERATIONS,COMMISSIONING MANAGEMENT,"3,702.50"
13/03/2013,DONNY BRYAN,Unclassifiable,ADULT CARE OPERATIONS,COMMISSIONING MANAGEMENT,"2,084.00"
14/03/2013,CREATIVE SUPPORT LTD,Social Community Care Supplies & Services,ADULT CARE OPERATIONS,COMMISSIONING MANAGEMENT,"37,500.00"
17/03/2013,PANZTEL UK LTD,Information Communication Technology,ADULT CARE OPERATIONS,COMMISSIONING MANAGEMENT,"4,899.00"
25/02/2013,PAKEEZA WOMEN GROUP,Financial Services,ADULT CARE OPERATIONS,COMMISSIONING MANAGEMENT,"1,860.00"
26/03/2013,PANZTEL UK LTD,Information Communication Technology,ADULT CARE OPERATIONS,COMMISSIONING MANAGEMENT,"4,954.00"
12/03/2013,ROMA MEDICAL LTD,Medical,ADULT CARE OPERATIONS,ICES,534.00
13/03/2013,AIDAPT BATHROOMS LTD,Social Community Care Supplies & Services,ADULT CARE OPERATIONS,ICES,"1,298.50"
13/03/2013,PRIESTLEYS & SMITHIES (ROCHDALE) LIMITED,Social Community Care Supplies & Services,ADULT CARE OPERATIONS,ICES,885.25
18/03/2013,PRISM UK MEDICAL LIMITED,Medical,ADULT CARE OPERATIONS,ICES,"2,495.84"
18/03/2013,PRISM UK MEDICAL LIMITED,Medical,ADULT CARE OPERATIONS,ICES,790.27
21/03/2013,HORN PROPERTIES LIMITED,Facilities & Management Services,ADULT CARE OPERATIONS,ICES,"12,500.00"
25/02/2013,HUTCHINSON HEALTHCARE,Social Community Care Supplies & Services,ADULT CARE OPERATIONS,ICES,750.00
26/02/2013,MANCHESTER WORKING LIMITED,"Works - Construction, Repair & Maintenance",ADULT CARE OPERATIONS,ICES,"17,915.05"
26/03/2013,MULTICARE MOBILITY SERVICES LIMITED,Social Community Care Supplies & Services,ADULT CARE OPERATIONS,ICES,900.00
27/02/2013,HILLS PACKAGING LIMITED,Facilities & Management Services,ADULT CARE OPERATIONS,ICES,507.10
01/03/2013,ASHBOURNE NURSING HOME,Social Community Care Supplies & Services,ADULT CARE OPERATIONS,OLDER PEOPLE,"1,000.00"
05/03/2013,ALLIED HEALTHCARE GROUP LIMITED,Medical,ADULT CARE OPERATIONS,OLDER PEOPLE,563.33
06/03/2013,ALLIED HEALTHCARE GROUP LIMITED,Medical,ADULT CARE OPERATIONS,OLDER PEOPLE,"9,880.82"
06/03/2013,CAREWEST (NORTHERN) LIMITED,Social Community Care Supplies & Services,ADULT CARE OPERATIONS,OLDER PEOPLE,"9,803.48"
06/03/2013,CASTLEROCK CARE SERVICES LIMITED,Social Community Care Supplies & Services,ADULT CARE OPERATIONS,OLDER PEOPLE,"5,693.14"
06/03/2013,COMFORT CALL,Social Community Care Supplies & Services,ADULT CARE OPERATIONS,OLDER PEOPLE,"14,792.20"
06/03/2013,CROSSROADS CARE IN GREATER MANCHESTER,Financial Services,ADULT CARE OPERATIONS,OLDER PEOPLE,"1,456.73"
06/03/2013,DIRECT HEALTH HOMECARE LIMITED,Social Community Care Supplies & Services,ADULT CARE OPERATIONS,OLDER PEOPLE,"8,692.05"
06/03/2013,THE MEARS GROUP,Social Community Care Supplies & Services,ADULT CARE OPERATIONS,OLDER PEOPLE,"4,255.90"
06/03/2013,PREMIER CARE,Social Community Care Supplies & Services,ADULT CARE OPERATIONS,OLDER PEOPLE,"6,622.67"
06/03/2013,ROCHDALE COMMUNITY SUPPORT TRUST,Social Community Care Supplies & Services,ADULT CARE OPERATIONS,OLDER PEOPLE,"5,137.61"
06/03/2013,RESPITE NORTH WEST LIMITED,Social Community Care Supplies & Services,ADULT CARE OPERATIONS,OLDER PEOPLE,"2,103.69"
06/03/2013,BRAMBLETON LIMITED,Social Community Care Supplies & Services,ADULT CARE OPERATIONS,OLDER PEOPLE,"10,198.52"
08/03/2013,CARE 4 U,Social Community Care Supplies & Services,ADULT CARE OPERATIONS,OLDER PEOPLE,"11,420.18"
08/03/2013,HOMECARE SUPPORT,Social Community Care Supplies & Services,ADULT CARE OPERATIONS,OLDER PEOPLE,"5,969.22"
08/03/2013,COMMUNITY CARE LINE SERVICES,Social Community Care Supplies & Services,ADULT CARE OPERATIONS,OLDER PEOPLE,"3,513.93"
08/03/2013,INDEPENDENT HOME CARE SERVICES,Social Community Care Supplies & Services,ADULT CARE OPERATIONS,OLDER PEOPLE,"2,965.83"
08/03/2013,GREAT CARE UK,Social Community Care Supplies & Services,ADULT CARE OPERATIONS,OLDER PEOPLE,"2,897.83"
13/03/2013,ALLIED HEALTHCARE GROUP LIMITED,Medical,ADULT CARE OPERATIONS,OLDER PEOPLE,"10,272.00"
13/03/2013,CAREWEST (NORTHERN) LIMITED,Social Community Care Supplies & Services,ADULT CARE OPERATIONS,OLDER PEOPLE,"9,409.66"
13/03/2013,CASTLEROCK CARE SERVICES LIMITED,Social Community Care Supplies & Services,ADULT CARE OPERATIONS,OLDER PEOPLE,"5,214.87"
13/03/2013,COMFORT CALL,Social Community Care Supplies & Services,ADULT CARE OPERATIONS,OLDER PEOPLE,"14,581.29"
13/03/2013,CROSSROADS CARE IN GREATER MANCHESTER,Financial Services,ADULT CARE OPERATIONS,OLDER PEOPLE,"1,429.12"
13/03/2013,DIRECT HEALTH HOMECARE LIMITED,Social Community Care Supplies & Services,ADULT CARE OPERATIONS,OLDER PEOPLE,"8,873.33"
13/03/2013,THE MEARS GROUP,Social Community Care Supplies & Services,ADULT CARE OPERATIONS,OLDER PEOPLE,"4,200.27"
13/03/2013,PREMIER CARE,Social Community Care Supplies & Services,ADULT CARE OPERATIONS,OLDER PEOPLE,"6,395.31"
13/03/2013,ROCHDALE COMMUNITY SUPPORT TRUST,Social Community Care Supplies & Services,ADULT CARE OPERATIONS,OLDER PEOPLE,"5,133.82"
13/03/2013,RESPITE NORTH WEST LIMITED,Social Community Care Supplies & Services,ADULT CARE OPERATIONS,OLDER PEOPLE,"2,121.35"
13/03/2013,BRAMBLETON LIMITED,Social Community Care Supplies & Services,ADULT CARE OPERATIONS,OLDER PEOPLE,"9,877.17"
15/03/2013,GREAT CARE UK,Social Community Care Supplies & Services,ADULT CARE OPERATIONS,OLDER PEOPLE,"2,821.09"
15/03/2013,INDEPENDENT HOME CARE SERVICES,Social Community Care Supplies & Services,ADULT CARE OPERATIONS,OLDER PEOPLE,"3,224.45"
15/03/2013,COMMUNITY CARE LINE SERVICES,Social Community Care Supplies & Services,ADULT CARE OPERATIONS,OLDER PEOPLE,"3,575.85"
15/03/2013,HOMECARE SUPPORT,Social Community Care Supplies & Services,ADULT CARE OPERATIONS,OLDER PEOPLE,"5,893.70"
15/03/2013,CARE 4 U,Social Community Care Supplies & Services,ADULT CARE OPERATIONS,OLDER PEOPLE,"11,502.86"
18/03/2013,REDACTED PERSONAL DATA,Unclassifiable,ADULT CARE OPERATIONS,OLDER PEOPLE,"1,248.57"
21/03/2013,COMMUNITY CARE LINE SERVICES,Social Community Care Supplies & Services,ADULT CARE OPERATIONS,OLDER PEOPLE,"3,849.49"
21/03/2013,GREAT CARE UK,Social Community Care Supplies & Services,ADULT CARE OPERATIONS,OLDER PEOPLE,"3,033.43"
21/03/2013,INDEPENDENT HOME CARE SERVICES,Social Community Care Supplies & Services,ADULT CARE OPERATIONS,OLDER PEOPLE,"3,133.91"
21/03/2013,HOMECARE SUPPORT,Social Community Care Supplies & Services,ADULT CARE OPERATIONS,OLDER PEOPLE,"5,408.12"
21/03/2013,CARE 4 U,Social Community Care Supplies & Services,ADULT CARE OPERATIONS,OLDER PEOPLE,"11,368.66"
21/03/2013,CAREWEST (NORTHERN) LIMITED,Social Community Care Supplies & Services,ADULT CARE OPERATIONS,OLDER PEOPLE,"9,640.47"
21/03/2013,CASTLEROCK CARE SERVICES LIMITED,Social Community Care Supplies & Services,ADULT CARE OPERATIONS,OLDER PEOPLE,"5,671.41"
21/03/2013,COMFORT CALL,Social Community Care Supplies & Services,ADULT CARE OPERATIONS,OLDER PEOPLE,"14,779.21"
21/03/2013,CROSSROADS CARE IN GREATER MANCHESTER,Financial Services,ADULT CARE OPERATIONS,OLDER PEOPLE,"1,460.59"
21/03/2013,DIRECT HEALTH HOMECARE LIMITED,Social Community Care Supplies & Services,ADULT CARE OPERATIONS,OLDER PEOPLE,"8,752.75"
21/03/2013,THE MEARS GROUP,Social Community Care Supplies & Services,ADULT CARE OPERATIONS,OLDER PEOPLE,"4,440.02"
21/03/2013,PREMIER CARE,Social Community Care Supplies & Services,ADULT CARE OPERATIONS,OLDER PEOPLE,"6,395.52"
21/03/2013,ROCHDALE COMMUNITY SUPPORT TRUST,Social Community Care Supplies & Services,ADULT CARE OPERATIONS,OLDER PEOPLE,"4,997.72"
21/03/2013,RESPITE NORTH WEST LIMITED,Social Community Care Supplies & Services,ADULT CARE OPERATIONS,OLDER PEOPLE,"2,002.39"
21/03/2013,BRAMBLETON LIMITED,Social Community Care Supplies & Services,ADULT CARE OPERATIONS,OLDER PEOPLE,"9,770.80"
21/03/2013,ALLIED HEALTHCARE GROUP LIMITED,Medical,ADULT CARE OPERATIONS,OLDER PEOPLE,"10,796.35"
22/03/2013,SUNSHINE CARE ROCHDALE CIC,Social Community Care Supplies & Services,ADULT CARE OPERATIONS,OLDER PEOPLE,545.06
22/03/2013,SUNSHINE CARE ROCHDALE CIC,Social Community Care Supplies & Services,ADULT CARE OPERATIONS,OLDER PEOPLE,544.04
25/02/2013,ATLANTIS MEDICARE LTD,Social Community Care Supplies & Services,ADULT CARE OPERATIONS,OLDER PEOPLE,"1,000.00"
26/02/2013,ROYAL MAIL GROUP PLC,Mail Services�,ADULT CARE OPERATIONS,OLDER PEOPLE,564.05
26/03/2013,SUNSHINE CARE ROCHDALE CIC,Social Community Care Supplies & Services,ADULT CARE OPERATIONS,OLDER PEOPLE,548.10
26/03/2013,ROYAL MAIL GROUP PLC,Mail Services�,ADULT CARE OPERATIONS,OLDER PEOPLE,584.82
26/03/2013,ALLIED HEALTHCARE GROUP LIMITED,Medical,ADULT CARE OPERATIONS,OLDER PEOPLE,"10,187.35"
26/03/2013,CARE 4 U,Social Community Care Supplies & Services,ADULT CARE OPERATIONS,OLDER PEOPLE,"11,600.84"
26/03/2013,CAREWEST (NORTHERN) LIMITED,Social Community Care Supplies & Services,ADULT CARE OPERATIONS,OLDER PEOPLE,"8,732.65"
26/03/2013,CASTLEROCK CARE SERVICES LIMITED,Social Community Care Supplies & Services,ADULT CARE OPERATIONS,OLDER PEOPLE,"5,591.64"
26/03/2013,COMMUNITY CARE LINE SERVICES,Social Community Care Supplies & Services,ADULT CARE OPERATIONS,OLDER PEOPLE,"3,900.85"
26/03/2013,COMFORT CALL,Social Community Care Supplies & Services,ADULT CARE OPERATIONS,OLDER PEOPLE,"14,927.81"
26/03/2013,CROSSROADS CARE IN GREATER MANCHESTER,Financial Services,ADULT CARE OPERATIONS,OLDER PEOPLE,"1,381.42"
26/03/2013,DIRECT HEALTH HOMECARE LIMITED,Social Community Care Supplies & Services,ADULT CARE OPERATIONS,OLDER PEOPLE,"9,035.12"
26/03/2013,GREAT CARE UK,Social Community Care Supplies & Services,ADULT CARE OPERATIONS,OLDER PEOPLE,"2,695.23"
26/03/2013,HOMECARE SUPPORT,Social Community Care Supplies & Services,ADULT CARE OPERATIONS,OLDER PEOPLE,"5,720.54"
26/03/2013,INDEPENDENT HOME CARE SERVICES,Social Community Care Supplies & Services,ADULT CARE OPERATIONS,OLDER PEOPLE,"3,082.56"
26/03/2013,THE MEARS GROUP,Social Community Care Supplies & Services,ADULT CARE OPERATIONS,OLDER PEOPLE,"4,244.53"
26/03/2013,PREMIER CARE,Social Community Care Supplies & Services,ADULT CARE OPERATIONS,OLDER PEOPLE,"6,391.46"
26/03/2013,ROCHDALE COMMUNITY SUPPORT TRUST,Social Community Care Supplies & Services,ADULT CARE OPERATIONS,OLDER PEOPLE,"4,801.55"
26/03/2013,RESPITE NORTH WEST LIMITED,Social Community Care Supplies & Services,ADULT CARE OPERATIONS,OLDER PEOPLE,"2,122.16"
26/03/2013,BRAMBLETON LIMITED,Social Community Care Supplies & Services,ADULT CARE OPERATIONS,OLDER PEOPLE,"10,347.52"
27/02/2013,BELVOIR CARE HOMELIMITED,Social Community Care Supplies & Services,ADULT CARE OPERATIONS,OLDER PEOPLE,"1,000.00"
27/02/2013,RESPITE NORTH WEST LIMITED,Social Community Care Supplies & Services,ADULT CARE OPERATIONS,OLDER PEOPLE,"2,009.50"
28/02/2013,SUNSHINE CARE ROCHDALE CIC,Social Community Care Supplies & Services,ADULT CARE OPERATIONS,OLDER PEOPLE,537.95
28/02/2013,SUNSHINE CARE ROCHDALE CIC,Social Community Care Supplies & Services,ADULT CARE OPERATIONS,OLDER PEOPLE,562.31
28/02/2013,GREAT CARE UK,Social Community Care Supplies & Services,ADULT CARE OPERATIONS,OLDER PEOPLE,"2,886.86"
28/02/2013,HOMECARE SUPPORT,Social Community Care Supplies & Services,ADULT CARE OPERATIONS,OLDER PEOPLE,"6,027.27"
28/02/2013,INDEPENDENT HOME CARE SERVICES,Social Community Care Supplies & Services,ADULT CARE OPERATIONS,OLDER PEOPLE,"2,980.04"
28/02/2013,THE MEARS GROUP,Social Community Care Supplies & Services,ADULT CARE OPERATIONS,OLDER PEOPLE,"4,308.68"
28/02/2013,PREMIER CARE,Social Community Care Supplies & Services,ADULT CARE OPERATIONS,OLDER PEOPLE,"6,852.67"
28/02/2013,ROCHDALE COMMUNITY SUPPORT TRUST,Social Community Care Supplies & Services,ADULT CARE OPERATIONS,OLDER PEOPLE,"5,154.66"
28/02/2013,RESPITE NORTH WEST LIMITED,Social Community Care Supplies & Services,ADULT CARE OPERATIONS,OLDER PEOPLE,"2,225.29"
28/02/2013,BRAMBLETON LIMITED,Social Community Care Supplies & Services,ADULT CARE OPERATIONS,OLDER PEOPLE,"10,069.21"
28/02/2013,DIRECT HEALTH HOMECARE LIMITED,Social Community Care Supplies & Services,ADULT CARE OPERATIONS,OLDER PEOPLE,"8,659.98"
28/02/2013,CROSSROADS CARE IN GREATER MANCHESTER,Financial Services,ADULT CARE OPERATIONS,OLDER PEOPLE,"1,335.33"
28/02/2013,COMFORT CALL,Social Community Care Supplies & Services,ADULT CARE OPERATIONS,OLDER PEOPLE,"13,839.53"
28/02/2013,COMMUNITY CARE LINE SERVICES,Social Community Care Supplies & Services,ADULT CARE OPERATIONS,OLDER PEOPLE,"3,555.34"
28/02/2013,CASTLEROCK CARE SERVICES LIMITED,Social Community Care Supplies & Services,ADULT CARE OPERATIONS,OLDER PEOPLE,"5,407.11"
28/02/2013,CAREWEST (NORTHERN) LIMITED,Social Community Care Supplies & Services,ADULT CARE OPERATIONS,OLDER PEOPLE,"9,228.99"
28/02/2013,CARE 4 U,Social Community Care Supplies & Services,ADULT CARE OPERATIONS,OLDER PEOPLE,"11,575.67"
28/02/2013,ALLIED HEALTHCARE GROUP LIMITED,Medical,ADULT CARE OPERATIONS,OLDER PEOPLE,"9,548.71"
01/03/2013,RESPITE NORTH WEST LIMITED,Social Community Care Supplies & Services,ADULT CARE OPERATIONS,PHYSICAL DISABILITY,"1,315.44"
26/03/2013,RESPITE NORTH WEST LIMITED,Social Community Care Supplies & Services,ADULT CARE OPERATIONS,PHYSICAL DISABILITY,"2,816.44"
26/03/2013,RESPITE NORTH WEST LIMITED,Social Community Care Supplies & Services,MENTAL HEALTH LD AND VUL ADULT,GENERAL,"2,816.43"
26/03/2013,RESPITE NORTH WEST LIMITED,Social Community Care Supplies & Services,ADULT CARE OPERATIONS,PHYSICAL DISABILITY,"3,068.22"
26/03/2013,RESPITE NORTH WEST LIMITED,Social Community Care Supplies & Services,MENTAL HEALTH LD AND VUL ADULT,GENERAL,"3,068.21"
27/02/2013,BWA HEALTH & CARE SERVICES LTD,Social Community Care Supplies & Services,ADULT CARE OPERATIONS,PHYSICAL DISABILITY,870.17
27/02/2013,BWA HEALTH & CARE SERVICES LTD,Social Community Care Supplies & Services,ADULT CARE OPERATIONS,PHYSICAL DISABILITY,990.80
27/02/2013,BWA HEALTH & CARE SERVICES LTD,Social Community Care Supplies & Services,ADULT CARE OPERATIONS,PHYSICAL DISABILITY,964.80
27/03/2013,REDACTED PERSONAL DATA,Unclassifiable,ADULT CARE OPERATIONS,ADULT CARE MANAGEMENT,"1,200.00"
01/03/2013,ROCHDALE OCCUPATIONAL HEALTH SERVICE LTD,Medical,ADULT CARE OPERATIONS,TRAINING COMMISSIONING,525.00
01/03/2013,LPS TRAINING & CONSULTANCY LTD,Human Resources,ADULT CARE OPERATIONS,TRAINING COMMISSIONING,505.00
25/02/2013,ROCHDALE TRAINING ASSOCIATION LIMITED,Human Resources,ADULT CARE OPERATIONS,TRAINING COMMISSIONING,"3,000.00"
28/02/2013,LPS TRAINING & CONSULTANCY LTD,Human Resources,ADULT CARE OPERATIONS,TRAINING COMMISSIONING,520.00
11/03/2013,OXFORD COMPUTER CONSULTANTS LIMITED,Information Communication Technology,ADULT CARE OPERATIONS,BUSINESS EFFICIENCY UNIT,"2,913.37"
17/03/2013,OXFORD COMPUTER CONSULTANTS LIMITED,Information Communication Technology,ADULT CARE OPERATIONS,BUSINESS EFFICIENCY UNIT,"5,403.24"
17/03/2013,OXFORD COMPUTER CONSULTANTS LIMITED,Information Communication Technology,ADULT CARE OPERATIONS,BUSINESS EFFICIENCY UNIT,"22,513.51"
26/02/2013,FACE RECORDING & MEASUREMENT SYSTEMS LTD,Facilities & Management Services,ADULT CARE OPERATIONS,BUSINESS EFFICIENCY UNIT,"7,243.00"
27/02/2013,CARE MONITORING 2000 LTD,Social Community Care Supplies & Services,ADULT CARE OPERATIONS,BUSINESS EFFICIENCY UNIT,"5,000.00"
01/03/2013,REDACTED PERSONAL DATA,Unclassifiable,ADULT CARE OPERATIONS,PB SUPPORT,"1,077.45"
02/03/2013,FLETCHER BUILDING SERVICES LIMITED,"Works - Construction, Repair & Maintenance",ADULT CARE OPERATIONS,DISABLED FACILITIES GRANT,"2,680.00"
04/03/2013,AUTUMN (UK) LIMITED,Social Community Care Supplies & Services,ADULT CARE OPERATIONS,DISABLED FACILITIES GRANT,"3,247.26"
04/03/2013,STANNAH LIFT SERVICES LTD,Social Community Care Supplies & Services,ADULT CARE OPERATIONS,DISABLED FACILITIES GRANT,"1,474.29"
11/03/2013,PRISM UK MEDICAL LIMITED,Medical,ADULT CARE OPERATIONS,DISABLED FACILITIES GRANT,"1,783.93"
11/03/2013,AUTUMN (UK) LIMITED,Social Community Care Supplies & Services,ADULT CARE OPERATIONS,DISABLED FACILITIES GRANT,"2,746.94"
11/03/2013,STANNAH LIFT SERVICES LTD,Social Community Care Supplies & Services,ADULT CARE OPERATIONS,DISABLED FACILITIES GRANT,"4,553.00"
11/03/2013,STANNAH LIFT SERVICES LTD,Social Community Care Supplies & Services,ADULT CARE OPERATIONS,DISABLED FACILITIES GRANT,"1,786.00"
11/03/2013,STANNAH LIFT SERVICES LTD,Social Community Care Supplies & Services,ADULT CARE OPERATIONS,DISABLED FACILITIES GRANT,"1,461.00"
11/03/2013,STANNAH LIFT SERVICES LTD,Social Community Care Supplies & Services,ADULT CARE OPERATIONS,DISABLED FACILITIES GRANT,"4,229.00"
12/03/2013,D W TAYLOR,"Works - Construction, Repair & Maintenance",ADULT CARE OPERATIONS,DISABLED FACILITIES GRANT,"3,945.00"
14/03/2013,BROADWAY BUILDING CONTRACTORS(OLDHAM)LTD,"Works - Construction, Repair & Maintenance",ADULT CARE OPERATIONS,DISABLED FACILITIES GRANT,"16,200.00"
19/03/2013,FLETCHER BUILDING SERVICES LIMITED,"Works - Construction, Repair & Maintenance",ADULT CARE OPERATIONS,DISABLED FACILITIES GRANT,"2,490.00"
20/03/2013,J L SOCKETT PLUMBING & BUILDING,Building Construction Materials,ADULT CARE OPERATIONS,DISABLED FACILITIES GRANT,"2,335.00"
20/03/2013,STANNAH LIFT SERVICES LTD,Social Community Care Supplies & Services,ADULT CARE OPERATIONS,DISABLED FACILITIES GRANT,"3,936.00"
20/03/2013,STANNAH LIFT SERVICES LTD,Social Community Care Supplies & Services,ADULT CARE OPERATIONS,DISABLED FACILITIES GRANT,"1,311.00"
21/03/2013,HIGH BARN CONSTRUCTION LIMITED,"Works - Construction, Repair & Maintenance",ADULT CARE OPERATIONS,DISABLED FACILITIES GRANT,"7,970.00"
21/03/2013,STANNAH LIFT SERVICES LTD,Social Community Care Supplies & Services,ADULT CARE OPERATIONS,DISABLED FACILITIES GRANT,"1,952.00"
22/03/2013,HIGH BARN CONSTRUCTION LIMITED,"Works - Construction, Repair & Maintenance",ADULT CARE OPERATIONS,DISABLED FACILITIES GRANT,"7,640.35"
22/03/2013,BROADWAY BUILDING CONTRACTORS(OLDHAM)LTD,"Works - Construction, Repair & Maintenance",ADULT CARE OPERATIONS,DISABLED FACILITIES GRANT,"4,000.00"
25/02/2013,STANNAH LIFT SERVICES LTD,Social Community Care Supplies & Services,ADULT CARE OPERATIONS,DISABLED FACILITIES GRANT,"1,189.00"
25/02/2013,STANNAH LIFT SERVICES LTD,Social Community Care Supplies & Services,ADULT CARE OPERATIONS,DISABLED FACILITIES GRANT,"3,361.00"
25/03/2013,FLETCHER BUILDING SERVICES LIMITED,"Works - Construction, Repair & Maintenance",ADULT CARE OPERATIONS,DISABLED FACILITIES GRANT,"1,100.00"
26/02/2013,ST JOHNS DOMESTIC LIMITED,"Works - Construction, Repair & Maintenance",ADULT CARE OPERATIONS,DISABLED FACILITIES GRANT,"3,145.00"
26/02/2013,STANNAH LIFT SERVICES LTD,Social Community Care Supplies & Services,ADULT CARE OPERATIONS,DISABLED FACILITIES GRANT,"3,907.00"
26/02/2013,PETER TAYLOR LTD PLUMBING & HEATING,Building Construction Materials,ADULT CARE OPERATIONS,DISABLED FACILITIES GRANT,"2,751.85"
26/03/2013,STANNAH LIFT SERVICES LTD,Social Community Care Supplies & Services,ADULT CARE OPERATIONS,DISABLED FACILITIES GRANT,"3,861.00"
12/03/2013,PARKMAN LIMITED,Human Resources,PROPERTY AND HIGHWAYS,HIGHWAYS MANAGEMENT,"6,811.14"
26/02/2013,PARKMAN LIMITED,Human Resources,PROPERTY AND HIGHWAYS,HIGHWAYS MANAGEMENT,"4,854.15"
18/03/2013,F W SHERRATT LTD,"Works - Construction, Repair & Maintenance",PROPERTY AND HIGHWAYS,PRINCIPAL ROADS BRIDGES AND STRUCTURES,674.50
01/03/2013,THE NCC GROUP,Information Communication Technology,PROPERTY AND HIGHWAYS,STREET LIGHTING CLIENT TEAM,562.50
21/03/2013,REDACTED PERSONAL DATA,Unclassifiable,PROPERTY AND HIGHWAYS,STREET LIGHTING CLIENT TEAM,"3,100.00"
20/03/2013,COMMUNITY LIGHTING PARTNERSHIP ROCHDALE LTD,Building Construction Materials,PROPERTY AND HIGHWAYS,STREET LIGHTING UNITARY CHARGE,"227,852.63"
26/02/2013,COMMUNITY LIGHTING PARTNERSHIP ROCHDALE LTD,Building Construction Materials,PROPERTY AND HIGHWAYS,STREET LIGHTING UNITARY CHARGE,"231,181.35"
18/03/2013,NPOWER LIMITED,Utilities,PROPERTY AND HIGHWAYS,STREET LIGHTING ENERGY,"122,876.72"
01/03/2013,TRENCH RIGHT LTD,Environmental Services,PROPERTY AND HIGHWAYS,CORING,"6,048.00"
18/03/2013,SALT UNION LIMITED,Highway Equipment & Materials�,PROPERTY AND HIGHWAYS,WINTER MAINTENANCE,"3,426.45"
18/03/2013,SALT UNION LIMITED,Highway Equipment & Materials�,PROPERTY AND HIGHWAYS,WINTER MAINTENANCE,854.61
18/03/2013,SALT UNION LIMITED,Highway Equipment & Materials�,PROPERTY AND HIGHWAYS,WINTER MAINTENANCE,"3,442.47"
18/03/2013,SALT UNION LIMITED,Highway Equipment & Materials�,PROPERTY AND HIGHWAYS,WINTER MAINTENANCE,"1,791.23"
18/03/2013,SALT UNION LIMITED,Highway Equipment & Materials�,PROPERTY AND HIGHWAYS,WINTER MAINTENANCE,854.61
18/03/2013,SALT UNION LIMITED,Highway Equipment & Materials�,PROPERTY AND HIGHWAYS,WINTER MAINTENANCE,"3,489.34"
18/03/2013,SALT UNION LIMITED,Highway Equipment & Materials�,PROPERTY AND HIGHWAYS,WINTER MAINTENANCE,853.99
25/02/2013,SALT UNION LIMITED,Highway Equipment & Materials�,PROPERTY AND HIGHWAYS,WINTER MAINTENANCE,"1,717.85"
25/02/2013,SALT UNION LIMITED,Highway Equipment & Materials�,PROPERTY AND HIGHWAYS,WINTER MAINTENANCE,"3,435.08"
25/02/2013,SALT UNION LIMITED,Highway Equipment & Materials�,PROPERTY AND HIGHWAYS,WINTER MAINTENANCE,"5,198.55"
25/02/2013,SALT UNION LIMITED,Highway Equipment & Materials�,PROPERTY AND HIGHWAYS,WINTER MAINTENANCE,"4,367.99"
25/02/2013,SALT UNION LIMITED,Highway Equipment & Materials�,PROPERTY AND HIGHWAYS,WINTER MAINTENANCE,"1,730.18"
25/02/2013,SALT UNION LIMITED,Highway Equipment & Materials�,PROPERTY AND HIGHWAYS,WINTER MAINTENANCE,864.47
25/03/2013,LUSCOMBE TREHANE,"Works - Construction, Repair & Maintenance",PROPERTY AND HIGHWAYS,WINTER MAINTENANCE,"7,647.58"
05/03/2013,SWIFT SECURITY PRODUCTS LTD,Facilities & Management Services,PROPERTY AND HIGHWAYS,CAR PARKS  GENERAL,"2,946.75"
26/03/2013,ACS BPS LTD,Catering,PROPERTY AND HIGHWAYS,CAR PARKS  GENERAL,"2,986.40"
07/03/2013,NORTH MANCHESTER ENTERPRISE GROUP LTD,Public Bodies,PROPERTY AND HIGHWAYS,DECRIMINALISATION OF CAR PARKING,"2,255.01"
12/03/2013,NSL LIMITED,Traffic Management,PROPERTY AND HIGHWAYS,DECRIMINALISATION OF CAR PARKING,"32,758.07"
12/03/2013,NSL LIMITED,Traffic Management,PROPERTY AND HIGHWAYS,DECRIMINALISATION OF CAR PARKING,"6,147.50"
25/02/2013,PATROL,Facilities & Management Services,PROPERTY AND HIGHWAYS,DECRIMINALISATION OF CAR PARKING,"1,757.40"
07/03/2013,F W SHERRATT LTD,"Works - Construction, Repair & Maintenance",PROPERTY AND HIGHWAYS,BRIDGES & STRUCTURES TEAM,"1,811.50"
05/03/2013,E ON SUSTAINABLE ENERGY,Utilities,PROPERTY AND HIGHWAYS,ST LTG MISC XMAS ILLUMINA,"15,047.10"
05/03/2013,SAVOY COMPUTING SERVICES LTD,Information Communication Technology,PROPERTY AND HIGHWAYS,BUSINESS SUPPORT TEAM,"1,170.00"
17/03/2013,ATRIUM SOFTWARE LTD,Information Communication Technology,PROPERTY AND HIGHWAYS,BUSINESS SUPPORT TEAM,750.00
18/03/2013,INFRASCRUCTURE ASSET MANAGEMENT LTD,Information Communication Technology,PROPERTY AND HIGHWAYS,BUSINESS SUPPORT TEAM,"2,799.60"
26/02/2013,RICOH UK LTD,Facilities & Management Services,PROPERTY AND HIGHWAYS,BUSINESS SUPPORT TEAM,960.16
28/02/2013,RIBA ENTERPRISES LIMITED,"Works - Construction, Repair & Maintenance",PROPERTY AND HIGHWAYS,BUSINESS SUPPORT TEAM,573.30
22/03/2013,NORWOOD ELECTRICAL (UK) LTD,Building Construction Materials,PROPERTY AND HIGHWAYS,TECHNICAL TEAM,548.20
22/03/2013,SWIFT SECURITY PRODUCTS LTD,Facilities & Management Services,PROPERTY AND HIGHWAYS,THE LANDINGS INDUSTRIAL ESTATE,531.00
22/03/2013,SWIFT SECURITY PRODUCTS LTD,Facilities & Management Services,PROPERTY AND HIGHWAYS,THE LANDINGS INDUSTRIAL ESTATE,"1,373.00"
22/03/2013,UNITED UTILITIES WATER LIMITED,Utilities,PROPERTY AND HIGHWAYS,HANSON CLOSE INDUSTRIAL ESTATE,"2,649.81"
22/03/2013,NORWOOD ELECTRICAL (UK) LTD,Building Construction Materials,PROPERTY AND HIGHWAYS,SCHOOLS SLA 12/13,"8,336.70"
26/02/2013,A A ARNOLD LIMITED,Building Construction Materials,PROPERTY AND HIGHWAYS,ASSET RATIONALISATION,"1,255.98"
26/02/2013,BGS LTD,"Works - Construction, Repair & Maintenance",PROPERTY AND HIGHWAYS,ASSET RATIONALISATION,"8,237.00"
07/03/2013,NATIONAL CYCLING ACADEMY,Leisure Services,PROPERTY AND HIGHWAYS,17-25 YOUNG DRIVER PROJECT,"8,212.50"
07/03/2013,NATIONAL CYCLING ACADEMY,Leisure Services,PROPERTY AND HIGHWAYS,17-25 YOUNG DRIVER PROJECT,"12,600.00"
07/03/2013,S T HEATINGS SERVICES LTD,Building Construction Materials,PROPERTY AND HIGHWAYS,HOLLINGWORTH LAKE GENERAL,"1,031.08"
07/03/2013,BROOKDALE GAS LTD,Utilities,PROPERTY AND HIGHWAYS,DEPOT GREEN LANE,"4,489.32"
21/03/2013,SWIFT SECURITY PRODUCTS LTD,Facilities & Management Services,PROPERTY AND HIGHWAYS,HOLLIN SURESTART CENTRE,560.00
22/03/2013,REXEL UK LIMITED,Building Construction Materials,PROPERTY AND HIGHWAYS,MILNROW YOUTH CENTRE,651.20
18/03/2013,"GE, MT & S DOWTHWAITE",Unclassifiable,PROPERTY AND HIGHWAYS,LBORO CAMP REPLACE ROOF (193),"10,179.93"
25/02/2013,"GE, MT & S DOWTHWAITE",Unclassifiable,PROPERTY AND HIGHWAYS,LBORO CAMP REPLACE ROOF (193),"9,459.65"
07/03/2013,S T HEATINGS SERVICES LTD,Building Construction Materials,PROPERTY AND HIGHWAYS,LEGIONELLA (196),"2,616.02"
05/03/2013,MAYSAND LTD                          (S),Building Construction Materials,PROPERTY AND HIGHWAYS,FALINGE PARK FA�ADE REPAIRS(199),"6,509.59"
18/03/2013,J C MILLS & SON LIMITED,Building Construction Materials,PROPERTY AND HIGHWAYS,HIGHWOOD CENTRE BOILER(200),"7,633.38"
18/03/2013,J C MILLS & SON LIMITED,Building Construction Materials,PROPERTY AND HIGHWAYS,WOODCLOUGH CENTRE BOILER (201),"6,223.48"
28/02/2013,J C MILLS & SON LIMITED,Building Construction Materials,PROPERTY AND HIGHWAYS,WOODCLOUGH CENTRE BOILER (201),"49,595.47"
14/03/2013,F S MOULT & SON,Building Construction Materials,PROPERTY AND HIGHWAYS,"S`FIELD PARK MERESIDE SURVEYS (202,205)","9,229.25"
08/03/2013,KABERRY CONSTRUCTION LIMITED,"Works - Construction, Repair & Maintenance",PROPERTY AND HIGHWAYS,S`FIELD PARK CHANGING ROOF & W`DOWS (204,"7,851.50"
22/03/2013,KABERRY CONSTRUCTION LIMITED,"Works - Construction, Repair & Maintenance",PROPERTY AND HIGHWAYS,S`FIELD PARK CHANGING ROOF & W`DOWS (204,"102,086.18"
28/02/2013,CLONSHALL LTD,Building Construction Materials,PROPERTY AND HIGHWAYS,B`LEE CHANGING REPLACE ROOF & PANELLING,"51,243.18"
26/02/2013,ALAN GARDNER ASSOCIATES,"Works - Construction, Repair & Maintenance",PROPERTY AND HIGHWAYS,H`WOOD OLD HALL EMERG REP (219),"1,419.16"
21/03/2013,F W SHERRATT LTD,"Works - Construction, Repair & Maintenance",PROPERTY AND HIGHWAYS,H`WORTH LAKE PALATINE WALL(184),"51,029.31"
21/03/2013,MARCHBRIDGE BUILDERS LIMITED         (S),"Works - Construction, Repair & Maintenance",PROPERTY AND HIGHWAYS,MTON BURIAL FOOTPATH AND FENCING,"7,106.65"
20/03/2013,J COONEY LIMITED,"Works - Construction, Repair & Maintenance",PROPERTY AND HIGHWAYS,PATHS & WALLS (223),"66,631.70"
21/03/2013,J COONEY LIMITED,"Works - Construction, Repair & Maintenance",PROPERTY AND HIGHWAYS,PATHS & WALLS (223),"24,808.64"
26/03/2013,BSK LANDSCAPES,Horticultural,PROPERTY AND HIGHWAYS,PATHS & WALLS (223),"17,776.71"
18/03/2013,C P ECOLOGY,Environmental Services,PROPERTY AND HIGHWAYS,TOWN HALL REROOFING WORKS- PH1 CLOCK TOW,700.00
26/03/2013,MORRIS DEAN & CO,"Works - Construction, Repair & Maintenance",PROPERTY AND HIGHWAYS,TOWN HALL REROOFING WORKS- PH1 CLOCK TOW,650.00
26/02/2013,C P ECOLOGY,Environmental Services,PROPERTY AND HIGHWAYS,TOWN HALL BAT LICENCE (231),950.00
26/03/2013,J GREENWOOD (BUILDERS) LIMITED       (S),"Works - Construction, Repair & Maintenance",PROPERTY AND HIGHWAYS,TOWN HALL UPGRADE FIRE DOORS P2 (189),"9,303.34"
25/02/2013,LANES GROUP PLC,Environmental Services,PROPERTY AND HIGHWAYS,TOWN HALL CCTV DRAINAGE SURVEY (232),"3,361.00"
12/03/2013,REDDISH VALE INSULATIONS LIMITED,Environmental Services,PROPERTY AND HIGHWAYS,TOWN HALL REMOVE AND REPLACE RISER COVER,"3,200.00"
05/03/2013,SYNTAX CONTROLS LIMITED,Unclassifiable,PROPERTY AND HIGHWAYS,TOWN HALL REPLACE BUILDING MGT SYSTEM,"14,235.00"
18/03/2013,SYNTAX CONTROLS LIMITED,Unclassifiable,PROPERTY AND HIGHWAYS,TOWN HALL REPLACE BUILDING MGT SYSTEM,"2,465.46"
19/03/2013,NICK BAYLISS LIMITED,Building Construction Materials,PROPERTY AND HIGHWAYS,TOWN HALL -STAINED GLASS RESTRAINING BAR,540.00
14/03/2013,NAB CONTRACTORS LTD,"Works - Construction, Repair & Maintenance",PROPERTY AND HIGHWAYS,Queen St Family and Children`s Centre -,"13,222.00"
26/03/2013,TAYLOR & STOTT LTD                   (S),"Works - Construction, Repair & Maintenance",PROPERTY AND HIGHWAYS,Chesham Bowls works 254,"27,382.54"
22/03/2013,GTM ELECTRICAL SERVICES LIMITED,Building Construction Materials,PROPERTY AND HIGHWAYS,Middleton Arena - Fire Alarm Isolater 26,"3,365.00"
14/03/2013,D SHAWCROSS LTD                      (S),"Works - Construction, Repair & Maintenance",PROPERTY AND HIGHWAYS,Alkrington Adult Care Centre - external,"10,890.00"
26/03/2013,CLONSHALL LTD,Building Construction Materials,PROPERTY AND HIGHWAYS,RUGBY RD IN ROOF 303,"115,847.25"
28/02/2013,CLONSHALL LTD,Building Construction Materials,PROPERTY AND HIGHWAYS,RUGBY RD IN ROOF 303,"84,416.39"
08/03/2013,HIRST CONSERVATION                   (S),Leisure Services,PROPERTY AND HIGHWAYS,Town Hall - Clean 3 Ceiling Panels,"6,639.44"
26/03/2013,HIRST CONSERVATION                   (S),Leisure Services,PROPERTY AND HIGHWAYS,Town Hall - Clean 3 Ceiling Panels,673.73
22/03/2013,VALE PARK DEMOLITION,"Works - Construction, Repair & Maintenance",PROPERTY AND HIGHWAYS,BALDERSTONE CHANGING PAVILLION - DEM 316,"10,745.45"
25/02/2013,BGS LTD,"Works - Construction, Repair & Maintenance",PROPERTY AND HIGHWAYS,BALDERSTONE CHANGING PAVILLION - DEM 316,"5,384.00"
26/03/2013,F S MOULT & SON,Building Construction Materials,PROPERTY AND HIGHWAYS,MERESIDE HOUSE SRNGFLD PK - ROOF REP 317,"14,282.87"
18/03/2013,J COONEY LIMITED,"Works - Construction, Repair & Maintenance",PROPERTY AND HIGHWAYS,PILSWORTH HGV,"34,874.81"
18/03/2013,NETWORK RAIL,Transport,PROPERTY AND HIGHWAYS,PENNINE SMITHYBRIDGE RD CW RECON,"1,346.58"
20/03/2013,SURVEY OPERATIONS,Highway Equipment & Materials�,PROPERTY AND HIGHWAYS,WINTER SERVICE DEPOT,"3,090.00"
22/03/2013,F W SHERRATT LTD,"Works - Construction, Repair & Maintenance",PROPERTY AND HIGHWAYS,RETAINING WALL DELIVERY,"6,533.91"
12/03/2013,DCT CIVIL ENGINEERING LTD,"Works - Construction, Repair & Maintenance",PROPERTY AND HIGHWAYS,HOLLINS LANE RETAINING WALL (AC),"7,958.74"
25/02/2013,DCT CIVIL ENGINEERING LTD,"Works - Construction, Repair & Maintenance",PROPERTY AND HIGHWAYS,HOLLINS LANE RETAINING WALL (AC),"27,240.72"
07/03/2013,VPS (UK) LTD,Facilities & Management Services,FINANCE AND PROCUREMENT,NON DISTRIBUTED COSTS,"1,520.77"
22/03/2013,VPS (UK) LTD,Facilities & Management Services,FINANCE AND PROCUREMENT,NON DISTRIBUTED COSTS,"1,960.12"
19/03/2013,LINK ABILITY,Social Community Care Supplies & Services,MENTAL HEALTH LD AND VUL ADULT,LD ADVOCACY PAYMENTS,"1,500.00"
20/03/2013,FRIENDS OF OLDER PARENT CARERS,Social Community Care Supplies & Services,MENTAL HEALTH LD AND VUL ADULT,LD ADVOCACY PAYMENTS,"3,743.16"
28/02/2013,LINK ABILITY,Social Community Care Supplies & Services,MENTAL HEALTH LD AND VUL ADULT,LD ADVOCACY PAYMENTS,"1,500.00"
21/03/2013,ROCHDALE GATEWAY LEISURE LIMITED,Social Community Care Supplies & Services,MENTAL HEALTH LD AND VUL ADULT,GATEWAY,"42,752.22"
12/03/2013,REGENDA LIMITED,Housing Management,MENTAL HEALTH LD AND VUL ADULT,COMMUNITY RESTART,"1,442.64"
06/03/2013,HAS JONES DEPUTY FOR SONJA TAYLOR,Unclassifiable,MENTAL HEALTH LD AND VUL ADULT,LD FORUM - DAY CARE,"9,819.60"
28/02/2013,MENCAP,Social Community Care Supplies & Services,MENTAL HEALTH LD AND VUL ADULT,LD FORUM - DAY CARE,528.00
02/03/2013,GOLDSBOROUGH HOME CARE,Social Community Care Supplies & Services,MENTAL HEALTH LD AND VUL ADULT,LD FORUM - HOME SUPPORT,825.52
04/03/2013,ADVANTAGE HEALTHCARE NURSING & CARE LTD,Human Resources,MENTAL HEALTH LD AND VUL ADULT,LD FORUM - HOME SUPPORT,700.10
19/03/2013,H G CARE SERVICES LIMITED,Social Community Care Supplies & Services,MENTAL HEALTH LD AND VUL ADULT,LD FORUM - HOME SUPPORT,"1,233.77"
25/03/2013,PENNINE CARE NHS TRUST,Social Community Care Supplies & Services,MENTAL HEALTH LD AND VUL ADULT,LD FORUM - HOME SUPPORT,"2,784.00"
25/03/2013,PENNINE CARE TRUST,Social Community Care Supplies & Services,MENTAL HEALTH LD AND VUL ADULT,LD FORUM - HOME SUPPORT,"2,784.00"
25/03/2013,MENCAP,Social Community Care Supplies & Services,MENTAL HEALTH LD AND VUL ADULT,LD FORUM - HOME SUPPORT,802.80
25/03/2013,MENCAP,Social Community Care Supplies & Services,MENTAL HEALTH LD AND VUL ADULT,LD FORUM - HOME SUPPORT,"5,434.00"
25/03/2013,ROCHDALE GATEWAY LEISURE LIMITED,Social Community Care Supplies & Services,MENTAL HEALTH LD AND VUL ADULT,LD FORUM - HOME SUPPORT,828.76
25/03/2013,THE NATIONAL AUTISTIC SOCIETY,Social Community Care Supplies & Services,MENTAL HEALTH LD AND VUL ADULT,LD FORUM - HOME SUPPORT,"2,039.22"
28/02/2013,MENCAP,Social Community Care Supplies & Services,MENTAL HEALTH LD AND VUL ADULT,LD FORUM - HOME SUPPORT,633.60
28/02/2013,MENCAP,Social Community Care Supplies & Services,MENTAL HEALTH LD AND VUL ADULT,LD FORUM - HOME SUPPORT,802.80
25/03/2013,ALTERNATIVE FUTURES GROUP LTD,Social Community Care Supplies & Services,MENTAL HEALTH LD AND VUL ADULT,LD FORUM - SUPPORTED LIVING,"4,560.00"
02/03/2013,COMMUNITY CARE LINE SERVICES,Social Community Care Supplies & Services,MENTAL HEALTH LD AND VUL ADULT,GENERAL,564.34
02/03/2013,COMMUNITY CARE LINE SERVICES,Social Community Care Supplies & Services,MENTAL HEALTH LD AND VUL ADULT,GENERAL,552.57
04/03/2013,STEPPING STONES SERVICES LTD,Human Resources,MENTAL HEALTH LD AND VUL ADULT,GENERAL,674.25
04/03/2013,STEPPING STONES SERVICES LTD,Human Resources,MENTAL HEALTH LD AND VUL ADULT,GENERAL,"1,348.50"
04/03/2013,COMFORT CALL,Social Community Care Supplies & Services,MENTAL HEALTH LD AND VUL ADULT,GENERAL,"1,014.00"
04/03/2013,COMFORT CALL,Social Community Care Supplies & Services,MENTAL HEALTH LD AND VUL ADULT,GENERAL,588.00
04/03/2013,NEWBARN LTD,Social Community Care Supplies & Services,MENTAL HEALTH LD AND VUL ADULT,GENERAL,518.14
04/03/2013,NHS HEYWOOD MIDDLETON & ROCHDALE,Medical,MENTAL HEALTH LD AND VUL ADULT,GENERAL,"8,363.50"
04/03/2013,NEWBARN LTD,Social Community Care Supplies & Services,MENTAL HEALTH LD AND VUL ADULT,GENERAL,"1,749.29"
04/03/2013,STEPPING STONES SERVICES LTD,Human Resources,MENTAL HEALTH LD AND VUL ADULT,GENERAL,"4,033.88"
04/03/2013,STEPPING STONES SERVICES LTD,Human Resources,MENTAL HEALTH LD AND VUL ADULT,GENERAL,"4,033.88"
04/03/2013,REDACTED PERSONAL DATA,Unclassifiable,MENTAL HEALTH LD AND VUL ADULT,GENERAL,"17,718.01"
05/03/2013,NEWBARN LTD,Social Community Care Supplies & Services,MENTAL HEALTH LD AND VUL ADULT,GENERAL,"2,171.97"
26/03/2013,SIGNHEALTH,Social Community Care Supplies & Services,MENTAL HEALTH LD AND VUL ADULT,GENERAL,789.21
26/03/2013,STEPPING STONES SERVICES LTD,Human Resources,MENTAL HEALTH LD AND VUL ADULT,GENERAL,"3,643.50"
26/03/2013,STEPPING STONES SERVICES LTD,Human Resources,MENTAL HEALTH LD AND VUL ADULT,GENERAL,"1,218.00"
26/03/2013,STEPPING STONES SERVICES LTD,Human Resources,MENTAL HEALTH LD AND VUL ADULT,GENERAL,659.75
26/03/2013,COMFORT CALL,Social Community Care Supplies & Services,MENTAL HEALTH LD AND VUL ADULT,GENERAL,600.00
26/03/2013,COMFORT CALL,Social Community Care Supplies & Services,MENTAL HEALTH LD AND VUL ADULT,GENERAL,942.00
26/03/2013,COMMUNITY CARE LINE SERVICES,Social Community Care Supplies & Services,MENTAL HEALTH LD AND VUL ADULT,GENERAL,587.68
26/03/2013,COMMUNITY CARE LINE SERVICES,Social Community Care Supplies & Services,MENTAL HEALTH LD AND VUL ADULT,GENERAL,572.46
26/03/2013,DB ROCHDALE LTD,Unclassifiable,MENTAL HEALTH LD AND VUL ADULT,GENERAL,720.00
04/03/2013,REGENDA LIMITED,Housing Management,MENTAL HEALTH LD AND VUL ADULT,LD SUPPORTED LIVING CONTRACTS,"1,041.90"
04/03/2013,ST VINCENTS HOUSING ASSOCIATION,Housing Management,MENTAL HEALTH LD AND VUL ADULT,LD SUPPORTED LIVING CONTRACTS,770.27
25/03/2013,ROCHDALE BOROUGHWIDE HOUSING,Housing Management,MENTAL HEALTH LD AND VUL ADULT,LD SUPPORTED LIVING CONTRACTS,"2,039.76"
25/03/2013,PROGRESS CARE HOUSING ASSOCIATION LTD,Housing Management,MENTAL HEALTH LD AND VUL ADULT,LD SUPPORTED LIVING CONTRACTS,994.08
25/03/2013,ST VINCENTS HOUSING ASSOCIATION,Housing Management,MENTAL HEALTH LD AND VUL ADULT,LD SUPPORTED LIVING CONTRACTS,761.20
25/03/2013,PROGRESS CARE HOUSING ASSOCIATION LTD,Housing Management,MENTAL HEALTH LD AND VUL ADULT,LD SUPPORTED LIVING CONTRACTS,994.08
25/03/2013,PROGRESS CARE HOUSING ASSOCIATION LTD,Housing Management,MENTAL HEALTH LD AND VUL ADULT,LD SUPPORTED LIVING CONTRACTS,783.24
27/02/2013,PROGRESS CARE HOUSING ASSOCIATION LTD,Housing Management,MENTAL HEALTH LD AND VUL ADULT,LD SUPPORTED LIVING CONTRACTS,783.24
27/02/2013,PROGRESS CARE HOUSING ASSOCIATION LTD,Housing Management,MENTAL HEALTH LD AND VUL ADULT,LD SUPPORTED LIVING CONTRACTS,745.56
27/02/2013,PROGRESS CARE HOUSING ASSOCIATION LTD,Housing Management,MENTAL HEALTH LD AND VUL ADULT,LD SUPPORTED LIVING CONTRACTS,745.56
05/03/2013,CITY & GUILDS,Education,MENTAL HEALTH LD AND VUL ADULT,NLDCF 12/13,690.00
28/02/2013,PEOPLE SUPPORTING PEOPLE,Unclassifiable,MENTAL HEALTH LD AND VUL ADULT,SERVICE USER INVOLVEMENT PROJECT,"1,000.00"
25/02/2013,CORONA ENERGY RETAIL 4 LIMITED,Utilities,MENTAL HEALTH LD AND VUL ADULT,CARERS RESOURCE CENTRE,505.70
25/03/2013,KICKSTART GROUP,Social Community Care Supplies & Services,MENTAL HEALTH LD AND VUL ADULT,CARERS COMMISSIONED SERVICES,"2,813.00"
25/03/2013,KICKSTART GROUP,Social Community Care Supplies & Services,MENTAL HEALTH LD AND VUL ADULT,CARERS COMMISSIONED SERVICES,"2,813.00"
25/03/2013,SPRINGHILL HOSPICE (ROCHDALE),Social Community Care Supplies & Services,MENTAL HEALTH LD AND VUL ADULT,CARERS COMMISSIONED SERVICES,"1,650.00"
25/03/2013,SPRINGHILL HOSPICE (ROCHDALE),Social Community Care Supplies & Services,MENTAL HEALTH LD AND VUL ADULT,CARERS COMMISSIONED SERVICES,"1,650.00"
25/03/2013,CARERS ASSOCIATION (RMHP),Social Community Care Supplies & Services,MENTAL HEALTH LD AND VUL ADULT,CARERS COMMISSIONED SERVICES,"4,000.00"
26/03/2013,ROCHDALE GATEWAY LEISURE LIMITED,Social Community Care Supplies & Services,MENTAL HEALTH LD AND VUL ADULT,CARERS COMMISSIONED SERVICES,"5,218.57"
26/03/2013,ROCHDALE GATEWAY LEISURE LIMITED,Social Community Care Supplies & Services,MENTAL HEALTH LD AND VUL ADULT,CARERS COMMISSIONED SERVICES,"5,218.57"
26/03/2013,ROCHDALE GATEWAY LEISURE LIMITED,Social Community Care Supplies & Services,MENTAL HEALTH LD AND VUL ADULT,CARERS COMMISSIONED SERVICES,"11,526.00"
27/02/2013,REDACTED PERSONAL DATA,Unclassifiable,CHILDREN�S SOCIAL CARE,DUTY SOCIAL WORK,"3,520.00"
27/02/2013,REDACTED PERSONAL DATA,Unclassifiable,CHILDREN�S SOCIAL CARE,DUTY SOCIAL WORK,"3,640.00"
27/02/2013,REDACTED PERSONAL DATA,Unclassifiable,CHILDREN�S SOCIAL CARE,DUTY SOCIAL WORK,"2,880.00"
05/03/2013,PENNINE CARE NHS TRUST,Social Community Care Supplies & Services,CHILDREN�S SOCIAL CARE,CAMHS,"2,014.00"
05/03/2013,PENNINE CARE NHS TRUST,Social Community Care Supplies & Services,CHILDREN�S SOCIAL CARE,CAMHS,"5,054.00"
05/03/2013,PENNINE CARE NHS TRUST,Social Community Care Supplies & Services,CHILDREN�S SOCIAL CARE,CAMHS,"4,970.10"
05/03/2013,PENNINE CARE NHS TRUST,Social Community Care Supplies & Services,CHILDREN�S SOCIAL CARE,CAMHS,"3,492.00"
05/03/2013,PENNINE CARE NHS TRUST,Social Community Care Supplies & Services,CHILDREN�S SOCIAL CARE,CAMHS,"2,590.00"
06/03/2013,PENNINE CARE NHS TRUST,Social Community Care Supplies & Services,CHILDREN�S SOCIAL CARE,CAMHS,820.00
26/02/2013,PENNINE CARE NHS TRUST,Social Community Care Supplies & Services,CHILDREN�S SOCIAL CARE,CAMHS,820.00
26/02/2013,PENNINE CARE NHS TRUST,Social Community Care Supplies & Services,CHILDREN�S SOCIAL CARE,CAMHS,"2,590.00"
26/02/2013,PENNINE CARE NHS TRUST,Social Community Care Supplies & Services,CHILDREN�S SOCIAL CARE,CAMHS,"4,970.10"
26/02/2013,PENNINE CARE NHS TRUST,Social Community Care Supplies & Services,CHILDREN�S SOCIAL CARE,CAMHS,"3,492.00"
26/02/2013,PENNINE CARE NHS TRUST,Social Community Care Supplies & Services,CHILDREN�S SOCIAL CARE,CAMHS,"5,054.00"
26/02/2013,PENNINE CARE NHS TRUST,Social Community Care Supplies & Services,CHILDREN�S SOCIAL CARE,CAMHS,"2,014.00"
11/03/2013,CABLE & WIRELESS,Information Communication Technology,CHILDREN�S SOCIAL CARE,CROSSFIELD MILL,"1,011.57"
12/03/2013,INTER GROUP COMMUNICATIONS LTD,Information Communication Technology,CHILDREN�S SOCIAL CARE,CROSSFIELD MILL,"4,596.75"
04/03/2013,A+ PROPERTY MAINTENANCE,"Works - Construction, Repair & Maintenance",CHILDREN�S SOCIAL CARE,YPST SUPPORTING PEOPLE FUNDING,870.00
17/03/2013,FUSION CARE,Social Community Care Supplies & Services,CHILDREN�S SOCIAL CARE,YPST SUPPORTING PEOPLE FUNDING,"2,192.14"
17/03/2013,DEPAUL TRUST,Social Community Care Supplies & Services,CHILDREN�S SOCIAL CARE,YPST SUPPORTING PEOPLE FUNDING,"2,240.00"
27/02/2013,CRAWFORD DOMESTIC APPLIANCES LIMITED,Domestic Goods,CHILDREN�S SOCIAL CARE,YPST SUPPORTING PEOPLE FUNDING,618.00
08/03/2013,THE PARAMOUNT GROUP,Social Community Care Supplies & Services,CHILDREN�S SOCIAL CARE,EXTERNAL RESIDENTIAL PLACEMENTS,"8,000.00"
08/03/2013,NEW HORIZONS (STOCKPORT) LIMITED,Social Community Care Supplies & Services,CHILDREN�S SOCIAL CARE,EXTERNAL RESIDENTIAL PLACEMENTS,"10,200.00"
13/03/2013,C H W LODGINGS LTD,Social Community Care Supplies & Services,CHILDREN�S SOCIAL CARE,EXTERNAL RESIDENTIAL PLACEMENTS,"3,985.71"
18/03/2013,THE TOGETHER TRUST,Social Community Care Supplies & Services,CHILDREN�S SOCIAL CARE,EXTERNAL RESIDENTIAL PLACEMENTS,"9,199.96"
18/03/2013,THE TOGETHER TRUST,Social Community Care Supplies & Services,CHILDREN�S SOCIAL CARE,EXTERNAL RESIDENTIAL PLACEMENTS,"10,067.10"
18/03/2013,THE TOGETHER TRUST,Social Community Care Supplies & Services,CHILDREN�S SOCIAL CARE,EXTERNAL RESIDENTIAL PLACEMENTS,"10,402.67"
18/03/2013,THE TOGETHER TRUST,Social Community Care Supplies & Services,CHILDREN�S SOCIAL CARE,EXTERNAL RESIDENTIAL PLACEMENTS,"10,402.67"
19/03/2013,NORTHERNCARE,Social Community Care Supplies & Services,CHILDREN�S SOCIAL CARE,EXTERNAL RESIDENTIAL PLACEMENTS,"14,000.00"
22/03/2013,EDEN CARE (NORTH WEST) LTD,Social Community Care Supplies & Services,CHILDREN�S SOCIAL CARE,EXTERNAL RESIDENTIAL PLACEMENTS,"5,200.00"
25/02/2013,THE TOGETHER TRUST,Social Community Care Supplies & Services,CHILDREN�S SOCIAL CARE,EXTERNAL RESIDENTIAL PLACEMENTS,"11,067.00"
25/02/2013,CARE TODAY CHILDRENS SERVICES,Social Community Care Supplies & Services,CHILDREN�S SOCIAL CARE,EXTERNAL RESIDENTIAL PLACEMENTS,"5,590.06"
25/02/2013,MEADOWS CARE LIMITED,Social Community Care Supplies & Services,CHILDREN�S SOCIAL CARE,EXTERNAL RESIDENTIAL PLACEMENTS,"15,400.00"
25/02/2013,MEADOWS CARE LIMITED,Social Community Care Supplies & Services,CHILDREN�S SOCIAL CARE,EXTERNAL RESIDENTIAL PLACEMENTS,"13,500.00"
25/02/2013,SOCIAL CARE SERVICES LIMITED,Social Community Care Supplies & Services,CHILDREN�S SOCIAL CARE,EXTERNAL RESIDENTIAL PLACEMENTS,"8,260.00"
25/02/2013,SOCIAL CARE SERVICES LIMITED,Social Community Care Supplies & Services,CHILDREN�S SOCIAL CARE,EXTERNAL RESIDENTIAL PLACEMENTS,"8,260.00"
25/02/2013,THE TOGETHER TRUST,Social Community Care Supplies & Services,CHILDREN�S SOCIAL CARE,EXTERNAL RESIDENTIAL PLACEMENTS,"10,402.67"
25/02/2013,THE TOGETHER TRUST,Social Community Care Supplies & Services,CHILDREN�S SOCIAL CARE,EXTERNAL RESIDENTIAL PLACEMENTS,"10,402.67"
25/02/2013,THE TOGETHER TRUST,Social Community Care Supplies & Services,CHILDREN�S SOCIAL CARE,EXTERNAL RESIDENTIAL PLACEMENTS,"15,742.73"
25/03/2013,ROC NORTHWEST LTD,Social Community Care Supplies & Services,CHILDREN�S SOCIAL CARE,EXTERNAL RESIDENTIAL PLACEMENTS,"14,840.00"
25/03/2013,THE TOGETHER TRUST,Social Community Care Supplies & Services,CHILDREN�S SOCIAL CARE,EXTERNAL RESIDENTIAL PLACEMENTS,"9,996.00"
25/03/2013,THE TOGETHER TRUST,Social Community Care Supplies & Services,CHILDREN�S SOCIAL CARE,EXTERNAL RESIDENTIAL PLACEMENTS,"14,219.24"
25/03/2013,THE TOGETHER TRUST,Social Community Care Supplies & Services,CHILDREN�S SOCIAL CARE,EXTERNAL RESIDENTIAL PLACEMENTS,"9,395.96"
25/03/2013,AGR CARE SERVICES,Social Community Care Supplies & Services,CHILDREN�S SOCIAL CARE,EXTERNAL RESIDENTIAL PLACEMENTS,"9,884.00"
25/03/2013,THE TOGETHER TRUST,Social Community Care Supplies & Services,CHILDREN�S SOCIAL CARE,EXTERNAL RESIDENTIAL PLACEMENTS,"9,395.96"
27/02/2013,BRYN MELYN CARE LTD,Social Community Care Supplies & Services,CHILDREN�S SOCIAL CARE,EXTERNAL RESIDENTIAL PLACEMENTS,"13,308.88"
27/02/2013,KEYS CHILDCARE,Social Community Care Supplies & Services,CHILDREN�S SOCIAL CARE,EXTERNAL RESIDENTIAL PLACEMENTS,"14,000.00"
27/02/2013,NUGENT CARE,Financial Services,CHILDREN�S SOCIAL CARE,EXTERNAL RESIDENTIAL PLACEMENTS,"1,434.00"
27/02/2013,THE PARAMOUNT GROUP,Social Community Care Supplies & Services,CHILDREN�S SOCIAL CARE,EXTERNAL RESIDENTIAL PLACEMENTS,"8,000.00"
27/02/2013,CARE TODAY CHILDRENS SERVICES,Social Community Care Supplies & Services,CHILDREN�S SOCIAL CARE,EXTERNAL RESIDENTIAL PLACEMENTS,"4,960.26"
27/03/2013,NORTHERNCARE,Social Community Care Supplies & Services,CHILDREN�S SOCIAL CARE,EXTERNAL RESIDENTIAL PLACEMENTS,"15,500.00"
27/03/2013,THE PARAMOUNT GROUP,Social Community Care Supplies & Services,CHILDREN�S SOCIAL CARE,EXTERNAL RESIDENTIAL PLACEMENTS,"8,000.00"
28/03/2013,PROGRESSIVE CARE LTD,Social Community Care Supplies & Services,CHILDREN�S SOCIAL CARE,EXTERNAL RESIDENTIAL PLACEMENTS,"9,560.00"
28/03/2013,PROGRESSIVE CARE LTD,Social Community Care Supplies & Services,CHILDREN�S SOCIAL CARE,EXTERNAL RESIDENTIAL PLACEMENTS,"11,796.00"
28/03/2013,EDEN CARE (NORTH WEST) LTD,Social Community Care Supplies & Services,CHILDREN�S SOCIAL CARE,EXTERNAL RESIDENTIAL PLACEMENTS,"5,200.00"
28/03/2013,KEYS CHILDCARE,Social Community Care Supplies & Services,CHILDREN�S SOCIAL CARE,EXTERNAL RESIDENTIAL PLACEMENTS,"15,500.00"
28/03/2013,ROC NORTHWEST LTD,Social Community Care Supplies & Services,CHILDREN�S SOCIAL CARE,EXTERNAL RESIDENTIAL PLACEMENTS,"16,430.00"
11/03/2013,RICOH UK LTD,Facilities & Management Services,CHILDREN�S SOCIAL CARE,FOSTERING TEAM,"5,286.23"
11/03/2013,RICOH UK LTD,Facilities & Management Services,CHILDREN�S SOCIAL CARE,LEVEL 2 CARERS,"5,286.23"
07/03/2013,S & R SHAW,Unclassifiable,CHILDREN�S SOCIAL CARE,LEVEL 3 CARERS,"1,194.75"
20/03/2013,AFTER ADOPTION,Social Community Care Supplies & Services,CHILDREN�S SOCIAL CARE,ADOPTION PAYMENTS,"140,000.00"
25/02/2013,THE DEPAUL TRUST,Social Community Care Supplies & Services,CHILDREN�S SOCIAL CARE,DUTY PREVENTIVE,"3,440.00"
25/02/2013,THE DEPAUL TRUST,Social Community Care Supplies & Services,CHILDREN�S SOCIAL CARE,DUTY PREVENTIVE,"4,300.00"
25/02/2013,THE DEPAUL TRUST,Social Community Care Supplies & Services,CHILDREN�S SOCIAL CARE,DUTY PREVENTIVE,"3,562.86"
25/02/2013,THE DEPAUL TRUST,Social Community Care Supplies & Services,CHILDREN�S SOCIAL CARE,DUTY PREVENTIVE,"3,808.57"
25/02/2013,THE DEPAUL TRUST,Social Community Care Supplies & Services,CHILDREN�S SOCIAL CARE,DUTY PREVENTIVE,"3,440.00"
17/03/2013,VALLEY ESTATES,Facilities & Management Services,CHILDREN�S SOCIAL CARE,ASNA,"15,000.00"
11/03/2013,REDACTED PERSONAL DATA,Unclassifiable,CHILDREN�S SOCIAL CARE,SAFEGUARDING CHILDREN BOARD,"3,016.88"
11/03/2013,REDACTED PERSONAL DATA,Unclassifiable,CHILDREN�S SOCIAL CARE,SAFEGUARDING CHILDREN BOARD,"3,945.38"
13/03/2013,REDACTED PERSONAL DATA,Unclassifiable,CHILDREN�S SOCIAL CARE,SAFEGUARDING CHILDREN BOARD,"2,151.46"
13/03/2013,TRIX CHILDCARE LTD,Social Community Care Supplies & Services,CHILDREN�S SOCIAL CARE,SAFEGUARDING CHILDREN BOARD,800.00
20/03/2013,REDACTED PERSONAL DATA,Unclassifiable,CHILDREN�S SOCIAL CARE,SAFEGUARDING CHILDREN BOARD,"1,356.56"
27/03/2013,COMPUTING HELP LIMITED,Information Communication Technology,CHILDREN�S SOCIAL CARE,CSC TRAINING EXPENSES,922.98
07/03/2013,YORKSHIRE PURCHASING ORGANISATION,Unclassifiable,CHILDREN�S SOCIAL CARE,SUNRISE TEAM,669.85
13/03/2013,REDACTED PERSONAL DATA,Unclassifiable,CHILDREN�S SOCIAL CARE,REPARATION PROJECT (ALLOTMENT AND BIKE),630.00
15/03/2013,SKILLSOLVE TRAINING LTD,Human Resources,CHILDREN�S SOCIAL CARE,REPARATION PROJECT (ALLOTMENT AND BIKE),675.00
18/03/2013,RALEIGH UK LIMITED,Unclassifiable,CHILDREN�S SOCIAL CARE,REPARATION PROJECT (ALLOTMENT AND BIKE),"1,379.84"
14/03/2013,CHILD ACTION NORTHWEST,Social Community Care Supplies & Services,CHILDREN�S SOCIAL CARE,YOT MANAGEMENT,"2,865.11"
18/03/2013,CHILD ACTION NORTHWEST,Social Community Care Supplies & Services,CHILDREN�S SOCIAL CARE,INDEPENDENT FOSTER CARE,"2,875.88"
18/03/2013,CHILD ACTION NORTHWEST,Social Community Care Supplies & Services,CHILDREN�S SOCIAL CARE,INDEPENDENT FOSTER CARE,"3,043.88"
18/03/2013,CHILD ACTION NORTHWEST,Social Community Care Supplies & Services,CHILDREN�S SOCIAL CARE,INDEPENDENT FOSTER CARE,"3,211.88"
18/03/2013,CHILD ACTION NORTHWEST,Social Community Care Supplies & Services,CHILDREN�S SOCIAL CARE,INDEPENDENT FOSTER CARE,"4,796.12"
18/03/2013,CHILD ACTION NORTHWEST,Social Community Care Supplies & Services,CHILDREN�S SOCIAL CARE,INDEPENDENT FOSTER CARE,"3,043.88"
18/03/2013,CHILD ACTION NORTHWEST,Social Community Care Supplies & Services,CHILDREN�S SOCIAL CARE,INDEPENDENT FOSTER CARE,"2,875.88"
18/03/2013,CHILD ACTION NORTHWEST,Social Community Care Supplies & Services,CHILDREN�S SOCIAL CARE,INDEPENDENT FOSTER CARE,"5,092.08"
18/03/2013,CHILD ACTION NORTHWEST,Social Community Care Supplies & Services,CHILDREN�S SOCIAL CARE,INDEPENDENT FOSTER CARE,800.00
18/03/2013,CHILD ACTION NORTHWEST,Social Community Care Supplies & Services,CHILDREN�S SOCIAL CARE,INDEPENDENT FOSTER CARE,"2,915.92"
18/03/2013,CHILD ACTION NORTHWEST,Social Community Care Supplies & Services,CHILDREN�S SOCIAL CARE,INDEPENDENT FOSTER CARE,"2,624.44"
18/03/2013,CHILD ACTION NORTHWEST,Social Community Care Supplies & Services,CHILDREN�S SOCIAL CARE,INDEPENDENT FOSTER CARE,"2,915.92"
18/03/2013,CHILD ACTION NORTHWEST,Social Community Care Supplies & Services,CHILDREN�S SOCIAL CARE,INDEPENDENT FOSTER CARE,"3,239.88"
18/03/2013,CHILD ACTION NORTHWEST,Social Community Care Supplies & Services,CHILDREN�S SOCIAL CARE,INDEPENDENT FOSTER CARE,"2,577.08"
19/03/2013,BY THE BRIDGE THERAPUTIC FOSTERING SERVICE,Social Community Care Supplies & Services,CHILDREN�S SOCIAL CARE,INDEPENDENT FOSTER CARE,"3,912.64"
19/03/2013,BY THE BRIDGE THERAPUTIC FOSTERING SERVICE,Social Community Care Supplies & Services,CHILDREN�S SOCIAL CARE,INDEPENDENT FOSTER CARE,"3,717.79"
25/02/2013,CHILD ACTION NORTHWEST,Social Community Care Supplies & Services,CHILDREN�S SOCIAL CARE,INDEPENDENT FOSTER CARE,"5,637.66"
25/02/2013,CHILD ACTION NORTHWEST,Social Community Care Supplies & Services,CHILDREN�S SOCIAL CARE,INDEPENDENT FOSTER CARE,"3,370.01"
25/02/2013,CHILD ACTION NORTHWEST,Social Community Care Supplies & Services,CHILDREN�S SOCIAL CARE,INDEPENDENT FOSTER CARE,"3,556.01"
25/02/2013,CHILD ACTION NORTHWEST,Social Community Care Supplies & Services,CHILDREN�S SOCIAL CARE,INDEPENDENT FOSTER CARE,"5,309.99"
25/02/2013,CHILD ACTION NORTHWEST,Social Community Care Supplies & Services,CHILDREN�S SOCIAL CARE,INDEPENDENT FOSTER CARE,"3,184.01"
25/02/2013,CHILD ACTION NORTHWEST,Social Community Care Supplies & Services,CHILDREN�S SOCIAL CARE,INDEPENDENT FOSTER CARE,"3,228.34"
25/02/2013,CHILD ACTION NORTHWEST,Social Community Care Supplies & Services,CHILDREN�S SOCIAL CARE,INDEPENDENT FOSTER CARE,"3,370.01"
25/02/2013,CHILD ACTION NORTHWEST,Social Community Care Supplies & Services,CHILDREN�S SOCIAL CARE,INDEPENDENT FOSTER CARE,"3,587.01"
25/02/2013,CHILD ACTION NORTHWEST,Social Community Care Supplies & Services,CHILDREN�S SOCIAL CARE,INDEPENDENT FOSTER CARE,800.00
25/02/2013,CHILD ACTION NORTHWEST,Social Community Care Supplies & Services,CHILDREN�S SOCIAL CARE,INDEPENDENT FOSTER CARE,"2,905.63"
02/03/2013,ADOPTION MATTERS,Social Community Care Supplies & Services,CHILDREN�S SOCIAL CARE,INTER AGENCY ADOPTION,750.00
12/03/2013,ADOPTION FOCUS,Social Community Care Supplies & Services,CHILDREN�S SOCIAL CARE,INTER AGENCY ADOPTION,"14,333.00"
12/03/2013,ADOPTION MATTERS,Social Community Care Supplies & Services,CHILDREN�S SOCIAL CARE,INTER AGENCY ADOPTION,"4,817.33"
14/03/2013,ADOPTION MATTERS,Social Community Care Supplies & Services,CHILDREN�S SOCIAL CARE,INTER AGENCY ADOPTION,750.00
14/03/2013,ADOPTION MATTERS,Social Community Care Supplies & Services,CHILDREN�S SOCIAL CARE,INTER AGENCY ADOPTION,750.00
14/03/2013,ADOPTION MATTERS,Social Community Care Supplies & Services,CHILDREN�S SOCIAL CARE,INTER AGENCY ADOPTION,750.00
14/03/2013,ADOPTION UK,Social Community Care Supplies & Services,CHILDREN�S SOCIAL CARE,INTER AGENCY ADOPTION,"1,150.00"
17/03/2013,JOHN SLATTERY PHOTOGRAPHY,Facilities & Management Services,CHILDREN�S SOCIAL CARE,INTER AGENCY ADOPTION,"1,050.00"
17/03/2013,PARENTS AND CHILDREN TOGETHER,Social Community Care Supplies & Services,CHILDREN�S SOCIAL CARE,INTER AGENCY ADOPTION,"20,000.00"
17/03/2013,POST ADOPTION CENTRE,Social Community Care Supplies & Services,CHILDREN�S SOCIAL CARE,INTER AGENCY ADOPTION,"2,413.00"
26/02/2013,ADOPTION MATTERS,Social Community Care Supplies & Services,CHILDREN�S SOCIAL CARE,INTER AGENCY ADOPTION,750.00
26/02/2013,ADOPTION MATTERS,Social Community Care Supplies & Services,CHILDREN�S SOCIAL CARE,INTER AGENCY ADOPTION,750.00
26/02/2013,ADOPTION MATTERS,Social Community Care Supplies & Services,CHILDREN�S SOCIAL CARE,INTER AGENCY ADOPTION,750.00
05/03/2013,AKA LTD,Human Resources,CHILDREN�S SOCIAL CARE,MANAGEMENT STRUCTURE,"3,417.24"
08/03/2013,GATENBY SANDERSON,Human Resources,CHILDREN�S SOCIAL CARE,MANAGEMENT STRUCTURE,"5,576.00"
13/03/2013,REDACTED PERSONAL DATA,Unclassifiable,CHILDREN�S SOCIAL CARE,MANAGEMENT STRUCTURE,"7,762.50"
18/03/2013,REDACTED PERSONAL DATA,Unclassifiable,CHILDREN�S SOCIAL CARE,MANAGEMENT STRUCTURE,998.88
26/02/2013,AKA LTD,Human Resources,CHILDREN�S SOCIAL CARE,MANAGEMENT STRUCTURE,"2,323.00"
26/02/2013,AKA LTD,Human Resources,CHILDREN�S SOCIAL CARE,MANAGEMENT STRUCTURE,"3,579.93"
26/02/2013,AKA LTD,Human Resources,CHILDREN�S SOCIAL CARE,MANAGEMENT STRUCTURE,"9,947.60"
04/03/2013,REDACTED PERSONAL DATA,Unclassifiable,CHILDREN�S SOCIAL CARE,CSC PUBLIC LAW PROCEEDINGS EXTERNAL FEES,"1,740.00"
04/03/2013,REDACTED PERSONAL DATA,Legal Services,CHILDREN�S SOCIAL CARE,CSC PUBLIC LAW PROCEEDINGS EXTERNAL FEES,"9,240.00"
04/03/2013,REDACTED PERSONAL DATA,Unclassifiable,CHILDREN�S SOCIAL CARE,CSC PUBLIC LAW PROCEEDINGS EXTERNAL FEES,"2,670.00"
04/03/2013,REDACTED PERSONAL DATA,Unclassifiable,CHILDREN�S SOCIAL CARE,CSC PUBLIC LAW PROCEEDINGS EXTERNAL FEES,780.00
04/03/2013,REDACTED PERSONAL DATA,Unclassifiable,CHILDREN�S SOCIAL CARE,CSC PUBLIC LAW PROCEEDINGS EXTERNAL FEES,"3,420.00"
04/03/2013,REDACTED PERSONAL DATA,Unclassifiable,CHILDREN�S SOCIAL CARE,CSC PUBLIC LAW PROCEEDINGS EXTERNAL FEES,720.00
08/03/2013,REDACTED PERSONAL DATA,Unclassifiable,CHILDREN�S SOCIAL CARE,CSC PUBLIC LAW PROCEEDINGS EXTERNAL FEES,"2,460.00"
08/03/2013,REDACTED PERSONAL DATA,Unclassifiable,CHILDREN�S SOCIAL CARE,CSC PUBLIC LAW PROCEEDINGS EXTERNAL FEES,"1,800.00"
12/03/2013,REDACTED PERSONAL DATA,Legal Services,CHILDREN�S SOCIAL CARE,CSC PUBLIC LAW PROCEEDINGS EXTERNAL FEES,"1,068.00"
12/03/2013,REDACTED PERSONAL DATA,Legal Services,CHILDREN�S SOCIAL CARE,CSC PUBLIC LAW PROCEEDINGS EXTERNAL FEES,"1,140.00"
12/03/2013,REDACTED PERSONAL DATA,Unclassifiable,CHILDREN�S SOCIAL CARE,CSC PUBLIC LAW PROCEEDINGS EXTERNAL FEES,"1,152.00"
12/03/2013,REDACTED PERSONAL DATA,Unclassifiable,CHILDREN�S SOCIAL CARE,CSC PUBLIC LAW PROCEEDINGS EXTERNAL FEES,660.00
14/03/2013,REDACTED PERSONAL DATA,Medical,CHILDREN�S SOCIAL CARE,CSC PUBLIC LAW PROCEEDINGS EXTERNAL FEES,960.00
18/03/2013,REDACTED PERSONAL DATA,Unclassifiable,CHILDREN�S SOCIAL CARE,CSC PUBLIC LAW PROCEEDINGS EXTERNAL FEES,"2,280.00"
19/03/2013,REDACTED PERSONAL DATA,Legal Services,CHILDREN�S SOCIAL CARE,CSC PUBLIC LAW PROCEEDINGS EXTERNAL FEES,780.00
27/02/2013,REDACTED PERSONAL DATA,Unclassifiable,CHILDREN�S SOCIAL CARE,CSC PUBLIC LAW PROCEEDINGS EXTERNAL FEES,"1,350.00"
28/02/2013,REDACTED PERSONAL DATA,Unclassifiable,CHILDREN�S SOCIAL CARE,CSC PUBLIC LAW PROCEEDINGS EXTERNAL FEES,535.82
28/02/2013,REDACTED PERSONAL DATA,Social Community Care Supplies & Services,CHILDREN�S SOCIAL CARE,CSC PUBLIC LAW PROCEEDINGS EXTERNAL FEES,627.50
28/02/2013,REDACTED PERSONAL DATA,Unclassifiable,CHILDREN�S SOCIAL CARE,CSC PUBLIC LAW PROCEEDINGS EXTERNAL FEES,527.25
28/02/2013,REDACTED PERSONAL DATA,Social Community Care Supplies & Services,CHILDREN�S SOCIAL CARE,CSC PUBLIC LAW PROCEEDINGS EXTERNAL FEES,569.49
12/03/2013,COMENSURA LIMITED,Human Resources,"FINANCE, PROC & OTH MGD BUDGET",COMMENSURA,"4,549.68"
26/02/2013,COMENSURA LIMITED,Human Resources,"FINANCE, PROC & OTH MGD BUDGET",COMMENSURA,"10,603.98"
28/02/2013,COMENSURA LIMITED,Human Resources,"FINANCE, PROC & OTH MGD BUDGET",COMMENSURA,"2,720.58"
